{"text_format":"1","workbook":"xlsx","n_sheets":7,"sheets":["Prompt","C100","C200","C300","C400","Enviar","Carreras"],"not_rendered":{"charts":0,"images":6,"macros":1,"external_links":0,"defined_names":3,"comments":0,"pivot_tables":0},"unopened":[],"bounds":{"document_bytes":16777216,"sheet_cells":100000,"rows_first":2000,"rows_last":500,"rows_between":2000,"halvings":0,"cell_chars":16384,"cell_head_chars":4096},"cells_cut":0,"cells_raw":0,"read":"whole","date_system":"1900"}

{"sheet":"Prompt","index":0,"n_rows":79,"n_cols":4,"rows_kept":79,"cut":false,"hidden":true,"merged":[[1,3,2,6],[4,1,6,8],[43,1,44,8],[78,1,79,8],[9,1,10,8]]}
[]
[null,null,null,"¡ATENCIÓN!"]
[]
[]
[null,"Para hacer uso de las funcionalidades de esta Cédula Electrónica debe habilitar macros"]
[]
[]
[]
[]
[null,"Si utiliza Excel 2013 siga el siguiente procedimiento:"]
[]
[]
[]
[]
[]
[]
[]
[]
[]
[]
[]
[]
[]
[]
[]
[]
[]
[]
[]
[]
[]
[]
[]
[]
[]
[]
[]
[]
[]
[]
[]
[]
[]
[null,"Si utiliza Excel 2007 siga el siguiente procedimiento:"]
[]
[]
[]
[]
[]
[]
[]
[]
[]
[]
[]
[]
[]
[]
[]
[]
[]
[]
[]
[]
[]
[]
[]
[]
[]
[]
[]
[]
[]
[]
[]
[]
[]
[]
[null,"Si utiliza Excel 2000, 2002, 2003 siga el siguiente procedimiento:"]

{"sheet":"C100","index":1,"n_rows":102,"n_cols":19,"rows_kept":102,"cut":false,"hidden":false,"merged":[[56,5,56,11],[57,5,57,11],[51,5,51,11],[52,5,52,11],[53,5,53,11],[54,5,54,11],[55,5,55,11],[46,5,46,11],[47,5,47,11],[48,5,48,11],[49,5,49,11],[50,5,50,11],[58,5,58,11],[31,5,31,11],[32,5,32,11],[33,5,33,11],[34,5,34,11],[35,5,35,11],[36,5,36,11],[37,5,37,11],[38,5,38,11],[39,5,39,11],[40,5,40,11],[41,5,41,11],[42,5,42,11],[43,5,43,11],[44,5,44,11],[45,5,45,11],[60,5,60,11],[101,7,101,10],[83,14,83,16],[77,10,77,16],[83,10,83,11],[75,10,75,16],[63,13,63,14],[61,5,61,11],[62,5,62,11],[63,5,63,11],[61,13,61,14],[64,13,64,14],[64,5,64,11],[62,13,62,14],[41,13,41,14],[42,13,42,14],[43,13,43,14],[56,13,56,14],[57,13,57,14],[50,13,50,14],[51,13,51,14],[49,13,49,14],[52,13,52,14],[46,13,46,14],[34,13,34,14],[40,13,40,14],[60,13,60,14],[53,13,53,14],[54,13,54,14],[55,13,55,14],[58,13,58,14],[36,13,36,14],[37,13,37,14],[39,13,39,14],[35,13,35,14],[38,13,38,14],[48,13,48,14],[47,13,47,14],[44,13,44,14],[45,13,45,14],[29,13,29,14],[9,3,9,17],[30,13,30,14],[31,13,31,14],[32,13,32,14],[27,4,28,4],[12,15,12,16],[27,13,28,14],[30,5,30,11],[29,5,29,11],[33,13,33,14],[1,6,1,13],[2,6,2,13],[3,6,3,13],[14,7,14,16],[12,7,12,8],[2,15,4,16],[5,3,5,17],[1,15,1,16],[23,3,23,17],[27,3,28,3],[16,9,16,16],[27,6,28,10],[27,11,28,11],[27,12,28,12],[27,15,27,17]]}
[]
[null,null,null,null,null,null,"CENSO EDUCATIVO 2022",null,null,null,null,null,null,null,null,"CÉDULA"]
[null,null,null,null,null,null,"EDUCACIÓN SUPERIOR DE ",null,null,null,null,null,null,null,null,"7A"]
[null,null,null,null,null,null,"FORMACIÓN ARTÍSTICA (ESFA)"]
[null,null,null,"Versión :","2 - (32 y 6a bits)"]
[null,null,null,"INSTRUCCIONES DEL FORMATO ELECTRÓNICO "]
[]
[]
[]
[null,null,null,"IDENTIFICACIÓN DEL SERVICIO EDUCATIVO"]
[]
[]
[null,null,null,"1. CÓDIGO MODULAR :",null,null,null,null,null,null,null,null,null,"2. CÓDIGO DE LOCAL EDUCATIVO :  "]
[]
[null,null,null,"3. NOMBRE DEL SERVICIO/NIVEL:",null,null,null,""]
[]
[null,null,null,"4. DISTRITO DONDE SE UBICA EL LOCAL EDUCATIVO :",null,null,null,null,null,""]
[]
[]
[]
[null,null,null,"Gestión de la Institución Educativa : ",null,null,null,null,null," 1 - Pública de gestión directa",null,null," 2 - Pública de gestión privada",null,null," 3 - Privada",null,{"$f":"CONCATENATE(TRIM(UPPER(I21)),TRIM(UPPER(L21)),TRIM(UPPER(O21)))","v":""}]
[]
[]
[null,null,null,"100. CARACTERÍSTICAS DEL SERVICIO EDUCATIVO (Para II.EE. Públicas y Privadas)"]
[]
[null,null,null,null,"101. CARRERAS AUTORIZADAS QUE OFRECE LA ESCUELA"]
[]
["TOTAL",{"$f":"SUM(A30:B65)","v":0},null,"Nº","CÓDIGO",null,"DENOMINACIÓN",null,null,null,null,null,"Nº de\nResolución","Fecha de\nResolución",null,"Duración de la carrera"]
[null,null,null,null,null,null,null,null,null,null,null,null,null,null,null,"3 años","4 años","5 años"]
[{"$f":"IF(OR(P30<>\"\",Q30<>\"\",R30<>\"\"),1,0)","v":0},{"$f":"IF(AND(F30<>\"\",M30<>\"\",N30<>\"\"),1,0)","v":0},{"$f":"IF(AND(G30<>\"\",L30<>\"\",N30<>\"\"),1,0)","v":0},"01",null,{"$f":"IF(ISERROR(VLOOKUP($E30,Carrera,2,FALSE)),\"\",VLOOKUP($E30,Carrera,2,FALSE))","v":""}]
[{"$f":"IF(OR(P31<>\"\",Q31<>\"\",R31<>\"\"),1,0)","v":0},{"$f":"IF(AND(F31<>\"\",M31<>\"\",N31<>\"\"),1,0)","v":0},0,"02",null,{"$f":"IF(ISERROR(VLOOKUP($E31,Carrera,2,FALSE)),\"\",VLOOKUP($E31,Carrera,2,FALSE))","v":""}]
[0,0,0,"03",null,{"$f":"IF(ISERROR(VLOOKUP($E32,Carrera,2,FALSE)),\"\",VLOOKUP($E32,Carrera,2,FALSE))","v":""}]
[0,0,0,"04",null,""]
[0,0,0,"05",null,""]
[0,0,0,"06",null,""]
[0,0,0,"07",null,""]
[0,0,0,"08",null,""]
[0,0,0,"09",null,""]
[0,0,0,"10",null,""]
[0,0,0,"11",null,""]
[0,0,0,"12",null,""]
[0,0,0,"13",null,""]
[0,0,0,"14",null,""]
[0,0,null,15,null,""]
[0,0,null,16,null,""]
[0,0,null,17,null,""]
[0,0,null,18,null,""]
[0,0,null,19,null,""]
[0,0,null,20,null,""]
[0,0,null,21,null,""]
[0,0,null,22,null,""]
[0,0,null,23,null,""]
[0,0,null,24,null,""]
[0,0,null,25,null,""]
[0,0,null,26,null,""]
[0,0,null,27,null,""]
[0,0,null,28,null,""]
[0,0,null,29,null,""]
[0,0,null,30,null,""]
[null,null,null,null,"Si la IE. dicta carreras que no se encuentran en el clasificador de carreras, complete información de la carreras nuevas."]
[0,0,1,31,{"$f":"IF(F61<>\"\",CONCATENATE(\"G\",$C61,IF(P61=\"X\",\"4\",IF(Q61=\"X\",\"5\",IF(R61=\"X\",\"6\",\"9\"))),$H$13),\"\")","v":""},null,null,null,null,null,null,null,null,null,null,null,null,null,""]
[0,0,2,32,{"$f":"IF(F62<>\"\",CONCATENATE(\"G\",$C62,IF(P62=\"X\",\"4\",IF(Q62=\"X\",\"5\",IF(R62=\"X\",\"6\",\"9\"))),$H$13),\"\")","v":""}]
[0,0,3,33,{"$f":"IF(F63<>\"\",CONCATENATE(\"G\",$C63,IF(P63=\"X\",\"4\",IF(Q63=\"X\",\"5\",IF(R63=\"X\",\"6\",\"9\"))),$H$13),\"\")","v":""}]
[0,0,4,34,{"$f":"IF(F64<>\"\",CONCATENATE(\"G\",$C64,IF(P64=\"X\",\"4\",IF(Q64=\"X\",\"5\",IF(R64=\"X\",\"6\",\"9\"))),$H$13),\"\")","v":""}]
[0,0,5,35,{"$f":"IF(F65<>\"\",CONCATENATE(\"G\",$C65,IF(P65=\"X\",\"4\",IF(Q65=\"X\",\"5\",IF(R65=\"X\",\"6\",\"9\"))),$H$13),\"\")","v":""}]
[null,null,null,"Utilice los códigos de la tabla de Carreras disponible al final de esta cédula"]
[null,null,null,"102. EN EL PRESENTE AÑO 2022, ¿BAJO QUÉ MODALIDAD SE REALIZAN LAS CLASES EN ESTE SERVICIO/NIVEL EDUCATIVO?"]
[]
[null,null,null,null,null,null,"Presencial",null,null,"Semi presencial",null,null,"Remoto / A distancia",null,null,null,null,{"$f":"CONCATENATE(F69,I69,L69)","v":""}]
[]
[]
[null,null,null,null,"103. DATOS SOBRE PROMOTORÍA (Sólo para IST Privados)"]
[null,null,null,null,"103.1 TIPO DE PERSONA :"]
[null,null,null,null,"(Marque con un aspa “X” y registre la información solicitada según corresponda)."]
[]
[null,null,null,null,"Natural",null,"DNI",null,null,"Nombre"]
[]
[null,null,null,null,"Jurídica",null,"RUC",null,null,"Razon social"]
[]
[null,null,null,null,"103.2 FORMA DE CONSTITUCIÓN (SOLO PARA PERSONA JURÍDICA):"]
[null,null,null,null,"(Marque con un aspa “X” y registre la información solicitada según corresponda)."]
[]
[null,null,null,null,"Sociedad"]
[null,null,null,null,null,{"$f":"CONCATENATE(F83,F85)","v":""},null,"Nº de Partida registral",null,null,null,null,"Nº de Asiento registral"]
[null,null,null,null,"Asociación"]
[]
[]
[]
[null,null,null,null,"104. ¿CUÁNTOS LOCALES EDUCATIVOS TIENE LA ESCUELA?"]
[]
[null,null,null,null,"105. ¿EL SERVICIO/NIVEL EDUCATIVO PERTENECE A ALGUNA RED CON ESCUELAS SUPERIORES DE FORMACIÓN ARTISTICA - ESFA?"]
[]
[null,null,null,null,null,null,"Sí",null,null,"No",null,"Pase a la sección 200"]
[]
[null,null,null,null,"106. ¿EN QUÉ ACTIVIDADES HA PARTICIPADO EL SERVICIO/NIVEL EDUCATIVO COMO MIEMBRO DE ESTA RED?"]
[]
[null,null,null,null,null,"","Talleres / capacitaciones de arte orientados a docentes"]
[null,null,null,null,null,"","Talleres de arte dirigidos a alumnos"]
[null,null,null,null,null,"","Presentaciones artísticas de las ESFA en la institución educativa"]
[null,null,null,null,null,"","Festivales de arte en las instituciones educativas que pertenecen a la misma red"]
[null,null,null,null,null,"","Presentación de carreras de artísticas a cargo de docentes reconocidos de las ESFA."]
[null,null,null,null,null,"","Otro"]

{"sheet":"C200","index":2,"n_rows":452,"n_cols":38,"rows_kept":452,"cut":false,"hidden":false,"merged":[[302,2,302,5],[315,3,317,5],[313,4,313,20],[293,2,293,5],[294,2,294,5],[295,2,295,5],[296,2,296,5],[297,2,297,5],[298,2,298,5],[299,2,299,5],[300,2,300,5],[301,2,301,5],[159,10,159,11],[163,10,163,11],[181,2,181,3],[162,10,162,11],[172,2,173,3],[179,5,179,22],[179,4,180,4],[175,2,175,3],[174,2,174,3],[159,16,159,17],[161,10,161,11],[161,16,161,17],[161,14,161,15],[160,16,160,17],[159,12,159,13],[159,14,159,15],[161,12,161,13],[160,12,160,13],[160,10,160,11],[166,10,166,11],[168,10,168,11],[162,12,162,13],[166,14,166,15],[167,16,167,17],[158,16,158,17],[157,10,157,11],[157,12,157,13],[157,14,157,15],[157,16,157,17],[158,10,158,11],[158,12,158,13],[158,14,158,15],[156,16,156,17],[138,10,138,11],[140,10,140,11],[138,12,138,13],[148,10,148,11],[148,12,148,13],[148,14,148,15],[148,16,148,17],[149,10,149,11],[149,12,149,13],[139,10,139,11],[147,14,147,15],[147,16,147,17],[147,10,147,11],[147,12,147,13],[149,14,149,15],[149,16,149,17],[140,12,140,13],[155,10,155,11],[155,12,155,13],[155,14,155,15],[155,16,155,17],[156,10,156,11],[156,12,156,13],[156,14,156,15],[153,14,153,15],[139,12,139,13],[139,14,139,15],[153,16,153,17],[154,10,154,11],[154,12,154,13],[154,14,154,15],[154,16,154,17],[153,10,153,11],[153,12,153,13],[145,14,145,17],[144,10,144,17],[145,10,145,13],[146,10,146,11],[146,12,146,13],[146,14,146,15],[146,16,146,17],[152,10,152,11],[152,12,152,13],[152,14,152,15],[152,16,152,17],[150,10,150,11],[150,12,150,13],[364,13,364,14],[365,13,365,14],[364,5,364,6],[365,5,365,6],[360,5,361,7],[360,13,361,15],[362,5,362,6],[363,5,363,6],[362,13,362,14],[363,13,363,14],[151,10,151,11],[151,12,151,13],[151,14,151,15],[165,14,165,15],[164,10,164,11],[164,12,164,13],[249,8,249,9],[249,10,249,11],[360,2,361,4],[360,9,361,12],[351,6,351,15],[351,2,352,3],[347,4,347,5],[320,2,320,5],[321,2,321,5],[372,13,372,14],[373,13,373,14],[370,5,370,6],[367,5,367,6],[369,5,369,6],[366,5,366,6],[366,13,366,14],[344,4,344,5],[342,4,343,5],[334,2,334,5],[335,2,335,5],[330,2,330,5],[331,2,331,5],[332,2,332,5],[333,2,333,5],[356,2,356,3],[356,4,356,5],[374,13,374,14],[374,10,374,12],[367,13,367,14],[368,13,368,14],[369,13,369,14],[370,13,370,14],[371,5,371,6],[374,5,374,6],[373,5,373,6],[372,5,372,6],[368,5,368,6],[371,13,371,14],[126,10,126,11],[126,12,126,13],[133,12,133,13],[127,10,127,11],[128,10,128,11],[128,12,128,13],[127,12,127,13],[129,10,129,11],[123,16,123,17],[124,16,124,17],[125,16,125,17],[127,16,127,17],[129,16,129,17],[128,16,128,17],[127,14,127,15],[129,14,129,15],[130,14,130,15],[130,16,130,17],[131,16,131,17],[132,10,132,11],[132,12,132,13],[132,14,132,15],[131,12,131,13],[21,2,21,3],[137,16,137,17],[134,16,134,17],[138,14,138,15],[140,14,140,15],[118,3,118,7],[90,3,90,7],[62,3,62,7],[88,2,89,9],[116,2,117,9],[118,12,118,13],[118,10,118,11],[122,16,122,17],[120,16,120,17],[121,16,121,17],[121,14,121,15],[119,16,119,17],[122,10,122,11],[122,12,122,13],[121,10,121,11],[119,14,119,15],[119,10,119,11],[119,12,119,13],[123,14,123,15],[35,4,36,5],[25,2,25,3],[22,2,22,3],[23,2,23,3],[49,2,49,3],[47,2,47,3],[45,2,45,3],[43,2,43,3],[41,2,41,3],[1,2,1,25],[2,2,2,25],[6,2,6,25],[8,4,8,25],[11,12,11,13],[11,8,11,9],[11,10,11,11],[118,16,118,17],[118,14,118,15],[16,2,16,3],[11,14,11,15],[10,4,11,5],[15,2,15,3],[14,2,14,3],[24,2,24,3],[35,6,35,25],[10,2,12,3],[10,6,10,25],[11,20,11,21],[26,2,26,3],[17,2,17,3],[19,2,19,3],[20,2,20,3],[18,2,18,3],[11,18,11,19],[11,16,11,17],[11,24,11,25],[11,6,11,7],[11,22,11,23],[42,2,42,3],[27,2,27,3],[36,18,36,19],[36,8,36,9],[28,2,28,3],[29,2,29,3],[30,2,30,3],[33,4,33,25],[36,14,36,15],[36,16,36,17],[36,10,36,11],[31,2,31,3],[36,24,36,25],[36,20,36,21],[36,22,36,23],[36,6,36,7],[36,12,36,13],[35,2,37,3],[40,2,40,3],[61,24,61,25],[55,2,55,3],[54,2,54,3],[44,2,44,3],[56,2,56,3],[51,2,51,3],[46,2,46,3],[50,2,50,3],[48,2,48,3],[60,12,60,31],[61,30,61,31],[61,28,61,29],[61,18,61,19],[60,2,61,9],[52,2,52,3],[61,26,61,27],[61,22,61,23],[58,4,58,27],[61,14,61,15],[61,16,61,17],[61,20,61,21],[60,10,61,11],[61,12,61,13],[53,2,53,3],[136,14,136,15],[135,14,135,15],[134,14,134,15],[89,30,89,31],[117,14,117,17],[116,10,116,17],[88,10,89,11],[89,16,89,17],[117,10,117,13],[88,12,88,31],[89,12,89,13],[89,22,89,23],[89,28,89,29],[89,18,89,19],[120,10,120,11],[125,14,125,15],[133,14,133,15],[133,16,133,17],[126,14,126,15],[126,16,126,17],[123,12,123,13],[124,12,124,13],[132,16,132,17],[130,12,130,13],[137,10,137,11],[137,12,137,13],[136,10,136,11],[136,12,136,13],[120,14,120,15],[122,14,122,15],[121,12,121,13],[125,10,125,11],[123,10,123,11],[124,10,124,11],[125,12,125,13],[133,10,133,11],[134,10,134,11],[134,12,134,13],[135,10,135,11],[135,12,135,13],[128,14,128,15],[129,12,129,13],[131,10,131,11],[130,10,130,11],[120,12,120,13],[124,14,124,15],[131,14,131,15],[137,14,137,15],[223,3,223,9],[221,10,222,11],[193,10,194,11],[219,4,219,20],[195,3,195,9],[193,2,194,9],[168,12,168,13],[168,14,168,15],[248,6,249,7],[182,2,182,3],[221,2,222,9],[172,4,173,4],[172,5,172,22],[249,14,249,15],[248,8,248,23],[186,2,187,3],[186,4,187,4],[188,2,188,3],[189,2,189,3],[186,5,186,12],[248,2,250,5],[249,12,249,13],[249,20,249,21],[249,22,249,23],[316,22,316,23],[316,14,316,15],[316,16,316,17],[316,18,316,19],[269,22,269,23],[269,20,269,21],[278,22,278,23],[316,26,316,27],[316,20,316,21],[278,14,278,15],[278,16,278,17],[269,16,269,17],[345,4,345,5],[345,2,345,3],[179,2,180,3],[338,2,338,5],[319,2,319,5],[315,6,316,7],[336,2,336,5],[258,18,258,19],[342,6,342,15],[249,16,249,17],[249,18,249,19],[306,2,306,5],[307,2,307,5],[268,6,269,7],[258,12,258,13],[258,14,258,15],[322,2,322,5],[323,2,323,5],[324,2,324,5],[325,2,325,5],[326,2,326,5],[327,2,327,5],[328,2,328,5],[329,2,329,5],[166,16,166,17],[151,16,151,17],[150,16,150,17],[303,2,303,5],[311,2,311,5],[308,2,308,5],[309,2,309,5],[292,2,292,5],[191,4,191,20],[168,16,168,17],[286,4,286,20],[277,6,277,25],[278,6,278,7],[278,8,278,9],[278,10,278,11],[278,12,278,13],[278,18,278,19],[278,20,278,21],[288,3,290,5],[278,24,278,25],[258,20,258,21],[258,22,258,23],[310,2,310,5],[277,2,279,5],[86,4,86,27],[89,24,89,25],[89,26,89,27],[89,20,89,21],[89,14,89,15],[160,14,160,15],[165,10,165,11],[165,12,165,13],[162,16,162,17],[163,14,163,15],[163,16,163,17],[164,16,164,17],[162,14,162,15],[164,14,164,15],[163,12,163,13],[138,16,138,17],[139,16,139,17],[140,16,140,17],[136,16,136,17],[144,2,145,9],[146,3,146,7],[165,16,165,17],[150,14,150,15],[135,16,135,17],[355,2,355,3],[355,4,355,5],[167,10,167,11],[167,12,167,13],[167,14,167,15],[166,12,166,13],[269,12,269,13],[354,4,354,5],[347,2,347,3],[337,2,337,5],[342,2,343,3],[353,4,353,5],[354,2,354,3],[351,4,352,5],[346,2,346,3],[346,4,346,5],[269,8,269,9],[269,10,269,11],[288,6,289,7],[288,8,288,27],[289,8,289,9],[289,10,289,11],[289,18,289,19],[289,26,289,27],[268,2,270,5],[269,18,269,19],[268,8,268,23],[269,14,269,15],[316,8,316,9],[257,6,257,25],[258,16,258,17],[258,24,258,25],[258,6,258,7],[258,8,258,9],[258,10,258,11],[289,12,289,13],[289,14,289,15],[289,16,289,17],[289,24,289,25],[316,10,316,11],[316,12,316,13],[289,20,289,21],[316,24,316,25],[289,22,289,23],[315,8,315,27],[304,2,304,5],[305,2,305,5],[257,2,259,5],[184,4,184,12],[193,12,193,17],[193,18,193,21],[193,22,193,25],[193,26,194,27],[193,28,194,29],[193,30,194,31],[193,32,194,33],[193,34,194,35],[193,36,194,37],[194,12,194,13],[194,14,194,15],[194,16,194,17],[194,18,194,19],[194,20,194,21],[194,22,194,23],[194,24,194,25],[221,12,221,17],[221,18,221,21],[221,22,221,25],[221,26,222,27],[221,28,222,29],[221,30,222,31],[221,32,222,33],[221,34,222,35],[221,36,222,37],[222,12,222,13],[222,14,222,15],[222,16,222,17],[222,18,222,19],[222,20,222,21],[222,22,222,23],[222,24,222,25]]}
[]
[null,null,"CENSO EDUCATIVO 2022"]
[null,null,"MATRÍCULA, DOCENTES Y RECURSOS"]
[]
[]
[]
[null,null,"200. MATRICULA Y SECCIONES (Para II.EE. Públicas y Privadas)"]
[]
[null,null,"CUADRO 201",null,"MATRÍCULA EN FORMACIÓN ARTÍSTICA, POR CICLOS Y SEXO, SEGÚN EDAD\n(Cumplida al 31 de marzo de 2022) (Sumar todos los turnos). Registrar la información del semestre académico 2022-I"]
[]
[null,null,"EDAD EN AÑOS\nCUMPLIDOS \nAL 31-03-2022",null,"TOTAL",null,"CICLO"]
[null,null,null,null,null,null,"I",null,"II",null,"III",null,"IV",null,"V",null,"VI",null,"VII",null,"VIII",null,"IX",null,"X"]
[null,null,null,null,"H","M","H","M","H","M","H","M","H","M","H","M","H","M","H","M","H","M","H","M","H","M"]
["00",null,"TOTAL",null,{"$f":"G14+I14+K14+M14+O14+Q14+S14+U14+W14+Y14","v":0},{"$f":"H14+J14+L14+N14+P14+R14+T14+V14+X14+Z14","v":0},{"$f":"SUM(G15:G32)","v":0},0,0,0,0,0,0,0,0,0,0,0,0,0,0,0,0,0,0,0]
["15",null,15,null,0,0]
["16",null,16,null,0,0]
["17",null,17,null,0,0]
["18",null,18,null,0,0]
["19",null,19,null,0,0]
["20",null,20,null,0,0]
["21",null,21,null,0,0]
["22",null,22,null,0,0]
["23",null,23,null,0,0]
["24",null,24,null,0,0]
["25",null,"25-29",null,0,0]
["30",null,"30-34",null,0,0]
["35",null,"35-39",null,0,0]
["40",null,"40-44",null,0,0]
["45",null,"45-49",null,0,0]
["50",null,"50-54",null,0,0]
["55",null,"55-59",null,0,0]
["60",null,"60 y más",null,0,0]
[null,null,"NOTA: Incluya a los estudiantes con algún tipo de discapacidad u otra condición."]
[null,null,"CUADRO 202",null,"MATRÍCULA EN EDUCACIÓN ARTÍSTICA, POR CICLOS Y SEXO, SEGÚN EDAD\n(Cumplida al 31 de marzo de 2022) (Sumar todos los turnos). Registrar la información del semestre académico 2022-I"]
[]
[null,null,"EDAD EN AÑOS\nCUMPLIDOS \nAL 31-03-2022",null,"TOTAL",null,"CICLO"]
[null,null,null,null,null,null,"I",null,"II",null,"III",null,"IV",null,"V",null,"VI",null,"VII",null,"VIII",null,"IX",null,"X"]
[null,null,null,null,"H","M","H","M","H","M","H","M","H","M","H","M","H","M","H","M","H","M","H","M","H","M"]
["00",null,"TOTAL",null,{"$f":"G39+I39+K39+M39+O39+Q39+S39+U39+W39+Y39","v":0},{"$f":"H39+J39+L39+N39+P39+R39+T39+V39+X39+Z39","v":0},{"$f":"SUM(G40:G57)","v":0},0,0,0,0,0,0,0,0,0,0,0,0,0,0,0,0,0,0,0]
["15",null,15,null,{"$f":"G40+I40+K40+M40+O40+Q40+S40+U40+W40+Y40","v":0},{"$f":"H40+J40+L40+N40+P40+R40+T40+V40+X40+Z40","v":0}]
["16",null,16,null,0,0]
["17",null,17,null,0,0]
["18",null,18,null,0,0]
["19",null,19,null,0,0]
["20",null,20,null,0,0]
["21",null,21,null,0,0]
["22",null,22,null,0,0]
["23",null,23,null,0,0]
["24",null,24,null,0,0]
["25",null,"25-29",null,0,0]
["30",null,"30-34",null,0,0]
["35",null,"35-39",null,0,0]
["40",null,"40-44",null,0,0]
["45",null,"45-49",null,0,0]
["50",null,"50-54",null,0,0]
["55",null,"55-59",null,0,0]
["60",null,"60 y más",null,0,0]
[null,null,"NOTA: Incluya a los estudiantes con algún tipo de discapacidad u otra condición."]
[null,null,"CUADRO 203",null,"MATRÍCULA EN FORMACIÓN ARTÍSTICA, POR CICLOS Y SEXO, SEGÚN CARRERA"]
[]
[null,null,"CARRERA",null,null,null,null,null,null,null,"TOTAL",null,"CICLO"]
[null,null,null,null,null,null,null,null,null,null,null,null,"I",null,"II",null,"III",null,"IV",null,"V",null,"VI",null,"VII",null,"VIII",null,"IX",null,"X"]
[null,null,"CÓDIGO","DENOMINACIÓN",null,null,null,null,null,null,"H","M","H","M","H","M","H","M","H","M","H","M","H","M","H","M","H","M","H","M","H","M"]
[null,null,"0000000000","TOTAL",null,null,null,null,null,null,{"$f":"M64+O64+Q64+S64+U64+W64+Y64+AA64+AC64+AE64","v":0},{"$f":"N64+P64+R64+T64+V64+X64+Z64+AB64+AD64+AF64","v":0},{"$f":"SUM(M65:M85)","v":0},0,0,0,0,0,0,0,0,0,0,0,0,0,0,0,0,0,0,0]
[null,null,null,{"$f":"IF(LEFT($C65,1)=\"G\",IF(ISERROR(VLOOKUP($C65,Newcarr,2,FALSE)),\"\",VLOOKUP($C65,Newcarr,2,FALSE)),IF(ISERROR(VLOOKUP($C65,Carrera,2,FALSE)),\"\",VLOOKUP($C65,Carrera,2,FALSE)))","v":""},null,null,null,null,null,null,{"$f":"M65+O65+Q65+S65+U65+W65+Y65+AA65+AC65+AE65","v":0},{"$f":"N65+P65+R65+T65+V65+X65+Z65+AB65+AD65+AF65","v":0}]
[null,null,null,"",null,null,null,null,null,null,0,0]
[null,null,null,"",null,null,null,null,null,null,0,0]
[null,null,null,"",null,null,null,null,null,null,0,0]
[null,null,null,"",null,null,null,null,null,null,0,0]
[null,null,null,"",null,null,null,null,null,null,0,0]
[null,null,null,"",null,null,null,null,null,null,0,0]
[null,null,null,"",null,null,null,null,null,null,0,0]
[null,null,null,"",null,null,null,null,null,null,{"$f":"M73+O73+Q73+S73+U73+W73+Y73+AA73+AC73+AE73","v":0},{"$f":"N73+P73+R73+T73+V73+X73+Z73+AB73+AD73+AF73","v":0}]
[null,null,null,null,null,null,null,null,null,null,0,0]
[null,null,null,null,null,null,null,null,null,null,0,0]
[null,null,null,null,null,null,null,null,null,null,0,0]
[null,null,null,null,null,null,null,null,null,null,0,0]
[null,null,null,null,null,null,null,null,null,null,{"$f":"M78+O78+Q78+S78+U78+W78+Y78+AA78+AC78+AE78","v":0},{"$f":"N78+P78+R78+T78+V78+X78+Z78+AB78+AD78+AF78","v":0}]
[null,null,null,null,null,null,null,null,null,null,0,0]
[null,null,null,{"$f":"IF(LEFT($C80,1)=\"G\",IF(ISERROR(VLOOKUP($C80,Newcarr,2,FALSE)),\"\",VLOOKUP($C80,Newcarr,2,FALSE)),IF(ISERROR(VLOOKUP($C80,Carrera,2,FALSE)),\"\",VLOOKUP($C80,Carrera,2,FALSE)))","v":""},null,null,null,null,null,null,0,0]
[null,null,null,"",null,null,null,null,null,null,0,0]
[null,null,null,"",null,null,null,null,null,null,0,0]
[null,null,null,"",null,null,null,null,null,null,0,0]
[null,null,null,"",null,null,null,null,null,null,0,0]
[null,null,null,"",null,null,null,null,null,null,0,0]
[null,null,"NOTA: los totales de esta tabla deben ser iguales a los de la tabla 201."]
[null,null,"TABLA 204",null,"MATRÍCULA EN EDUCACIÓN ARTÍSTICA, POR CICLOS Y SEXO, SEGÚN CARRERA"]
[]
[null,null,"CARRERA",null,null,null,null,null,null,null,"TOTAL",null,"CICLO"]
[null,null,null,null,null,null,null,null,null,null,null,null,"I",null,"II",null,"III",null,"IV",null,"V",null,"VI",null,"VII",null,"VIII",null,"IX",null,"X"]
[null,null,"CÓDIGO","DENOMINACIÓN",null,null,null,null,null,null,"H","M","H","M","H","M","H","M","H","M","H","M","H","M","H","M","H","M","H","M","H","M"]
[null,null,"0000000000","TOTAL",null,null,null,null,null,null,{"$f":"M92+O92+Q92+S92+U92+W92+Y92+AA92+AC92+AE92","v":0},{"$f":"N92+P92+R92+T92+V92+X92+Z92+AB92+AD92+AF92","v":0},{"$f":"SUM(M93:M113)","v":0},0,0,0,0,0,0,0,0,0,0,0,0,0,0,0,0,0,0,0]
[null,null,null,{"$f":"IF(LEFT($C93,1)=\"G\",IF(ISERROR(VLOOKUP($C93,Newcarr,2,FALSE)),\"\",VLOOKUP($C93,Newcarr,2,FALSE)),IF(ISERROR(VLOOKUP($C93,Carrera,2,FALSE)),\"\",VLOOKUP($C93,Carrera,2,FALSE)))","v":""},null,null,null,null,null,null,{"$f":"M93+O93+Q93+S93+U93+W93+Y93+AA93+AC93+AE93","v":0},{"$f":"N93+P93+R93+T93+V93+X93+Z93+AB93+AD93+AF93","v":0}]
[null,null,null,"",null,null,null,null,null,null,0,0]
[null,null,null,"",null,null,null,null,null,null,0,0]
[null,null,null,"",null,null,null,null,null,null,0,0]
[null,null,null,"",null,null,null,null,null,null,0,0]
[null,null,null,"",null,null,null,null,null,null,{"$f":"M98+O98+Q98+S98+U98+W98+Y98+AA98+AC98+AE98","v":0},{"$f":"N98+P98+R98+T98+V98+X98+Z98+AB98+AD98+AF98","v":0}]
[null,null,null,"",null,null,null,null,null,null,0,0]
[null,null,null,"",null,null,null,null,null,null,0,0]
[null,null,null,"",null,null,null,null,null,null,0,0]
[null,null,null,null,null,null,null,null,null,null,0,0]
[null,null,null,null,null,null,null,null,null,null,0,0]
[null,null,null,null,null,null,null,null,null,null,0,0]
[null,null,null,null,null,null,null,null,null,null,0,0]
[null,null,null,null,null,null,null,null,null,null,0,0]
[null,null,null,null,null,null,null,null,null,null,0,0]
[null,null,null,{"$f":"IF(LEFT($C108,1)=\"G\",IF(ISERROR(VLOOKUP($C108,Newcarr,2,FALSE)),\"\",VLOOKUP($C108,Newcarr,2,FALSE)),IF(ISERROR(VLOOKUP($C108,Carrera,2,FALSE)),\"\",VLOOKUP($C108,Carrera,2,FALSE)))","v":""},null,null,null,null,null,null,0,0]
[null,null,null,"",null,null,null,null,null,null,0,0]
[null,null,null,"",null,null,null,null,null,null,0,0]
[null,null,null,"",null,null,null,null,null,null,0,0]
[null,null,null,"",null,null,null,null,null,null,0,0]
[null,null,null,"",null,null,null,null,null,null,0,0]
[null,null,"NOTA: Los totales de esta tabla deben ser iguales a los de la tabla 202."]
[null,null,"CUADRO 205",null,"POSTULANTES E INGRESANTES EN FORMACIÓN ARTÍSTICA, POR SEXO, SEGÚN CARRERA"]
[]
[null,null,"CARRERA",null,null,null,null,null,null,null,"SEMESTRE ACADÉMICO 2022-I"]
[null,null,null,null,null,null,null,null,null,null,"POSTULANTES",null,null,null,"INGRESANTES"]
[null,null,"CÓDIGO","DENOMINACIÓN",null,null,null,null,null,null,"H",null,"M",null,"H",null,"M"]
[null,null,"0000000000","TOTAL",null,null,null,null,null,null,{"$f":"SUM(K121:L141)","v":0},null,{"$f":"SUM(M121:N141)","v":0},null,{"$f":"SUM(O121:P141)","v":0},null,{"$f":"SUM(Q121:R141)","v":0}]
[null,null,{"$f":"IF(C65<>\"\",C65,\"\")","v":""},{"$f":"IF(D65<>\"\",D65,\"\")","v":""}]
[null,null,{"$f":"IF(C66<>\"\",C66,\"\")","v":""},""]
[null,null,{"$f":"IF(C67<>\"\",C67,\"\")","v":""},""]
[null,null,"",""]
[null,null,"",{"$f":"IF(D69<>\"\",D69,\"\")","v":""}]
[null,null,"",""]
[null,null,"",""]
[null,null,"",""]
[null,null,"",""]
[null,null,"",""]
[null,null,"",""]
[null,null,"",""]
[null,null,"",""]
[null,null,"",""]
[null,null,"",""]
[null,null,"",""]
[null,null,"",""]
[null,null,"",""]
[null,null,"",""]
[null,null,"",""]
[null,null,"",""]
[]
[null,null,"CUADRO 206. ",null,"POSTULANTES E INGRESANTES EN EDUCACIÓN ARTÍSTICA, POR SEXO, SEGÚN CARRERA"]
[]
[null,null,"CARRERA",null,null,null,null,null,null,null,"SEMESTRE ACADÉMICO 2022-I"]
[null,null,null,null,null,null,null,null,null,null,"POSTULANTES",null,null,null,"INGRESANTES"]
[null,null,"CÓDIGO","DENOMINACIÓN",null,null,null,null,null,null,"H",null,"M",null,"H",null,"M"]
[null,null,"0000000000","TOTAL",null,null,null,null,null,null,{"$f":"SUM(K149:L169)","v":0},null,{"$f":"SUM(M149:N169)","v":0},null,{"$f":"SUM(O149:P169)","v":0},null,{"$f":"SUM(Q149:R169)","v":0}]
[null,null,{"$f":"IF(C93<>\"\",C93,\"\")","v":""},""]
[null,null,"",""]
[null,null,"",""]
[null,null,{"$f":"IF(C96<>\"\",C96,\"\")","v":""},""]
[null,null,"",""]
[null,null,"",""]
[null,null,"",""]
[null,null,"",""]
[null,null,"",""]
[null,null,"",""]
[null,null,"",""]
[null,null,"",""]
[null,null,"",""]
[null,null,"",""]
[null,null,"",""]
[null,null,"",""]
[null,null,"",""]
[null,null,"",""]
[null,null,"",""]
[null,null,"",""]
[null,null,"",""]
[]
[null,null,"CUADRO 207 ",null,"INGRESANTES EN FORMACIÓN ARTÍSTICA, POR EDAD, SEGÚN SEXO"]
[]
[null,null,"SEXO",null,"TOTAL","EDAD EN AÑOS CUMPLIDOS AL 31 DE MARZO DE 2022 / SEMESTRE 2022-I"]
[null,null,null,null,null,15,16,17,18,19,20,21,22,23,24,"25-29","30-34","35-39","40-44","45-49","50-54","55-59","60 y más"]
["01",null,"Hombre",null,{"$f":"SUM(F175:W175)","v":0}]
["02",null,"Mujer",null,{"$f":"SUM(F176:W176)","v":0}]
[null,null,"NOTA: Los totales de esta tabla deben ser iguales a los reportados en la columna “Ingresantes” de la tabla 205."]
[null,null,"CUADRO 208",null,"INGRESANTES EN EDUCACIÓN ARTÍSTICA, POR EDAD, SEGÚN SEXO"]
[]
[null,null,"SEXO",null,"TOTAL","EDAD EN AÑOS CUMPLIDOS AL 31 DE MARZO DE 2022 / SEMESTRE 2022-I"]
[null,null,null,null,null,15,16,17,18,19,20,21,22,23,24,"25-29","30-34","35-39","40-44","45-49","50-54","55-59","60 y más"]
["01",null,"Hombre",null,{"$f":"SUM(F182:W182)","v":0}]
["02",null,"Mujer",null,{"$f":"SUM(F183:W183)","v":0}]
[null,null,"NOTA: Los totales de esta tabla deben ser iguales a los reportados en la columna “Ingresantes” de la tabla 206."]
[null,null,"CUADRO 209",null,"MATRÍCULA EN FORMACIÓN ARTÍSTICA, POR SEXO Y CICLO I, SEGÚN AÑO DE EGRESO DE LA EDUCACIÓN BÁSICA REGULAR"]
[]
[null,null,"SEXO",null,"TOTAL","AÑO QUE EGRESO O TERMINÓ LA EDUCACIÓN BÁSICA REGULAR"]
[null,null,null,null,null,2022,2021,2020,2019,2018,2017,2016,"Menor a 2016"]
["01",null,"Hombre",null,{"$f":"SUM(F189:M189)","v":0}]
["02",null,"Mujer",null,{"$f":"SUM(F190:M190)","v":0}]
[]
[null,null,"CUADRO 210. ",null,"MATRÍCULA POR TIPO DE DISCAPACIDAD U OTRA CONDICIÓN Y SEXO, SEGÚN CARRERA"]
[]
[null,null,"CARRERAS",null,null,null,null,null,null,null,"TOTAL",null,"Discapacidad Intelectual",null,null,null,null,null,"Discapacidad Auditiva",null,null,null,"Discapacidad Visual",null,null,null,"Discapacidad Física o Motora",null,"Trastorno del Espectro Autista",null,"Sordoceguera",null,"Multidis-capacidad",null,"Otra discapacidad u otra condición",null," Ninguna  discapacidad"]
[null,null,null,null,null,null,null,null,null,null,null,null,"Retardo mental leve",null,"Retardo mental moderado",null,"Retardo mental severo",null,"Hipoacusia",null,"Sordera total",null,"Baja visión",null,"Ceguera"]
[null,null,"CÓDIGO","DENOMINACIÓN",null,null,null,null,null,null,"H","M","H","M","H","M","H","M","H","M","H","M","H","M","H","M","H","M","H","M","H","M","H","M","H","M","H","M"]
[null,null,"000000","TOTAL",null,null,null,null,null,null,{"$f":"SUM(K198:K217)","v":0},{"$f":"SUM(L198:L217)","v":0},{"$f":"SUM(M198:M217)","v":0},{"$f":"SUM(N198:N217)","v":0},{"$f":"SUM(O198:O217)","v":0},0,0,0,0,0,0,0,0,0,0,0,0,0,0,0,{"$f":"SUM(AE198:AE217)","v":0},0,0,0,0,0,0,{"$f":"SUM(AL198:AL217)","v":0}]
["1",null,null,{"$f":"IF(LEFT($C198,1)=\"G\",IF(ISERROR(VLOOKUP($C198,Newcarr,2,FALSE)),\"\",VLOOKUP($C198,Newcarr,2,FALSE)),IF(ISERROR(VLOOKUP($C198,Carrera,2,FALSE)),\"\",VLOOKUP($C198,Carrera,2,FALSE)))","v":""},null,null,null,null,null,null,{"$f":"M198+O198+Q198+S198+U198+W198+Y198+AA198+AC198+AE198+AG198+AI198+AK198","v":0},{"$f":"N198+P198+R198+T198+V198+X198+Z198+AB198+AD198+AF198+AH198+AJ198+AL198","v":0}]
["2",null,null,{"$f":"IF(LEFT($C199,1)=\"G\",IF(ISERROR(VLOOKUP($C199,Newcarr,2,FALSE)),\"\",VLOOKUP($C199,Newcarr,2,FALSE)),IF(ISERROR(VLOOKUP($C199,Carrera,2,FALSE)),\"\",VLOOKUP($C199,Carrera,2,FALSE)))","v":""},null,null,null,null,null,null,{"$f":"M199+O199+Q199+S199+U199+W199+Y199+AA199+AC199+AE199+AG199+AI199+AK199","v":0},{"$f":"N199+P199+R199+T199+V199+X199+Z199+AB199+AD199+AF199+AH199+AJ199+AL199","v":0}]
["3",null,null,{"$f":"IF(LEFT($C200,1)=\"G\",IF(ISERROR(VLOOKUP($C200,Newcarr,2,FALSE)),\"\",VLOOKUP($C200,Newcarr,2,FALSE)),IF(ISERROR(VLOOKUP($C200,Carrera,2,FALSE)),\"\",VLOOKUP($C200,Carrera,2,FALSE)))","v":""},null,null,null,null,null,null,0,0]
["4",null,null,"",null,null,null,null,null,null,0,0]
["5",null,null,"",null,null,null,null,null,null,0,0]
["6",null,null,"",null,null,null,null,null,null,0,0]
["7",null,null,"",null,null,null,null,null,null,0,0]
["8",null,null,"",null,null,null,null,null,null,0,0]
["9",null,null,"",null,null,null,null,null,null,0,0]
["10",null,null,"",null,null,null,null,null,null,0,0]
["11",null,null,"",null,null,null,null,null,null,0,0]
["12",null,null,"",null,null,null,null,null,null,0,0]
["13",null,null,"",null,null,null,null,null,null,0,0]
["14",null,null,"",null,null,null,null,null,null,0,0]
["15",null,null,"",null,null,null,null,null,null,0,0]
["16",null,null,"",null,null,null,null,null,null,0,0]
["17",null,null,"",null,null,null,null,null,null,0,0]
["18",null,null,"",null,null,null,null,null,null,0,0]
["19",null,null,"",null,null,null,null,null,null,0,0]
["20",null,null,"",null,null,null,null,null,null,0,0]
[null,null,"NOTA: Los totales de esta tabla deben ser iguales a la suma de los totales de las tablas 201 y 202."]
[]
[null,null,"CUADRO 211. ",null," INGRESANTES POR TIPO DE NECESIDAD EDUCATIVA ESPECIAL (NEE), SEGÚN CARRERA"]
[]
[null,null,"CARRERAS",null,null,null,null,null,null,null,"TOTAL",null,"Discapacidad Intelectual",null,null,null,null,null,"Discapacidad Auditiva",null,null,null,"Discapacidad Visual",null,null,null,"Discapacidad Física o Motora",null,"Trastorno del Espectro Autista",null,"Sordoceguera",null,"Multidis-capacidad",null,"Otra discapacidad u otra condición",null," Ninguna  discapacidad"]
[null,null,null,null,null,null,null,null,null,null,null,null,"Retardo mental leve",null,"Retardo mental moderado",null,"Retardo mental severo",null,"Hipoacusia",null,"Sordera total",null,"Baja visión",null,"Ceguera"]
[null,null,"CÓDIGO","DENOMINACIÓN",null,null,null,null,null,null,"H","M","H","M","H","M","H","M","H","M","H","M","H","M","H","M","H","M","H","M","H","M","H","M","H","M","H","M"]
[null,null,"000000","TOTAL",null,null,null,null,null,null,{"$f":"SUM(K226:K245)","v":0},{"$f":"SUM(L226:L245)","v":0},{"$f":"SUM(M226:M245)","v":0},{"$f":"SUM(N226:N245)","v":0},{"$f":"SUM(O226:O245)","v":0},0,0,0,0,0,0,0,0,0,0,0,0,0,0,0,{"$f":"SUM(AE226:AE245)","v":0},0,0,0,0,0,0,{"$f":"SUM(AL226:AL245)","v":0}]
["1",null,null,{"$f":"IF(LEFT($C226,1)=\"G\",IF(ISERROR(VLOOKUP($C226,Newcarr,2,FALSE)),\"\",VLOOKUP($C226,Newcarr,2,FALSE)),IF(ISERROR(VLOOKUP($C226,Carrera,2,FALSE)),\"\",VLOOKUP($C226,Carrera,2,FALSE)))","v":""},null,null,null,null,null,null,{"$f":"M226+O226+Q226+S226+U226+W226+Y226+AA226+AC226+AE226+AG226+AI226+AK226","v":0},{"$f":"N226+P226+R226+T226+V226+X226+Z226+AB226+AD226+AF226+AH226+AJ226+AL226","v":0}]
["2",null,null,{"$f":"IF(LEFT($C227,1)=\"G\",IF(ISERROR(VLOOKUP($C227,Newcarr,2,FALSE)),\"\",VLOOKUP($C227,Newcarr,2,FALSE)),IF(ISERROR(VLOOKUP($C227,Carrera,2,FALSE)),\"\",VLOOKUP($C227,Carrera,2,FALSE)))","v":""},null,null,null,null,null,null,{"$f":"M227+O227+Q227+S227+U227+W227+Y227+AA227+AC227+AE227+AG227+AI227+AK227","v":0},{"$f":"N227+P227+R227+T227+V227+X227+Z227+AB227+AD227+AF227+AH227+AJ227+AL227","v":0}]
["3",null,null,{"$f":"IF(LEFT($C228,1)=\"G\",IF(ISERROR(VLOOKUP($C228,Newcarr,2,FALSE)),\"\",VLOOKUP($C228,Newcarr,2,FALSE)),IF(ISERROR(VLOOKUP($C228,Carrera,2,FALSE)),\"\",VLOOKUP($C228,Carrera,2,FALSE)))","v":""},null,null,null,null,null,null,0,0]
["4",null,null,"",null,null,null,null,null,null,0,0]
["5",null,null,"",null,null,null,null,null,null,0,0]
["6",null,null,"",null,null,null,null,null,null,0,0]
["7",null,null,"",null,null,null,null,null,null,0,0]
["8",null,null,"",null,null,null,null,null,null,0,0]
["9",null,null,"",null,null,null,null,null,null,0,0]
["10",null,null,"",null,null,null,null,null,null,0,0]
["11",null,null,"",null,null,null,null,null,null,0,0]
["12",null,null,"",null,null,null,null,null,null,0,0]
["13",null,null,"",null,null,null,null,null,null,0,0]
["14",null,null,"",null,null,null,null,null,null,0,0]
["15",null,null,"",null,null,null,null,null,null,0,0]
["16",null,null,"",null,null,null,null,null,null,0,0]
["17",null,null,"",null,null,null,null,null,null,0,0]
["18",null,null,"",null,null,null,null,null,null,0,0]
["19",null,null,"",null,null,null,null,null,null,0,0]
["20",null,null,"",null,null,null,null,null,null,0,0]
[null,null,"NOTA: Los totales de esta tabla deben ser iguales a la suma de las tablas 205 y 206 reportados en la columna “Ingresantes”"]
[null,null,"CUADRO 212. ",null,"MATRICULA EN FORMACIÓN ARTÍSTICA POR EDAD Y SEXO, SEGÚN TIPO DE PROGRAMA DE REPARACIONES EN EDUCACIÓN (Ley N° 28592)"]
[]
[null,null,"TIPO DE PROGRAMA DE REPARACIÓN EN EDUCACIÓN",null,null,null,"TOTAL",null,"EDAD"]
[null,null,null,null,null,null,null,null,15,null,16,null,17,null,18,null,19,null,20,null,21,null,22]
[null,null,null,null,null,null,"H","M","H","M","H","M","H","M","H","M","H","M","H","M","H","M","H","M"]
["00",null,"TOTAL",null,null,null,{"$f":"I252+K252+M252+O252+Q252+S252+U252+W252+Y252+AA252","v":0},{"$f":"J252+L252+N252+P252+R252+T252+V252+X252+Z252+AB252","v":0},{"$f":"SUM(I253:I256)","v":0},{"$f":"SUM(J253:J256)","v":0},{"$f":"SUM(K253:K256)","v":0},0,0,0,0,0,0,0,0,0,0,0,0,0,{"$f":"G261+I261+K261+M261+O261+Q261+S261+U261+W261+Y261","v":0},{"$f":"H261+J261+L261+N261+P261+R261+T261+V261+X261+Z261","v":0},{"$f":"I252+K252+M252+O252+Q252+S252+U252+W252","v":0},{"$f":"J252+L252+N252+P252+R252+T252+V252+X252","v":0}]
["01",null,"RUV - Víctimas directas",null,null,null,{"$f":"I253+K253+M253+O253+Q253+S253+U253+W253+Y253","v":0},0,null,null,null,null,null,null,null,null,null,null,null,null,null,null,null,null,{"$f":"G262+I262+K262+M262+O262+Q262+S262+U262+W262+Y262","v":0},0,{"$f":"I253+K253+M253+O253+Q253+S253+U253+W253","v":0},{"$f":"J253+L253+N253+P253+R253+T253+V253+X253","v":0}]
["02",null,"REBRED-Transf. de beneficios",null,null,null,0,0,null,null,null,null,null,null,null,null,null,null,null,null,null,null,null,null,0,0,0,0]
["03",null,"Otros Programas del Estado",null,null,null,0,0,null,null,null,null,null,null,null,null,null,null,null,null,null,null,null,null,0,0,0,0]
["04",null,"Estudiante no beneficiado",null,null,null,0,0,null,null,null,null,null,null,null,null,null,null,null,null,null,null,null,null,0,0,0,0]
[null,null,"CONTINUACIÓN TABLA 212 …."]
[null,null,"TIPO DE PROGRAMA DE REPARACIÓN EN EDUCACIÓN",null,null,null,"EDAD"]
[null,null,null,null,null,null,23,null,24,null,"25-29",null,"30-34",null,"35-39",null,"40-44",null,"45-49",null,"50-54",null,"55-59",null,"60 y más"]
[null,null,null,null,null,null,"H","M","H","M","H","M","H","M","H","M","H","M","H","M","H","M","H","M","H","M"]
["00",null,"TOTAL",null,null,null,{"$f":"SUM(G262:G265)","v":0},0,0,0,0,0,0,0,0,0,0,0,0,0,0,0,0,0,0,0]
["01",null,"RUV - Víctimas directas"]
["02",null,"REBRED-Transf. de beneficios"]
["03",null,"Otros Programas del Estado"]
["04",null,"Estudiante no beneficiado"]
[]
[null,null,"CUADRO 213. ",null,"MATRICULA EN EDUCACIÓN ARTÍSTICA POR EDAD Y SEXO, SEGÚN TIPO DE PROGRAMA DE REPARACIONES EN EDUCACIÓN (Ley N° 28592)"]
[]
[null,null,"TIPO DE PROGRAMA DE REPARACIÓN EN EDUCACIÓN",null,null,null,"TOTAL",null,"EDAD"]
[null,null,null,null,null,null,null,null,15,null,16,null,17,null,18,null,19,null,20,null,21,null,22]
[null,null,null,null,null,null,"H","M","H","M","H","M","H","M","H","M","H","M","H","M","H","M","H","M"]
["00",null,"TOTAL",null,null,null,{"$f":"I272+K272+M272+O272+Q272+S272+U272+W272+Y272+AA272","v":0},{"$f":"J272+L272+N272+P272+R272+T272+V272+X272+Z272+AB272","v":0},{"$f":"SUM(I273:I276)","v":0},{"$f":"SUM(J273:J276)","v":0},{"$f":"SUM(K273:K276)","v":0},0,0,0,0,0,0,0,0,0,0,0,0,0,{"$f":"G281+I281+K281+M281+O281+Q281+S281+U281+W281+Y281","v":0},{"$f":"H281+J281+L281+N281+P281+R281+T281+V281+X281+Z281","v":0},{"$f":"I272+K272+M272+O272+Q272+S272+U272+W272","v":0},{"$f":"J272+L272+N272+P272+R272+T272+V272+X272","v":0}]
["01",null,"RUV - Víctimas directas",null,null,null,{"$f":"I273+K273+M273+O273+Q273+S273+U273+W273+Y273","v":0},0,null,null,null,null,null,null,null,null,null,null,null,null,null,null,null,null,{"$f":"G282+I282+K282+M282+O282+Q282+S282+U282+W282+Y282","v":0},0,{"$f":"I273+K273+M273+O273+Q273+S273+U273+W273","v":0},{"$f":"J273+L273+N273+P273+R273+T273+V273+X273","v":0}]
["02",null,"REBRED-Transf. de beneficios",null,null,null,0,0,null,null,null,null,null,null,null,null,null,null,null,null,null,null,null,null,0,0,0,0]
["03",null,"Otros Programas del Estado",null,null,null,0,0,null,null,null,null,null,null,null,null,null,null,null,null,null,null,null,null,0,0,0,0]
["04",null,"Estudiante no beneficiado",null,null,null,0,0,null,null,null,null,null,null,null,null,null,null,null,null,null,null,null,null,0,0,0,0]
[null,null,"CONTINUACIÓN TABLA 213 …."]
[null,null,"TIPO DE PROGRAMA DE REPARACIÓN EN EDUCACIÓN",null,null,null,"EDAD"]
[null,null,null,null,null,null,23,null,24,null,"25-29",null,"30-34",null,"35-39",null,"40-44",null,"45-49",null,"50-54",null,"55-59",null,"60 y más"]
[null,null,null,null,null,null,"H","M","H","M","H","M","H","M","H","M","H","M","H","M","H","M","H","M","H","M"]
["00",null,"TOTAL",null,null,null,{"$f":"SUM(G282:G285)","v":0},0,0,0,0,0,0,0,0,0,0,0,0,0,0,0,0,0,0,0]
["01",null,"RUV - Víctimas directas"]
["02",null,"REBRED-Transf. de beneficios"]
["03",null,"Otros Programas del Estado"]
["04",null,"Estudiante no beneficiado"]
[]
[null,null,"CUADRO 214. ",null,"MATRÍCULA EN FORMACIÓN ARTÍSTICA, POR CICLOS Y SEXO, SEGÚN LENGUA MATERNA\n(Sumar todos los turnos). Registrar la información del semestre académico 2022-I "]
[]
[null,null,null,"LENGUA MATERNA",null,null,"TOTAL",null,"CICLO"]
[null,null,"CÓDIGO",null,null,null,null,null,"I",null,"II",null,"III",null,"IV",null,"V",null,"VI",null,"VII",null,"VIII",null,"IX",null,"X"]
[null,null,null,null,null,null,"H","M","H","M","H","M","H","M","H","M","H","M","H","M","H","M","H","M","H","M","H","M"]
[null,null,"0000 : TOTAL",null,null,null,{"$f":"I292+K292+M292+O292+Q292+S292+U292+W292+Y292+AA292","v":0},{"$f":"J292+L292+N292+P292+R292+T292+V292+X292+Z292+AB292","v":0},{"$f":"SUM(I293:I312)","v":0},0,0,0,0,0,0,0,0,0,0,0,0,0,0,0,0,0,0,0]
[null,null,null,null,null,null,{"$f":"I293+K293+M293+O293+Q293+S293+U293+W293+Y293+AA293","v":0},0]
[null,null,null,null,null,null,{"$f":"I294+K294+M294+O294+Q294+S294+U294+W294+Y294+AA294","v":0},{"$f":"J294+L294+N294+P294+R294+T294+V294+X294+Z294+AB294","v":0}]
[null,null,null,null,null,null,0,0]
[null,null,null,null,null,null,0,0]
[null,null,null,null,null,null,{"$f":"I297+K297+M297+O297+Q297+S297+U297+W297+Y297+AA297","v":0},{"$f":"J297+L297+N297+P297+R297+T297+V297+X297+Z297+AB297","v":0}]
[null,null,null,null,null,null,0,0]
[null,null,null,null,null,null,0,0]
[null,null,null,null,null,null,0,0]
[null,null,null,null,null,null,0,0]
[null,null,null,null,null,null,0,0]
[null,null,null,null,null,null,0,0]
[null,null,null,null,null,null,0,0]
[null,null,null,null,null,null,{"$f":"I305+K305+M305+O305+Q305+S305+U305+W305+Y305+AA305","v":0},0]
[null,null,null,null,null,null,0,0]
[null,null,null,null,null,null,0,0]
[null,null,null,null,null,null,0,0]
[null,null,null,null,null,null,0,0]
[null,null,null,null,null,null,0,0]
[null,null,null,null,null,null,0,0]
[null,null,null,null,null,null,0,0]
[null,null,"Nota: Los totales de esta tabla deben ser iguales a la tabla 201"]
[null,null,"CUADRO 215. ",null,"MATRÍCULA EN EDUCACIÓN ARTÍSTICA, POR CICLOS Y SEXO, SEGÚN LENGUA MATERNA\n(Sumar todos los turnos). Registrar la información del semestre académico 2022-I "]
[]
[null,null,null,"LENGUA MATERNA",null,null,"TOTAL",null,"CICLO"]
[null,null,"CÓDIGO",null,null,null,null,null,"I",null,"II",null,"III",null,"IV",null,"V",null,"VI",null,"VII",null,"VIII",null,"IX",null,"X"]
[null,null,null,null,null,null,"H","M","H","M","H","M","H","M","H","M","H","M","H","M","H","M","H","M","H","M","H","M"]
[null,null,"0000 : TOTAL",null,null,null,{"$f":"I319+K319+M319+O319+Q319+S319+U319+W319+Y319+AA319","v":0},{"$f":"J319+L319+N319+P319+R319+T319+V319+X319+Z319+AB319","v":0},{"$f":"SUM(I320:I339)","v":0},{"$f":"SUM(J320:J339)","v":0},{"$f":"SUM(K320:K339)","v":0},{"$f":"SUM(L320:L339)","v":0},{"$f":"SUM(M320:M339)","v":0},0,0,0,0,0,0,0,0,0,0,0,0,0,{"$f":"SUM(AA320:AA339)","v":0},{"$f":"SUM(AB320:AB339)","v":0}]
[null,null,null,null,null,null,{"$f":"I320+K320+M320+O320+Q320+S320+U320+W320+Y320+AA320","v":0},{"$f":"J320+L320+N320+P320+R320+T320+V320+X320+Z320+AB320","v":0}]
[null,null,null,null,null,null,{"$f":"I321+K321+M321+O321+Q321+S321+U321+W321+Y321+AA321","v":0},{"$f":"J321+L321+N321+P321+R321+T321+V321+X321+Z321+AB321","v":0}]
[null,null,null,null,null,null,{"$f":"I322+K322+M322+O322+Q322+S322+U322+W322+Y322+AA322","v":0},{"$f":"J322+L322+N322+P322+R322+T322+V322+X322+Z322+AB322","v":0}]
[null,null,null,null,null,null,0,0]
[null,null,null,null,null,null,0,0]
[null,null,null,null,null,null,0,0]
[null,null,null,null,null,null,0,0]
[null,null,null,null,null,null,0,0]
[null,null,null,null,null,null,0,0]
[null,null,null,null,null,null,0,0]
[null,null,null,null,null,null,0,0]
[null,null,null,null,null,null,0,0]
[null,null,null,null,null,null,0,0]
[null,null,null,null,null,null,{"$f":"I333+K333+M333+O333+Q333+S333+U333+W333+Y333+AA333","v":0},0]
[null,null,null,null,null,null,0,0]
[null,null,null,null,null,null,0,0]
[null,null,null,null,null,null,0,0]
[null,null,null,null,null,null,0,0]
[null,null,null,null,null,null,0,0]
[null,null,null,null,null,null,0,0]
[null,null,"Nota: Los totales de esta tabla deben ser iguales a la tabla 202"]
[null,null,"CUADRO 216",null,"NÚMERO TOTAL DE SECCIONES EN FORMACIÓN ARTÍSTICA POR CICLO, SEGÚN TURNO"]
[]
[null,null,"TURNO",null,"TOTAL",null,"CICLO"]
[null,null,null,null,null,null,"I","II","III","IV","V","VI","VII","VIII","IX","X"]
["00",null,"TOTAL",null,{"$f":"SUM(G345:P345)","v":0},null,{"$f":"SUM(G346:G348)","v":0},{"$f":"SUM(H346:H348)","v":0},{"$f":"SUM(I346:I348)","v":0},0,0,0,0,0,0,{"$f":"SUM(P346:P348)","v":0}]
["01",null,"Mañana",null,{"$f":"SUM(G346:P346)","v":0}]
["02",null,"Tarde",null,{"$f":"SUM(G347:P347)","v":0}]
["03",null,"Noche",null,{"$f":"SUM(G348:P348)","v":0}]
[]
[null,null,"CUADRO 217",null,"NÚMERO TOTAL DE SECCIONES EN EDUCACIÓN ARTÍSTICA POR CICLO, SEGÚN TURNO"]
[]
[null,null,"TURNO",null,"TOTAL",null,"CICLO"]
[null,null,null,null,null,null,"I","II","III","IV","V","VI","VII","VIII","IX","X"]
["00",null,"TOTAL",null,{"$f":"SUM(G354:P354)","v":0},null,{"$f":"SUM(G355:G357)","v":0},0,0,0,0,0,0,0,0,0]
["01",null,"Mañana",null,{"$f":"SUM(G355:P355)","v":0}]
["02",null,"Tarde",null,{"$f":"SUM(G356:P356)","v":0}]
["03",null,"Noche",null,{"$f":"SUM(G357:P357)","v":0}]
[]
[null,null,"CUADRO 218",null,"PORCENTAJE DE ESTUDIANTES, SEGÚN LA REGIÓN DE PROCEDENCIA"]
[]
[null,null,"REGIONES",null,null,"PORCENTAJE",null,null,null,"REGIONES",null,null,null,"PORCENTAJE"]
[]
[null,null,"01","AMAZONAS",null,null,null,"%",null,14,"LAMBAYEQUE",null,null,null,null,"%"]
[null,null,"02","ÁNCASH",null,null,null,"%",null,15,"LIMA",null,null,null,null,"%"]
[null,null,"03","APURÍMAC",null,null,null,"%",null,16,"LORETO",null,null,null,null,"%"]
[null,null,"04","AREQUIPA",null,null,null,"%",null,17,"MADRE DE DIOS",null,null,null,null,"%"]
[null,null,"05","AYACUCHO",null,null,null,"%",null,18,"MOQUEGUA",null,null,null,null,"%"]
[null,null,"06","CAJAMARCA",null,null,null,"%",null,19,"PASCO",null,null,null,null,"%"]
[null,null,"07","CALLAO",null,null,null,"%",null,20,"PIURA",null,null,null,null,"%"]
[null,null,"08","CUSCO",null,null,null,"%",null,21,"PUNO",null,null,null,null,"%"]
[null,null,"09","HUANCAVELICA",null,null,null,"%",null,22,"SAN MARTÍN",null,null,null,null,"%"]
[null,null,"10","HUÁNUCO",null,null,null,"%",null,23,"TACNA",null,null,null,null,"%"]
[null,null,"11","ICA",null,null,null,"%",null,24,"TUMBES",null,null,null,null,"%"]
[null,null,12,"JUNÍN",null,null,null,"%",null,25,"UCAYALI",null,null,null,null,"%"]
[null,null,13,"LA LIBERTAD",null,null,null,"%",null,"00","TOTAL",null,null,{"$f":"SUM(F363:G375,N363:O374)","v":0},null,"%"]
[null,null,"Nota: Considere a todos los estudiantes matriculados de la misma región y de las otras regiones de procedencia."]
[]
[]
[]
[]
[]
[]
[]
[]
["Lengua Materna"]
["0100: Castellano"]
["0200: Achuar"]
["0300: Aimara"]
["0400: Amahuaca"]
["0500: Arabela"]
["0600: Ashaninka"]
["0610: Asheninka"]
["0700: Awajún"]
["0800: Bora"]
["0900: Kapanawa"]
["1000: Cashinahua"]
["1100: Kawki"]
["1200: Chamikuro"]
["1300: Ese eja"]
["1400: Harakbut"]
["1500: Iñapari"]
["1600: Ikitu"]
["1700: Iskonawa"]
["1800: Jaqaru"]
["1900: Kakataibo"]
["2000: Kakinte"]
["2110: Kandozi-chapra (chapra)"]
["2120: Kandozi-chapra (kandozi)"]
["2200: Kukama kukamiria"]
["2300: Madija"]
["2400: Maijiki"]
["2500: Matsés"]
["2600: Matsigenka"]
["2700: Muniche"]
["2800: Murui-muinani"]
["2900: Matsigenka-montetokunirira"]
["3000: Nomatsigenga"]
["3100: Ocaina"]
["3200: Omagua"]
["3310: Quechua amazónico (Kichwa)"]
["3321: Quechua central (Ancash)"]
["3322: Quechua central (Huánuco)"]
["3323: Quechua central (Wanka)"]
["3324: Quechua central (Pasco)"]
["3331: Quechua norteño (Cajamarca)"]
["3332: Quechua norteño (Inkawasi Kañaris)"]
["3341: Quechua sureño (Chanka)"]
["3342: Quechua sureño (Collao)"]
["3400: Resigaro"]
["3500: Secoya"]
["3600: Sharanahua"]
["3700: Shawi"]
["3800: Shipibo-Konibo"]
["3900: Shiwilu"]
["4000: Taushiro"]
["4100: Ticuna"]
["4200: Urarina"]
["4300: Wampis"]
["4400: Yagua"]
["4500: Yaminahua"]
["4600: Yanesha"]
["4700: Yine"]
["4800: Nahua"]
["5000: Otra lengua originaria"]
["5100: Alemán"]
["5200: Inglés"]
["5300: Italiano"]
["5400: Japonés"]
["5500: Portugués"]
["5600: Ruso"]
["5700: Francés"]
["5800: Otra lengua extranjera"]

{"sheet":"C300","index":3,"n_rows":520,"n_cols":66,"rows_kept":520,"cut":false,"hidden":false,"merged":[[1,12,1,18],[2,12,2,18],[15,59,17,59],[15,60,17,60],[15,61,17,61],[15,23,17,23],[15,25,17,25],[15,22,17,22],[15,27,17,27],[7,10,7,20],[6,10,6,20],[15,35,17,35],[15,31,17,31],[15,28,17,28],[15,29,16,30],[14,29,14,30],[15,33,17,33],[15,32,17,32],[15,34,17,34],[15,62,17,62],[15,20,16,21],[15,57,17,57],[15,58,17,58],[16,54,17,54],[16,53,17,53],[15,40,16,49],[14,20,14,21],[14,50,14,53],[15,26,17,26],[15,24,17,24],[14,54,14,56],[16,55,16,56],[15,54,15,56],[15,36,17,36],[15,37,17,37],[15,38,17,38],[16,50,17,50],[16,51,17,51],[16,52,17,52],[14,40,14,49],[15,50,15,53],[15,39,17,39],[15,19,17,19],[15,18,17,18],[15,14,15,15],[14,14,14,15],[15,16,17,16],[15,17,17,17]]}
[]
[null,null,null,null,null,null,null,null,null,null,null,null,"CENSO EDUCATIVO 2022"]
[null,null,null,null,null,null,null,null,null,null,null,null,"MATRÍCULA, DOCENTES Y RECURSOS"]
[]
["PERSONAL",{"$f":"N10+S10","v":0}]
[]
["DOCENTES",{"$f":"COUNTIF(Q19:Q518,\"01: Docente\")","v":0},null,null,null,null,null,null,null,null,"300. PERSONAL DOCENTE Y ADMINISTRATIVO (Para II.EE. Públicas y Privadas)"]
["ADMINISTRATIVOS",{"$f":"COUNTIF(Q19:Q518,\"02: Administrativo\")","v":0},null,null,null,null,null,null,null,null,"En esta tabla, REGISTRE a todo el personal docente, auxiliares de educación y personal administrativo que se encuentre laborando en el servicio/nivel educativo durante el periodo\nde reporte del censo educativo. (EXCLUYA al personal que se encuentre haciendo uso de licencia y a los que han sido destacados a otra IE/DRE/UGEL)"]
[]
["DOCENTES CON SECCIÓN",{"$f":"COUNTIF(AN19:AN518,\"SI\")","v":0},null,null,null,null,null,null,null,null,null,null,"TOTAL DOCENTES : ",null,null,null,null,"ADMINISTRATIVOS : "]
[]
[null,{"$f":"B7+B8","v":0},null,null,null,null,null,null,null,null,"A continuación registre a todo el personal que desempeñe funciones docentes en el Servicio/Nivel educativo: Directivos con o sin aula a cargo, docentes de aula, jefes o jerárquicos"]
[null,null,null,null,null,null,null,null,null,null,"Documentos fuente: Legajo de personal y CAP de la institución educativa."]
[null,null,3,4,5,6,7,8,9]
[null,null,null,null,null,null,null,null,null,null,null,301.10000000000002,301.2,301.3,302,null,303,304,305,306,307,null,308,309,310,311,312,313,314,315,null,316,317,318,319,320,321,322,323,324,325,null,null,null,null,null,null,null,null,null,326,null,null,null,327,null,null,328,329,330,331,332,333]
["GESTIÓN",{"$f":"IF(OR('C100'!I21=\"X\",'C100'!L21=\"X\"),1,IF('C100'!O21=\"X\",3,\"\"))","v":""},null,null,null,null,null,null,null,null,null,null,null,null,"Documento de Identidad",null,"Tipo de Personal","Edad","Sexo","Cuál es la lengua materna con la que aprendió a hablar en su niñez?","Además de la lengua materna con la cual aprendió a hablar en su niñez\n¿Habla alguna otra lengua?",null,"Fuente de\nFinanciamiento","Condición Laboral","Modalidad del Contrato","Máximo Nivel\nEducativo Alcanzado","Especialidad Pedagógica que ha estudiado","¿En qué tipo de institución obtuvo su formación pedagógica?","Segunda Especialidad","Estudios de Postgrado en Pedagogía",null,"Tiempo de servicio\n(en años)","Año de Experiencia Laboral","Años de experiencia laboral en este servicio/nivel educativo","Escala Magisterial ","Función o Cargo","Situación en el cargo directivo","Licencia o Destaque","Jornada laboral según Nombra-miento o Contrato","¿Tiene secciónes a cargo?","Ciclo atendido\n(marque con una \"X\" según corresponda)",null,null,null,null,null,null,null,null,null,"Conocimientos de Inglés",null,null,null,"Certificación de Inglés",null,null,"Enseña idioma Inglés en el ESFA","¿Tiene algún conocimiento de las TICs?","Atiende a estudiantes con NEE asociadas a discapacidad?","¿Presenta alguna discapa-cidad?","Solo si respondió SI en la pregunta 331 ¿Cúal es el tipo de discapacidad?","¿Ha recibido asistencia y orientación para la atención educativa de estudiantes con discapacidad de parte del equipo (SAEV)?"]
[null,null,"Exp1","Exp2","Exp3","Exp4","Exp5","Exp6","Exp7",null,"Nº","Apellido paterno","Apellido materno","Nombres",302.10000000000002,302.2,null,null,null,null,null,null,null,null,null,null,null,null,null,null,null,null,null,null,null,null,null,null,null,null,null,null,null,null,null,null,null,null,null,null,"No Sabe","Habla","Lee","Escribe","No Tiene","Si Tiene"]
["303. Tipo de Personal","314. Tipo de inst. donde estudio","Corr","Escala","Gest","Secc","Tipo Pers","Duplex","Fmt",null,null,null,null,null,"Tipo","Número",null,null,null,null,"SI - NO","¿Qué otros idiomas o lengua originaria domina?",null,null,null,null,null,null,null,"Maestria","Doctorado",null,null,null,null,null,null,null,null,null,"I","II","III","IV","V","VI","VII","VIII","IX","X",null,null,null,null,null,"Nacional","Interna-\ncional"]
["01: Docente","01: IESP (Público)",1,{"$f":"IF(AND(LEFT(Q19,2)=\"01\",LEFT(W19,2)=\"01\",LEFT(X19,2)=\"01\",E19=1),1,0)","v":0},{"$f":"$B$16","v":""},{"$f":"COUNTIF(AO19:AX19,\"X\")","v":0},{"$f":"IF(Q19<>\"\",VALUE(LEFT(Q19,2)),0)","v":0},{"$f":"IF(P19<>\"\",COUNTIF($P$19:$P$518,P19),0)","v":0},{"$f":"IF(K19<>\"\",1,0)","v":0},null,{"$f":"IF(C19<=$B$5,C19,\"\")","v":""},null,null,null,null,null,null,null,null,null,null,null,null,null,null,null,null,null,null,null,null,null,null,null,null,null,null,null,null,null,null,null,null,null,null,null,null,null,null,null,null,null,null,null,null,null,null,null,null,null,null,null,null,null,{"$f":"IF($Z19<>\"\",IF(OR(LEFT($Z19,2)=\"01\",LEFT($Z19,2)=\"02\",LEFT($Z19,2)=\"04\",LEFT($Z19,2)=\"05\"),1,0),\"\")","v":""}]
["02: Administrativo","02: IESP (Privado)",2,{"$f":"IF(AND(LEFT(Q20,2)=\"01\",LEFT(W20,2)=\"01\",LEFT(X20,2)=\"01\",E20=1),1,0)","v":0},{"$f":"$B$16","v":""},{"$f":"COUNTIF(AO20:AX20,\"X\")","v":0},{"$f":"IF(Q20<>\"\",VALUE(LEFT(Q20,2)),0)","v":0},{"$f":"IF(P20<>\"\",COUNTIF($P$19:$P$518,P20),0)","v":0},0,null,{"$f":"IF(C20<=$B$5,C20,\"\")","v":""},null,null,null,null,null,null,null,null,null,null,null,null,null,null,null,null,null,null,null,null,null,null,null,null,null,null,null,null,null,null,null,null,null,null,null,null,null,null,null,null,null,null,null,null,null,null,null,null,null,null,null,null,null,{"$f":"IF($Z20<>\"\",IF(OR(LEFT($Z20,2)=\"01\",LEFT($Z20,2)=\"02\",LEFT($Z20,2)=\"04\",LEFT($Z20,2)=\"05\"),1,0),\"\")","v":""}]
["03: Aux. de Educación","03: Universidad Privada",3,0,"",0,0,0,0,null,{"$f":"IF(C21<=$B$5,C21,\"\")","v":""},null,null,null,null,null,null,null,null,null,null,null,null,null,null,null,null,null,null,null,null,null,null,null,null,null,null,null,null,null,null,null,null,null,null,null,null,null,null,null,null,null,null,null,null,null,null,null,null,null,null,null,null,null,""]
[null,"04: Universidad Pública",4,0,"",0,0,0,0,null,"",null,null,null,null,null,null,null,null,null,null,null,null,null,null,null,null,null,null,null,null,null,null,null,null,null,null,null,null,null,null,null,null,null,null,null,null,null,null,null,null,null,null,null,null,null,null,null,null,null,null,null,null,null,""]
["305. Sexo","05: Sin formación pedagógica",5,0,"",0,0,0,0,null,"",null,null,null,null,null,null,null,null,null,null,null,null,null,null,null,null,null,null,null,null,null,null,null,null,null,null,null,null,null,null,null,null,null,null,null,null,null,null,null,null,null,null,null,null,null,null,null,null,null,null,null,null,null,""]
["Hombre",null,6,0,"",0,0,0,0,null,"",null,null,null,null,null,null,null,null,null,null,null,null,null,null,null,null,null,null,null,null,null,null,null,null,null,null,null,null,null,null,null,null,null,null,null,null,null,null,null,null,null,null,null,null,null,null,null,null,null,null,null,null,null,""]
["Mujer","315. Segunda Especialidad",7,0,"",0,0,0,0,null,"",null,null,null,null,null,null,null,null,null,null,null,null,null,null,null,null,null,null,null,null,null,null,null,null,null,null,null,null,null,null,null,null,null,null,null,null,null,null,null,null,null,null,null,null,null,null,null,null,null,null,null,null,"","",0]
[null,"Utilice las especialidades de la tabla de códigos 313.",8,0,"",0,0,0,0,null,"",null,null,null,null,null,null,null,null,null,null,null,null,null,null,null,null,null,null,null,null,null,null,null,null,null,null,null,null,null,null,null,null,null,null,null,null,null,null,null,null,null,null,null,null,null,null,null,null,null,null,null,null,"","",0]
["306. Lengua Materna",null,9,0,"",0,0,0,0,null,"",null,null,null,null,null,null,null,null,null,null,null,null,null,null,null,null,null,null,null,null,null,null,null,null,null,null,null,null,null,null,null,null,null,null,null,null,null,null,null,null,null,null,null,null,null,null,null,null,null,null,null,null,"","",0]
["0100: Castellano","316. Estudios de Postgrado en Pedagogía",10,0,"",0,0,0,0,null,"",null,null,null,null,null,null,null,null,null,null,null,null,null,null,null,null,null,null,null,null,null,null,null,null,null,null,null,null,null,null,null,null,null,null,null,null,null,null,null,null,null,null,null,null,null,null,null,null,null,null,null,null,"","",0]
["0200: Achuar","Estudios de Maestría",11,0,"",0,0,0,0,null,"",null,null,null,null,null,null,null,null,null,null,null,null,null,null,null,null,null,null,null,null,null,null,null,null,null,null,null,null,null,null,null,null,null,null,null,null,null,null,null,null,null,null,null,null,null,null,null,null,null,null,null,null,"","",0]
["0300: Aimara","01: Concluida con grado",12,0,"",0,0,0,0,null,"",null,null,null,null,null,null,null,null,null,null,null,null,null,null,null,null,null,null,null,null,null,null,null,null,null,null,null,null,null,null,null,null,null,null,null,null,null,null,null,null,null,null,null,null,null,null,null,null,null,null,null,null,"","",0]
["0400: Amahuaca","02: Concluida sin grado",13,0,"",0,0,0,0,null,"",null,null,null,null,null,null,null,null,null,null,null,null,null,null,null,null,null,null,null,null,null,null,null,null,null,null,null,null,null,null,null,null,null,null,null,null,null,null,null,null,null,null,null,null,null,null,null,null,null,null,null,null,"","",0]
["0500: Arabela","03: En proceso/no concluida",14,0,"",0,0,0,0,null,"",null,null,null,null,null,null,null,null,null,null,null,null,null,null,null,null,null,null,null,null,null,null,null,null,null,null,null,null,null,null,null,null,null,null,null,null,null,null,null,null,null,null,null,null,null,null,null,null,null,null,null,null,"","",0]
["0600: Ashaninka","04: Sin Maestría",15,0,"",0,0,0,0,null,"",null,null,null,null,null,null,null,null,null,null,null,null,null,null,null,null,null,null,null,null,null,null,null,null,null,null,null,null,null,null,null,null,null,null,null,null,null,null,null,null,null,null,null,null,null,null,null,null,null,null,null,null,"","",0]
["0610: Asheninka","Estudios de Doctorado",16,0,"",0,0,0,0,null,"",null,null,null,null,null,null,null,null,null,null,null,null,null,null,null,null,null,null,null,null,null,null,null,null,null,null,null,null,null,null,null,null,null,null,null,null,null,null,null,null,null,null,null,null,null,null,null,null,null,null,null,null,"","",0]
["0700: Awajún","05: Concluido con grado",17,0,"",0,0,0,0,null,"",null,null,null,null,null,null,null,null,null,null,null,null,null,null,null,null,null,null,null,null,null,null,null,null,null,null,null,null,null,null,null,null,null,null,null,null,null,null,null,null,null,null,null,null,null,null,null,null,null,null,null,null,"","",0]
["0800: Bora","06: Concluido sin grado",18,0,"",0,0,0,0,null,"",null,null,null,null,null,null,null,null,null,null,null,null,null,null,null,null,null,null,null,null,null,null,null,null,null,null,null,null,null,null,null,null,null,null,null,null,null,null,null,null,null,null,null,null,null,null,null,null,null,null,null,null,"","",0]
["0900: Kapanawa","07: En proceso/no concluido",19,0,"",0,0,0,0,null,"",null,null,null,null,null,null,null,null,null,null,null,null,null,null,null,null,null,null,null,null,null,null,null,null,null,null,null,null,null,null,null,null,null,null,null,null,null,null,null,null,null,null,null,null,null,null,null,null,null,null,null,null,"","",0]
["1000: Cashinahua","08: Sin Doctorado",20,0,"",0,0,0,0,null,"",null,null,null,null,null,null,null,null,null,null,null,null,null,null,null,null,null,null,null,null,null,null,null,null,null,null,null,null,null,null,null,null,null,null,null,null,null,null,null,null,null,null,null,null,null,null,null,null,null,null,null,null,"","",0]
["1100: Kawki",null,21,0,"",0,0,0,0,null,"",null,null,null,null,null,null,null,null,null,null,null,null,null,null,null,null,null,null,null,null,null,null,null,null,null,null,null,null,null,null,null,null,null,null,null,null,null,null,null,null,null,null,null,null,null,null,null,null,null,null,null,null,"","",0]
["1200: Chamikuro","317. Tiempo de Servicio",22,0,"",0,0,0,0,null,"",null,null,null,null,null,null,null,null,null,null,null,null,null,null,null,null,null,null,null,null,null,null,null,null,null,null,null,null,null,null,null,null,null,null,null,null,null,null,null,null,null,null,null,null,null,null,null,null,null,null,null,null,"","",0]
["1300: Ese eja","Solo personal Nombrado.",23,0,"",0,0,0,0,null,"",null,null,null,null,null,null,null,null,null,null,null,null,null,null,null,null,null,null,null,null,null,null,null,null,null,null,null,null,null,null,null,null,null,null,null,null,null,null,null,null,null,null,null,null,null,null,null,null,null,null,null,null,"","",0]
["1400: Harakbut","Tiempo contado expresado en años desde su fecha de Nombramiento",24,0,"",0,0,0,0,null,"",null,null,null,null,null,null,null,null,null,null,null,null,null,null,null,null,null,null,null,null,null,null,null,null,null,null,null,null,null,null,null,null,null,null,null,null,null,null,null,null,null,null,null,null,null,null,null,null,null,null,null,null,"","",0]
["1500: Iñapari",null,25,0,"",0,0,0,0,null,"",null,null,null,null,null,null,null,null,null,null,null,null,null,null,null,null,null,null,null,null,null,null,null,null,null,null,null,null,null,null,null,null,null,null,null,null,null,null,null,null,null,null,null,null,null,null,null,null,null,null,null,null,"","",0]
["1600: Ikitu","318. Años de Experiencia Laboral",26,0,"",0,0,0,0,null,"",null,null,null,null,null,null,null,null,null,null,null,null,null,null,null,null,null,null,null,null,null,null,null,null,null,null,null,null,null,null,null,null,null,null,null,null,null,null,null,null,null,null,null,null,null,null,null,null,null,null,null,null,"","",0]
["1700: Iskonawa","Registre el total de años que tiene como experiencia",27,0,"",0,0,0,0,null,"",null,null,null,null,null,null,null,null,null,null,null,null,null,null,null,null,null,null,null,null,null,null,null,null,null,null,null,null,null,null,null,null,null,null,null,null,null,null,null,null,null,null,null,null,null,null,null,null,null,null,null,null,"","",0]
["1800: Jaqaru","en el Tipo de Personal que se está registrando (Tabla 301.)",28,0,"",0,0,0,0,null,"",null,null,null,null,null,null,null,null,null,null,null,null,null,null,null,null,null,null,null,null,null,null,null,null,null,null,null,null,null,null,null,null,null,null,null,null,null,null,null,null,null,null,null,null,null,null,null,null,null,null,null,null,"","",0]
["1900: Kakataibo",null,29,0,"",0,0,0,0,null,"",null,null,null,null,null,null,null,null,null,null,null,null,null,null,null,null,null,null,null,null,null,null,null,null,null,null,null,null,null,null,null,null,null,null,null,null,null,null,null,null,null,null,null,null,null,null,null,null,null,null,null,null,"","",0]
["2000: Kakinte","319. Años de experiencia laboral en este servicio/ nivel educativo",30,0,"",0,0,0,0,null,"",null,null,null,null,null,null,null,null,null,null,null,null,null,null,null,null,null,null,null,null,null,null,null,null,null,null,null,null,null,null,null,null,null,null,null,null,null,null,null,null,null,null,null,null,null,null,null,null,null,null,null,null,"","",0]
["2110: Kandozi-chapra (chapra)","Anote el N° de años de experiencia prestando servicios",31,0,"",0,0,0,0,null,"",null,null,null,null,null,null,null,null,null,null,null,null,null,null,null,null,null,null,null,null,null,null,null,null,null,null,null,null,null,null,null,null,null,null,null,null,null,null,null,null,null,null,null,null,null,null,null,null,null,null,null,null,"","",0]
["2120: Kandozi-chapra (kandozi)","en este servicio/nivel educativo por el tipo de personal",32,0,"",0,0,0,0,null,"",null,null,null,null,null,null,null,null,null,null,null,null,null,null,null,null,null,null,null,null,null,null,null,null,null,null,null,null,null,null,null,null,null,null,null,null,null,null,null,null,null,null,null,null,null,null,null,null,null,null,null,null,"","",0]
["2200: Kukama kukamiria","que se está registrando (Tabla 301.)",33,0,"",0,0,0,0,null,"",null,null,null,null,null,null,null,null,null,null,null,null,null,null,null,null,null,null,null,null,null,null,null,null,null,null,null,null,null,null,null,null,null,null,null,null,null,null,null,null,null,null,null,null,null,null,null,null,null,null,null,null,"","",0]
["2300: Madija",null,34,0,"",0,0,0,0,null,"",null,null,null,null,null,null,null,null,null,null,null,null,null,null,null,null,null,null,null,null,null,null,null,null,null,null,null,null,null,null,null,null,null,null,null,null,null,null,null,null,null,null,null,null,null,null,null,null,null,null,null,null,"","",0]
["2400: Maijiki","320. Escala Magisterial",35,0,"",0,0,0,0,null,"",null,null,null,null,null,null,null,null,null,null,null,null,null,null,null,null,null,null,null,null,null,null,null,null,null,null,null,null,null,null,null,null,null,null,null,null,null,null,null,null,null,null,null,null,null,null,null,null,null,null,null,null,"","",0]
["2500: Matsés","Complete los datos de Escala Magisterial, según corresponda",36,0,"",0,0,0,0,null,"",null,null,null,null,null,null,null,null,null,null,null,null,null,null,null,null,null,null,null,null,null,null,null,null,null,null,null,null,null,null,null,null,null,null,null,null,null,null,null,null,null,null,null,null,null,null,null,null,null,null,null,null,"","",0]
["2600: Matsigenka","01: Primera",37,0,"",0,0,0,0,null,"",null,null,null,null,null,null,null,null,null,null,null,null,null,null,null,null,null,null,null,null,null,null,null,null,null,null,null,null,null,null,null,null,null,null,null,null,null,null,null,null,null,null,null,null,null,null,null,null,null,null,null,null,"","",0]
["2700: Muniche","02: Segunda",38,0,"",0,0,0,0,null,"",null,null,null,null,null,null,null,null,null,null,null,null,null,null,null,null,null,null,null,null,null,null,null,null,null,null,null,null,null,null,null,null,null,null,null,null,null,null,null,null,null,null,null,null,null,null,null,null,null,null,null,null,"","",0]
["2800: Murui-muinani","03: Tercera",39,0,"",0,0,0,0,null,"",null,null,null,null,null,null,null,null,null,null,null,null,null,null,null,null,null,null,null,null,null,null,null,null,null,null,null,null,null,null,null,null,null,null,null,null,null,null,null,null,null,null,null,null,null,null,null,null,null,null,null,null,"","",0]
["2900: Matsigenka-montetokunirira","04: Cuarta",40,0,"",0,0,0,0,null,"",null,null,null,null,null,null,null,null,null,null,null,null,null,null,null,null,null,null,null,null,null,null,null,null,null,null,null,null,null,null,null,null,null,null,null,null,null,null,null,null,null,null,null,null,null,null,null,null,null,null,null,null,"","",0]
["3000: Nomatsigenga","05: Quinta",41,0,"",0,0,0,0,null,"",null,null,null,null,null,null,null,null,null,null,null,null,null,null,null,null,null,null,null,null,null,null,null,null,null,null,null,null,null,null,null,null,null,null,null,null,null,null,null,null,null,null,null,null,null,null,null,null,null,null,null,null,"","",0]
["3100: Ocaina","06: Sexta",42,0,"",0,0,0,0,null,"",null,null,null,null,null,null,null,null,null,null,null,null,null,null,null,null,null,null,null,null,null,null,null,null,null,null,null,null,null,null,null,null,null,null,null,null,null,null,null,null,null,null,null,null,null,null,null,null,null,null,null,null,"","",0]
["3200: Omagua","07: Séptima",43,0,"",0,0,0,0,null,"",null,null,null,null,null,null,null,null,null,null,null,null,null,null,null,null,null,null,null,null,null,null,null,null,null,null,null,null,null,null,null,null,null,null,null,null,null,null,null,null,null,null,null,null,null,null,null,null,null,null,null,null,"","",0]
["3310: Quechua amazónico (Kichwa)","08: Octava",44,0,"",0,0,0,0,null,"",null,null,null,null,null,null,null,null,null,null,null,null,null,null,null,null,null,null,null,null,null,null,null,null,null,null,null,null,null,null,null,null,null,null,null,null,null,null,null,null,null,null,null,null,null,null,null,null,null,null,null,null,"","",0]
["3321: Quechua central (Ancash)","09: Sin Escala",45,0,"",0,0,0,0,null,"",null,null,null,null,null,null,null,null,null,null,null,null,null,null,null,null,null,null,null,null,null,null,null,null,null,null,null,null,null,null,null,null,null,null,null,null,null,null,null,null,null,null,null,null,null,null,null,null,null,null,null,null,"","",0]
["3322: Quechua central (Huánuco)","321. Función o Cargo",46,0,"",0,0,0,0,null,"",null,null,null,null,null,null,null,null,null,null,null,null,null,null,null,null,null,null,null,null,null,null,null,null,null,null,null,null,null,null,null,null,null,null,null,null,null,null,null,null,null,null,null,null,null,null,null,null,null,null,null,null,"","",0]
["3323: Quechua central (Wanka)","DOCENTES",47,0,"",0,0,0,0,null,"",null,null,null,null,null,null,null,null,null,null,null,null,null,null,null,null,null,null,null,null,null,null,null,null,null,null,null,null,null,null,null,null,null,null,null,null,null,null,null,null,null,null,null,null,null,null,null,null,null,null,null,null,"","",0]
["3324: Quechua central (Pasco)","01: (101)-Director General",48,0,"",0,0,0,0,null,"",null,null,null,null,null,null,null,null,null,null,null,null,null,null,null,null,null,null,null,null,null,null,null,null,null,null,null,null,null,null,null,null,null,null,null,null,null,null,null,null,null,null,null,null,null,null,null,null,null,null,null,null,"","",0]
["3331: Quechua norteño (Cajamarca)","02: (103)-Sub Director",49,0,"",0,0,0,0,null,"",null,null,null,null,null,null,null,null,null,null,null,null,null,null,null,null,null,null,null,null,null,null,null,null,null,null,null,null,null,null,null,null,null,null,null,null,null,null,null,null,null,null,null,null,null,null,null,null,null,null,null,null,"","",0]
["3332: Quechua norteño (Inkawasi Kañaris)","03: (129)-Jefe de departamento",50,0,"",0,0,0,0,null,"",null,null,null,null,null,null,null,null,null,null,null,null,null,null,null,null,null,null,null,null,null,null,null,null,null,null,null,null,null,null,null,null,null,null,null,null,null,null,null,null,null,null,null,null,null,null,null,null,null,null,null,null,"","",0]
["3341: Quechua sureño (Chanka)","04: (130)-Jefe de área / coordinador",51,0,"",0,0,0,0,null,"",null,null,null,null,null,null,null,null,null,null,null,null,null,null,null,null,null,null,null,null,null,null,null,null,null,null,null,null,null,null,null,null,null,null,null,null,null,null,null,null,null,null,null,null,null,null,null,null,null,null,null,null,"","",0]
["3342: Quechua sureño (Collao)","05: (124)-Jefe de unidad administrativa",52,0,"",0,0,0,0,null,"",null,null,null,null,null,null,null,null,null,null,null,null,null,null,null,null,null,null,null,null,null,null,null,null,null,null,null,null,null,null,null,null,null,null,null,null,null,null,null,null,null,null,null,null,null,null,null,null,null,null,null,null,"","",0]
["3400: Resigaro","06: (123)-Jefe de unidad académica",53,0,"",0,0,0,0,null,"",null,null,null,null,null,null,null,null,null,null,null,null,null,null,null,null,null,null,null,null,null,null,null,null,null,null,null,null,null,null,null,null,null,null,null,null,null,null,null,null,null,null,null,null,null,null,null,null,null,null,null,null,"","",0]
["3500: Secoya","07: (125)-Jefe de unidad académica inicial",54,0,"",0,0,0,0,null,"",null,null,null,null,null,null,null,null,null,null,null,null,null,null,null,null,null,null,null,null,null,null,null,null,null,null,null,null,null,null,null,null,null,null,null,null,null,null,null,null,null,null,null,null,null,null,null,null,null,null,null,null,"","",0]
["3600: Sharanahua","08: (126)-Jefe de unidad académica Primaria",55,0,"",0,0,0,0,null,"",null,null,null,null,null,null,null,null,null,null,null,null,null,null,null,null,null,null,null,null,null,null,null,null,null,null,null,null,null,null,null,null,null,null,null,null,null,null,null,null,null,null,null,null,null,null,null,null,null,null,null,null,"","",0]
["3700: Shawi","09: (127)-Jefe de unidad académica Secundaria",56,0,"",0,0,0,0,null,"",null,null,null,null,null,null,null,null,null,null,null,null,null,null,null,null,null,null,null,null,null,null,null,null,null,null,null,null,null,null,null,null,null,null,null,null,null,null,null,null,null,null,null,null,null,null,null,null,null,null,null,null,"","",0]
["3800: Shipibo-Konibo","10: (128)-Jefe de área de formación artística",57,0,"",0,0,0,0,null,"",null,null,null,null,null,null,null,null,null,null,null,null,null,null,null,null,null,null,null,null,null,null,null,null,null,null,null,null,null,null,null,null,null,null,null,null,null,null,null,null,null,null,null,null,null,null,null,null,null,null,null,null,"","",0]
["3900: Shiwilu","11: (131)-Jefe de Taller",58,0,"",0,0,0,0,null,"",null,null,null,null,null,null,null,null,null,null,null,null,null,null,null,null,null,null,null,null,null,null,null,null,null,null,null,null,null,null,null,null,null,null,null,null,null,null,null,null,null,null,null,null,null,null,null,null,null,null,null,null,"","",0]
["4000: Taushiro","12: (108)-Coordinador de Taller",59,0,"",0,0,0,0,null,"",null,null,null,null,null,null,null,null,null,null,null,null,null,null,null,null,null,null,null,null,null,null,null,null,null,null,null,null,null,null,null,null,null,null,null,null,null,null,null,null,null,null,null,null,null,null,null,null,null,null,null,null,"","",0]
["4100: Ticuna","13: (132)-Secretario General",60,0,"",0,0,0,0,null,"",null,null,null,null,null,null,null,null,null,null,null,null,null,null,null,null,null,null,null,null,null,null,null,null,null,null,null,null,null,null,null,null,null,null,null,null,null,null,null,null,null,null,null,null,null,null,null,null,null,null,null,null,"","",0]
["4200: Urarina","14: (137)-Secretario Académico",61,0,"",0,0,0,0,null,"",null,null,null,null,null,null,null,null,null,null,null,null,null,null,null,null,null,null,null,null,null,null,null,null,null,null,null,null,null,null,null,null,null,null,null,null,null,null,null,null,null,null,null,null,null,null,null,null,null,null,null,null,"","",0]
["4300: Wampis","15: (111)-Docente por horas",62,0,"",0,0,0,0,null,"",null,null,null,null,null,null,null,null,null,null,null,null,null,null,null,null,null,null,null,null,null,null,null,null,null,null,null,null,null,null,null,null,null,null,null,null,null,null,null,null,null,null,null,null,null,null,null,null,null,null,null,null,"","",0]
["4400: Yagua","16: (136)-Asistente",63,0,"",0,0,0,0,null,"",null,null,null,null,null,null,null,null,null,null,null,null,null,null,null,null,null,null,null,null,null,null,null,null,null,null,null,null,null,null,null,null,null,null,null,null,null,null,null,null,null,null,null,null,null,null,null,null,null,null,null,null,"","",0]
["4500: Yaminahua","17: (106)-Coordinador",64,0,"",0,0,0,0,null,"",null,null,null,null,null,null,null,null,null,null,null,null,null,null,null,null,null,null,null,null,null,null,null,null,null,null,null,null,null,null,null,null,null,null,null,null,null,null,null,null,null,null,null,null,null,null,null,null,null,null,null,null,"","",0]
["4600: Yanesha","18: (139)-Otro docente o jerarquico",65,{"$f":"IF(AND(LEFT(Q83,2)=\"01\",LEFT(W83,2)=\"01\",LEFT(X83,2)=\"01\",E83=1),1,0)","v":0},"",0,0,0,{"$f":"IF(K83<>\"\",1,0)","v":0},null,"",null,null,null,null,null,null,null,null,null,null,null,null,null,null,null,null,null,null,null,null,null,null,null,null,null,null,null,null,null,null,null,null,null,null,null,null,null,null,null,null,null,null,null,null,null,null,null,null,null,null,null,null,"","",0]
["4700: Yine","ADMINISTRATIVOS",66,0,{"$f":"$B$16","v":""},{"$f":"COUNTIF(AO84:AX84,\"X\")","v":0},{"$f":"IF(Q84<>\"\",VALUE(LEFT(Q84,2)),0)","v":0},{"$f":"IF(P84<>\"\",COUNTIF($P$19:$P$518,P84),0)","v":0},0,null,"",null,null,null,null,null,null,null,null,null,null,null,null,null,null,null,null,null,null,null,null,null,null,null,null,null,null,null,null,null,null,null,null,null,null,null,null,null,null,null,null,null,null,null,null,null,null,null,null,null,null,null,null,"",{"$f":"IF($Z84<>\"\",IF(OR(LEFT($Z84,2)=\"01\",LEFT($Z84,2)=\"02\",LEFT($Z84,2)=\"04\",LEFT($Z84,2)=\"05\"),1,0),\"\")","v":""},0]
["4800: Nahua","19: (534)-Administrador",67,0,"",0,0,0,0,null,{"$f":"IF(C85<=$B$5,C85,\"\")","v":""},null,null,null,null,null,null,null,null,null,null,null,null,null,null,null,null,null,null,null,null,null,null,null,null,null,null,null,null,null,null,null,null,null,null,null,null,null,null,null,null,null,null,null,null,null,null,null,null,null,null,null,null,"","",0]
["5000: Otra lengua originaria","20: (535)-Contador",68,0,"",0,0,0,0,null,"",null,null,null,null,null,null,null,null,null,null,null,null,null,null,null,null,null,null,null,null,null,null,null,null,null,null,null,null,null,null,null,null,null,null,null,null,null,null,null,null,null,null,null,null,null,null,null,null,null,null,null,null,"","",0]
["5100: Alemán","21: (501)-Psicólogo",69,0,"",0,0,0,0,null,"",null,null,null,null,null,null,null,null,null,null,null,null,null,null,null,null,null,null,null,null,null,null,null,null,null,null,null,null,null,null,null,null,null,null,null,null,null,null,null,null,null,null,null,null,null,null,null,null,null,null,null,null,"","",0]
["5200: Inglés","22: (502)-Servicio / Trabajo Social",70,0,"",0,0,0,0,null,"",null,null,null,null,null,null,null,null,null,null,null,null,null,null,null,null,null,null,null,null,null,null,null,null,null,null,null,null,null,null,null,null,null,null,null,null,null,null,null,null,null,null,null,null,null,null,null,null,null,null,null,null,"","",0]
["5300: Italiano","23: (503)-Personal de Salud",71,0,"",0,0,0,0,null,"",null,null,null,null,null,null,null,null,null,null,null,null,null,null,null,null,null,null,null,null,null,null,null,null,null,null,null,null,null,null,null,null,null,null,null,null,null,null,null,null,null,null,null,null,null,null,null,null,null,null,null,null,"","",0]
["5400: Japonés","24: (538)-Guía intérprete de sordoceguera",72,0,"",0,0,0,0,null,"",null,null,null,null,null,null,null,null,null,null,null,null,null,null,null,null,null,null,null,null,null,null,null,null,null,null,null,null,null,null,null,null,null,null,null,null,null,null,null,null,null,null,null,null,null,null,null,null,null,null,null,null,"","",0]
["5500: Portugués","25: (539)-Intérprete de Lengua de Señas Peruana",73,0,"",0,0,0,0,null,"",null,null,null,null,null,null,null,null,null,null,null,null,null,null,null,null,null,null,null,null,null,null,null,null,null,null,null,null,null,null,null,null,null,null,null,null,null,null,null,null,null,null,null,null,null,null,null,null,null,null,null,null,"","",0]
["5600: Ruso","26: (540)-Modelo Lingüístico",74,0,"",0,0,0,0,null,"",null,null,null,null,null,null,null,null,null,null,null,null,null,null,null,null,null,null,null,null,null,null,null,null,null,null,null,null,null,null,null,null,null,null,null,null,null,null,null,null,null,null,null,null,null,null,null,null,null,null,null,null,"","",0]
["5700: Francés","27: (505)-Otro personal profesional",75,0,"",0,0,0,0,null,"",null,null,null,null,null,null,null,null,null,null,null,null,null,null,null,null,null,null,null,null,null,null,null,null,null,null,null,null,null,null,null,null,null,null,null,null,null,null,null,null,null,null,null,null,null,null,null,null,null,null,null,null,"","",0]
["5800: Otra lengua extranjera","28: (506)-Auxiliar de Biblioteca",76,0,"",0,0,0,0,null,"",null,null,null,null,null,null,null,null,null,null,null,null,null,null,null,null,null,null,null,null,null,null,null,null,null,null,null,null,null,null,null,null,null,null,null,null,null,null,null,null,null,null,null,null,null,null,null,null,null,null,null,null,"","",0]
[null,"29: (507)-Auxiliar de Laboratorio",77,0,"",0,0,0,0,null,"",null,null,null,null,null,null,null,null,null,null,null,null,null,null,null,null,null,null,null,null,null,null,null,null,null,null,null,null,null,null,null,null,null,null,null,null,null,null,null,null,null,null,null,null,null,null,null,null,null,null,null,null,"","",0]
[null,"30: (508)-Secretaria u Oficinista",78,0,"",0,0,0,0,null,"",null,null,null,null,null,null,null,null,null,null,null,null,null,null,null,null,null,null,null,null,null,null,null,null,null,null,null,null,null,null,null,null,null,null,null,null,null,null,null,null,null,null,null,null,null,null,null,null,null,null,null,null,"","",0]
["308. Lengua Originaria","31: (536)-Bibliotecario",79,0,"",0,0,0,0,null,"",null,null,null,null,null,null,null,null,null,null,null,null,null,null,null,null,null,null,null,null,null,null,null,null,null,null,null,null,null,null,null,null,null,null,null,null,null,null,null,null,null,null,null,null,null,null,null,null,null,null,null,null,"","",0]
["Utilice los códigos de lengua de la tabla 203","32: (512)-Personal de Servicio - Mantenimiento",80,0,"",0,0,0,0,null,"",null,null,null,null,null,null,null,null,null,null,null,null,null,null,null,null,null,null,null,null,null,null,null,null,null,null,null,null,null,null,null,null,null,null,null,null,null,null,null,null,null,null,null,null,null,null,null,null,null,null,null,null,"","",0]
[null,"33: (513)-Personal de Servicio - Cocina",81,0,"",0,0,0,0,null,"",null,null,null,null,null,null,null,null,null,null,null,null,null,null,null,null,null,null,null,null,null,null,null,null,null,null,null,null,null,null,null,null,null,null,null,null,null,null,null,null,null,null,null,null,null,null,null,null,null,null,null,null,"","",0]
["309. Fuente de Financiamiento","34: (514)-Personal de Servicio - Limpieza",82,0,"",0,0,0,0,null,"",null,null,null,null,null,null,null,null,null,null,null,null,null,null,null,null,null,null,null,null,null,null,null,null,null,null,null,null,null,null,null,null,null,null,null,null,null,null,null,null,null,null,null,null,null,null,null,null,null,null,null,null,"","",0]
["01: Sector Educación","35: (516)-Personal de Servicio - Vigilante",83,0,"",0,0,0,0,null,"",null,null,null,null,null,null,null,null,null,null,null,null,null,null,null,null,null,null,null,null,null,null,null,null,null,null,null,null,null,null,null,null,null,null,null,null,null,null,null,null,null,null,null,null,null,null,null,null,null,null,null,null,"","",0]
["02: Otro sector (FF.AA. Salud u Otro)","36: (517)-Otro personal de servicio",84,0,"",0,0,0,0,null,"",null,null,null,null,null,null,null,null,null,null,null,null,null,null,null,null,null,null,null,null,null,null,null,null,null,null,null,null,null,null,null,null,null,null,null,null,null,null,null,null,null,null,null,null,null,null,null,null,null,null,null,null,"","",0]
["03: Municipalidad","37: (518)-Otro personal No profesional",85,0,"",0,0,0,0,null,"",null,null,null,null,null,null,null,null,null,null,null,null,null,null,null,null,null,null,null,null,null,null,null,null,null,null,null,null,null,null,null,null,null,null,null,null,null,null,null,null,null,null,null,null,null,null,null,null,null,null,null,null,"","",0]
["04: Gobierno Regional","302.1 Tipo de documento de Identidad",86,0,"",0,0,0,0,null,"",null,null,null,null,null,null,null,null,null,null,null,null,null,null,null,null,null,null,null,null,null,null,null,null,null,null,null,null,null,null,null,null,null,null,null,null,null,null,null,null,null,null,null,null,null,null,null,null,null,null,null,null,"","",0]
["05: APAFA","01: DNI.",87,0,"",0,0,0,0,null,"",null,null,null,null,null,null,null,null,null,null,null,null,null,null,null,null,null,null,null,null,null,null,null,null,null,null,null,null,null,null,null,null,null,null,null,null,null,null,null,null,null,null,null,null,null,null,null,null,null,null,null,null,"","",0]
["06: Otra fuente Privada","02: Carnet extranjería",88,0,"",0,0,0,0,null,"",null,null,null,null,null,null,null,null,null,null,null,null,null,null,null,null,null,null,null,null,null,null,null,null,null,null,null,null,null,null,null,null,null,null,null,null,null,null,null,null,null,null,null,null,null,null,null,null,null,null,null,null,"","",0]
["01: Sector Educación","03: Pasaporte",89,0,"",0,0,0,0,null,"",null,null,null,null,null,null,null,null,null,null,null,null,null,null,null,null,null,null,null,null,null,null,null,null,null,null,null,null,null,null,null,null,null,null,null,null,null,null,null,null,null,null,null,null,null,null,null,null,null,null,null,null,"","",0]
["310. Condición Laboral",null,90,0,"",0,0,0,0,null,"",null,null,null,null,null,null,null,null,null,null,null,null,null,null,null,null,null,null,null,null,null,null,null,null,null,null,null,null,null,null,null,null,null,null,null,null,null,null,null,null,null,null,null,null,null,null,null,null,null,null,null,null,"","",0]
["01: Nombrado","322. Situación en el Cargo Directivo",91,0,"",0,0,0,0,null,"",null,null,null,null,null,null,null,null,null,null,null,null,null,null,null,null,null,null,null,null,null,null,null,null,null,null,null,null,null,null,null,null,null,null,null,null,null,null,null,null,null,null,null,null,null,null,null,null,null,null,null,null,"","",0]
["02: Contratado","01: Titular ratificado eval. excep. 2014",92,0,"",0,0,0,0,null,"",null,null,null,null,null,null,null,null,null,null,null,null,null,null,null,null,null,null,null,null,null,null,null,null,null,null,null,null,null,null,null,null,null,null,null,null,null,null,null,null,null,null,null,null,null,null,null,null,null,null,null,null,"","",0]
[null,"02: Titular designado eval. acceso 2015, 2016 y 2018",93,0,"",0,0,0,0,null,"",null,null,null,null,null,null,null,null,null,null,null,null,null,null,null,null,null,null,null,null,null,null,null,null,null,null,null,null,null,null,null,null,null,null,null,null,null,null,null,null,null,null,null,null,null,null,null,null,null,null,null,null,"","",0]
["312. Modalidad de Contrato","03: Titular otro",94,0,"",0,0,0,0,null,"",null,null,null,null,null,null,null,null,null,null,null,null,null,null,null,null,null,null,null,null,null,null,null,null,null,null,null,null,null,null,null,null,null,null,null,null,null,null,null,null,null,null,null,null,null,null,null,null,null,null,null,null,"","",0]
["Contrato Público","04: Encargado por función, sin doc. formal",95,0,"",0,0,0,0,null,"",null,null,null,null,null,null,null,null,null,null,null,null,null,null,null,null,null,null,null,null,null,null,null,null,null,null,null,null,null,null,null,null,null,null,null,null,null,null,null,null,null,null,null,null,null,null,null,null,null,null,null,null,"","",0]
["01: A plazo fijo D.Leg.728","05: Encargado",96,0,"",0,0,0,0,null,"",null,null,null,null,null,null,null,null,null,null,null,null,null,null,null,null,null,null,null,null,null,null,null,null,null,null,null,null,null,null,null,null,null,null,null,null,null,null,null,null,null,null,null,null,null,null,null,null,null,null,null,null,"","",0]
["02: Locación de Serv./Honorarios",null,97,0,"",0,0,0,0,null,"",null,null,null,null,null,null,null,null,null,null,null,null,null,null,null,null,null,null,null,null,null,null,null,null,null,null,null,null,null,null,null,null,null,null,null,null,null,null,null,null,null,null,null,null,null,null,null,null,null,null,null,null,"","",0]
["03: CAS-D.Leg.1057","323. Destaque o Licencia",98,0,"",0,0,0,0,null,"",null,null,null,null,null,null,null,null,null,null,null,null,null,null,null,null,null,null,null,null,null,null,null,null,null,null,null,null,null,null,null,null,null,null,null,null,null,null,null,null,null,null,null,null,null,null,null,null,null,null,null,null,"","",0]
["04: Contrato D.Leg.276","01: Cubriendo una licencia",99,0,"",0,0,0,0,null,"",null,null,null,null,null,null,null,null,null,null,null,null,null,null,null,null,null,null,null,null,null,null,null,null,null,null,null,null,null,null,null,null,null,null,null,null,null,null,null,null,null,null,null,null,null,null,null,null,null,null,null,null,"","",0]
["05: Contrato Ley 30328","02: De otra I.E./DRE/UGEL",100,0,"",0,0,0,0,null,"",null,null,null,null,null,null,null,null,null,null,null,null,null,null,null,null,null,null,null,null,null,null,null,null,null,null,null,null,null,null,null,null,null,null,null,null,null,null,null,null,null,null,null,null,null,null,null,null,null,null,null,null,"","",0]
["06: Contrato Ley 30512","03: No Aplica",101,0,"",0,0,0,0,null,"",null,null,null,null,null,null,null,null,null,null,null,null,null,null,null,null,null,null,null,null,null,null,null,null,null,null,null,null,null,null,null,null,null,null,null,null,null,null,null,null,null,null,null,null,null,null,null,null,null,null,null,null,"","",0]
["07: Otra modalidad","Contratato",102,0,"",0,0,0,0,null,"",null,null,null,null,null,null,null,null,null,null,null,null,null,null,null,null,null,null,null,null,null,null,null,null,null,null,null,null,null,null,null,null,null,null,null,null,null,null,null,null,null,null,null,null,null,null,null,null,null,null,null,null,"","",0]
["Contrato Privado","01: Cubriendo una licencia",103,0,"",0,0,0,0,null,"",null,null,null,null,null,null,null,null,null,null,null,null,null,null,null,null,null,null,null,null,null,null,null,null,null,null,null,null,null,null,null,null,null,null,null,null,null,null,null,null,null,null,null,null,null,null,null,null,null,null,null,null,"","",0]
["08: A plazo indefinido","03: No Aplica",104,0,"",0,0,0,0,null,"",null,null,null,null,null,null,null,null,null,null,null,null,null,null,null,null,null,null,null,null,null,null,null,null,null,null,null,null,null,null,null,null,null,null,null,null,null,null,null,null,null,null,null,null,null,null,null,null,null,null,null,null,"","",0]
["09: Plazo fijo","324. Jornada Laboral (Nombramiento / Contrato)",105,0,"",0,0,0,0,null,"",null,null,null,null,null,null,null,null,null,null,null,null,null,null,null,null,null,null,null,null,null,null,null,null,null,null,null,null,null,null,null,null,null,null,null,null,null,null,null,null,null,null,null,null,null,null,null,null,null,null,null,null,"","",0]
["10: A tiempo parcial","40: 40 horas",106,0,"",0,0,0,0,null,"",null,null,null,null,null,null,null,null,null,null,null,null,null,null,null,null,null,null,null,null,null,null,null,null,null,null,null,null,null,null,null,null,null,null,null,null,null,null,null,null,null,null,null,null,null,null,null,null,null,null,null,null,"","",0]
["11: Locación de Serv./Honorarios","30: 30 horas",107,0,"",0,0,0,0,null,"",null,null,null,null,null,null,null,null,null,null,null,null,null,null,null,null,null,null,null,null,null,null,null,null,null,null,null,null,null,null,null,null,null,null,null,null,null,null,null,null,null,null,null,null,null,null,null,null,null,null,null,null,"","",0]
["12: Otra modalidad","24: 24 horas",108,0,"",0,0,0,0,null,"",null,null,null,null,null,null,null,null,null,null,null,null,null,null,null,null,null,null,null,null,null,null,null,null,null,null,null,null,null,null,null,null,null,null,null,null,null,null,null,null,null,null,null,null,null,null,null,null,null,null,null,null,"","",0]
[null,"20: 20 horas",109,0,"",0,0,0,0,null,"",null,null,null,null,null,null,null,null,null,null,null,null,null,null,null,null,null,null,null,null,null,null,null,null,null,null,null,null,null,null,null,null,null,null,null,null,null,null,null,null,null,null,null,null,null,null,null,null,null,null,null,null,"","",0]
["312. Máximo Nivel Educativo Alcanzado","19: Menos 20 horas",110,0,"",0,0,0,0,null,"",null,null,null,null,null,null,null,null,null,null,null,null,null,null,null,null,null,null,null,null,null,null,null,null,null,null,null,null,null,null,null,null,null,null,null,null,null,null,null,null,null,null,null,null,null,null,null,null,null,null,null,null,"","",0]
["01: Pedagógicos con título",null,111,0,"",0,0,0,0,null,"",null,null,null,null,null,null,null,null,null,null,null,null,null,null,null,null,null,null,null,null,null,null,null,null,null,null,null,null,null,null,null,null,null,null,null,null,null,null,null,null,null,null,null,null,null,null,null,null,null,null,null,null,"","",0]
["02: Pedagógicos sin título","330.3 ¿Cuál fue el tipo de estudios en EIB?",112,0,"",0,0,0,0,null,"",null,null,null,null,null,null,null,null,null,null,null,null,null,null,null,null,null,null,null,null,null,null,null,null,null,null,null,null,null,null,null,null,null,null,null,null,null,null,null,null,null,null,null,null,null,null,null,null,null,null,null,null,"","",0]
["03: Pedagógicos No concluidos","01: Doctorado",113,0,"",0,0,0,0,null,"",null,null,null,null,null,null,null,null,null,null,null,null,null,null,null,null,null,null,null,null,null,null,null,null,null,null,null,null,null,null,null,null,null,null,null,null,null,null,null,null,null,null,null,null,null,null,null,null,null,null,null,null,"","",0]
["04: No Pedagógicos con título","02: Maestría",114,0,"",0,0,0,0,null,"",null,null,null,null,null,null,null,null,null,null,null,null,null,null,null,null,null,null,null,null,null,null,null,null,null,null,null,null,null,null,null,null,null,null,null,null,null,null,null,null,null,null,null,null,null,null,null,null,null,null,null,null,"","",0]
["05: No Pedagógicos sin título","03: Segunda especialidad",115,0,"",0,0,0,0,null,"",null,null,null,null,null,null,null,null,null,null,null,null,null,null,null,null,null,null,null,null,null,null,null,null,null,null,null,null,null,null,null,null,null,null,null,null,null,null,null,null,null,null,null,null,null,null,null,null,null,null,null,null,"","",0]
["06: No Pedag. No concluidos","04: Especialización",116,0,"",0,0,0,0,null,"",null,null,null,null,null,null,null,null,null,null,null,null,null,null,null,null,null,null,null,null,null,null,null,null,null,null,null,null,null,null,null,null,null,null,null,null,null,null,null,null,null,null,null,null,null,null,null,null,null,null,null,null,"","",0]
["07: Secundaria","05: Actualización",117,0,"",0,0,0,0,null,"",null,null,null,null,null,null,null,null,null,null,null,null,null,null,null,null,null,null,null,null,null,null,null,null,null,null,null,null,null,null,null,null,null,null,null,null,null,null,null,null,null,null,null,null,null,null,null,null,null,null,null,null,"","",0]
["08: Primaria","06: Otro",118,0,"",0,0,0,0,null,"",null,null,null,null,null,null,null,null,null,null,null,null,null,null,null,null,null,null,null,null,null,null,null,null,null,null,null,null,null,null,null,null,null,null,null,null,null,null,null,null,null,null,null,null,null,null,null,null,null,null,null,null,"","",0]
[null,null,119,0,"",0,0,0,0,null,"",null,null,null,null,null,null,null,null,null,null,null,null,null,null,null,null,null,null,null,null,null,null,null,null,null,null,null,null,null,null,null,null,null,null,null,null,null,null,null,null,null,null,null,null,null,null,null,null,null,null,null,null,"","",0]
["313. Especialidad del Título","SI / NO",120,0,"",0,0,0,0,null,"",null,null,null,null,null,null,null,null,null,null,null,null,null,null,null,null,null,null,null,null,null,null,null,null,null,null,null,null,null,null,null,null,null,null,null,null,null,null,null,null,null,null,null,null,null,null,null,null,null,null,null,null,"","",0]
["01: Educación Inicial","SI",121,0,"",0,0,0,0,null,"",null,null,null,null,null,null,null,null,null,null,null,null,null,null,null,null,null,null,null,null,null,null,null,null,null,null,null,null,null,null,null,null,null,null,null,null,null,null,null,null,null,null,null,null,null,null,null,null,null,null,null,null,"","",0]
["02: Educación Primaria","NO",122,0,"",0,0,0,0,null,"",null,null,null,null,null,null,null,null,null,null,null,null,null,null,null,null,null,null,null,null,null,null,null,null,null,null,null,null,null,null,null,null,null,null,null,null,null,null,null,null,null,null,null,null,null,null,null,null,null,null,null,null,"","",0]
["03: E.I. Intercultural Bilingüe",null,123,0,"",0,0,0,0,null,"",null,null,null,null,null,null,null,null,null,null,null,null,null,null,null,null,null,null,null,null,null,null,null,null,null,null,null,null,null,null,null,null,null,null,null,null,null,null,null,null,null,null,null,null,null,null,null,null,null,null,null,null,"","",0]
["04: E.P. Intercultural Bilingüe",null,124,0,"",0,0,0,0,null,"",null,null,null,null,null,null,null,null,null,null,null,null,null,null,null,null,null,null,null,null,null,null,null,null,null,null,null,null,null,null,null,null,null,null,null,null,null,null,null,null,null,null,null,null,null,null,null,null,null,null,null,null,"","",0]
["05: Educación Básica Alternativa","332. ¿Cuál es el tipo de discapacidad?",125,0,"",0,0,0,0,null,"",null,null,null,null,null,null,null,null,null,null,null,null,null,null,null,null,null,null,null,null,null,null,null,null,null,null,null,null,null,null,null,null,null,null,null,null,null,null,null,null,null,null,null,null,null,null,null,null,null,null,null,null,"","",0]
["06: Educación Especial","01: Auditiva",126,0,"",0,0,0,0,null,"",null,null,null,null,null,null,null,null,null,null,null,null,null,null,null,null,null,null,null,null,null,null,null,null,null,null,null,null,null,null,null,null,null,null,null,null,null,null,null,null,null,null,null,null,null,null,null,null,null,null,null,null,"","",0]
["07: Educación Física","02: Visual",127,0,"",0,0,0,0,null,"",null,null,null,null,null,null,null,null,null,null,null,null,null,null,null,null,null,null,null,null,null,null,null,null,null,null,null,null,null,null,null,null,null,null,null,null,null,null,null,null,null,null,null,null,null,null,null,null,null,null,null,null,"","",0]
["08: Educación Artística","03: Física o Motora",128,0,"",0,0,0,0,null,"",null,null,null,null,null,null,null,null,null,null,null,null,null,null,null,null,null,null,null,null,null,null,null,null,null,null,null,null,null,null,null,null,null,null,null,null,null,null,null,null,null,null,null,null,null,null,null,null,null,null,null,null,"","",0]
["09: E.S. Lengua y Literatura","04: Otras. Especifique",129,{"$f":"IF(AND(LEFT(Q147,2)=\"01\",LEFT(W147,2)=\"01\",LEFT(X147,2)=\"01\",E147=1),1,0)","v":0},"",0,0,0,{"$f":"IF(K147<>\"\",1,0)","v":0},null,"",null,null,null,null,null,null,null,null,null,null,null,null,null,null,null,null,null,null,null,null,null,null,null,null,null,null,null,null,null,null,null,null,null,null,null,null,null,null,null,null,null,null,null,null,null,null,null,null,null,null,null,null,"","",0]
["10: E.S. especialidad Comunicación",null,130,0,{"$f":"$B$16","v":""},{"$f":"COUNTIF(AO148:AX148,\"X\")","v":0},{"$f":"IF(Q148<>\"\",VALUE(LEFT(Q148,2)),0)","v":0},{"$f":"IF(P148<>\"\",COUNTIF($P$19:$P$518,P148),0)","v":0},0,null,"",null,null,null,null,null,null,null,null,null,null,null,null,null,null,null,null,null,null,null,null,null,null,null,null,null,null,null,null,null,null,null,null,null,null,null,null,null,null,null,null,null,null,null,null,null,null,null,null,null,null,null,null,"",{"$f":"IF($Z148<>\"\",IF(OR(LEFT($Z148,2)=\"01\",LEFT($Z148,2)=\"02\",LEFT($Z148,2)=\"04\",LEFT($Z148,2)=\"05\"),1,0),\"\")","v":""},0]
["11: E.S. Matemática y Física",null,131,0,"",0,0,0,0,null,{"$f":"IF(C149<=$B$5,C149,\"\")","v":""},null,null,null,null,null,null,null,null,null,null,null,null,null,null,null,null,null,null,null,null,null,null,null,null,null,null,null,null,null,null,null,null,null,null,null,null,null,null,null,null,null,null,null,null,null,null,null,null,null,null,null,null,"","",0]
["12: E.S. especialidad Matemática",null,132,0,"",0,0,0,0,null,"",null,null,null,null,null,null,null,null,null,null,null,null,null,null,null,null,null,null,null,null,null,null,null,null,null,null,null,null,null,null,null,null,null,null,null,null,null,null,null,null,null,null,null,null,null,null,null,null,null,null,null,null,"","",0]
["13: E.S. CCSS y Filosofía",null,133,0,"",0,0,0,0,null,"",null,null,null,null,null,null,null,null,null,null,null,null,null,null,null,null,null,null,null,null,null,null,null,null,null,null,null,null,null,null,null,null,null,null,null,null,null,null,null,null,null,null,null,null,null,null,null,null,null,null,null,null,"","",0]
["14: E.S. Esp. Ciudadanía y Ciencias Sociales",null,134,0,"",0,0,0,0,null,"",null,null,null,null,null,null,null,null,null,null,null,null,null,null,null,null,null,null,null,null,null,null,null,null,null,null,null,null,null,null,null,null,null,null,null,null,null,null,null,null,null,null,null,null,null,null,null,null,null,null,null,null,"","",0]
["15: E.S. Ciencias Naturales",null,135,0,"",0,0,0,0,null,"",null,null,null,null,null,null,null,null,null,null,null,null,null,null,null,null,null,null,null,null,null,null,null,null,null,null,null,null,null,null,null,null,null,null,null,null,null,null,null,null,null,null,null,null,null,null,null,null,null,null,null,null,"","",0]
["16: E.S. especialidad Ciencia y Tecnología",null,136,0,"",0,0,0,0,null,"",null,null,null,null,null,null,null,null,null,null,null,null,null,null,null,null,null,null,null,null,null,null,null,null,null,null,null,null,null,null,null,null,null,null,null,null,null,null,null,null,null,null,null,null,null,null,null,null,null,null,null,null,"","",0]
["17: E.S. Alimentación y Nutrición",null,137,0,"",0,0,0,0,null,"",null,null,null,null,null,null,null,null,null,null,null,null,null,null,null,null,null,null,null,null,null,null,null,null,null,null,null,null,null,null,null,null,null,null,null,null,null,null,null,null,null,null,null,null,null,null,null,null,null,null,null,null,"","",0]
["18: E.S. Biología y Química",null,138,0,"",0,0,0,0,null,"",null,null,null,null,null,null,null,null,null,null,null,null,null,null,null,null,null,null,null,null,null,null,null,null,null,null,null,null,null,null,null,null,null,null,null,null,null,null,null,null,null,null,null,null,null,null,null,null,null,null,null,null,"","",0]
["19: E.S. Historia y Geografía",null,139,0,"",0,0,0,0,null,"",null,null,null,null,null,null,null,null,null,null,null,null,null,null,null,null,null,null,null,null,null,null,null,null,null,null,null,null,null,null,null,null,null,null,null,null,null,null,null,null,null,null,null,null,null,null,null,null,null,null,null,null,"","",0]
["20: E.S. CC.HH. Sociales",null,140,0,"",0,0,0,0,null,"",null,null,null,null,null,null,null,null,null,null,null,null,null,null,null,null,null,null,null,null,null,null,null,null,null,null,null,null,null,null,null,null,null,null,null,null,null,null,null,null,null,null,null,null,null,null,null,null,null,null,null,null,"","",0]
["21: Idiomas especialidad Inglés",null,141,0,"",0,0,0,0,null,"",null,null,null,null,null,null,null,null,null,null,null,null,null,null,null,null,null,null,null,null,null,null,null,null,null,null,null,null,null,null,null,null,null,null,null,null,null,null,null,null,null,null,null,null,null,null,null,null,null,null,null,null,"","",0]
["22: Educación Religiosa",null,142,0,"",0,0,0,0,null,"",null,null,null,null,null,null,null,null,null,null,null,null,null,null,null,null,null,null,null,null,null,null,null,null,null,null,null,null,null,null,null,null,null,null,null,null,null,null,null,null,null,null,null,null,null,null,null,null,null,null,null,null,"","",0]
["23: E.S. Educación Familiar",null,143,0,"",0,0,0,0,null,"",null,null,null,null,null,null,null,null,null,null,null,null,null,null,null,null,null,null,null,null,null,null,null,null,null,null,null,null,null,null,null,null,null,null,null,null,null,null,null,null,null,null,null,null,null,null,null,null,null,null,null,null,"","",0]
["24: E.T. Artes Industriales",null,144,0,"",0,0,0,0,null,"",null,null,null,null,null,null,null,null,null,null,null,null,null,null,null,null,null,null,null,null,null,null,null,null,null,null,null,null,null,null,null,null,null,null,null,null,null,null,null,null,null,null,null,null,null,null,null,null,null,null,null,null,"","",0]
["25: E.T. Artesanía",null,145,0,"",0,0,0,0,null,"",null,null,null,null,null,null,null,null,null,null,null,null,null,null,null,null,null,null,null,null,null,null,null,null,null,null,null,null,null,null,null,null,null,null,null,null,null,null,null,null,null,null,null,null,null,null,null,null,null,null,null,null,"","",0]
["26: E.T. Agropecuaria",null,146,0,"",0,0,0,0,null,"",null,null,null,null,null,null,null,null,null,null,null,null,null,null,null,null,null,null,null,null,null,null,null,null,null,null,null,null,null,null,null,null,null,null,null,null,null,null,null,null,null,null,null,null,null,null,null,null,null,null,null,null,"","",0]
["27: E.T. Construcción en madera",null,147,0,"",0,0,0,0,null,"",null,null,null,null,null,null,null,null,null,null,null,null,null,null,null,null,null,null,null,null,null,null,null,null,null,null,null,null,null,null,null,null,null,null,null,null,null,null,null,null,null,null,null,null,null,null,null,null,null,null,null,null,"","",0]
["28: Computación e Informática",null,148,0,"",0,0,0,0,null,"",null,null,null,null,null,null,null,null,null,null,null,null,null,null,null,null,null,null,null,null,null,null,null,null,null,null,null,null,null,null,null,null,null,null,null,null,null,null,null,null,null,null,null,null,null,null,null,null,null,null,null,null,"","",0]
["29: E.T. Carpintería / Ebanistería",null,149,0,"",0,0,0,0,null,"",null,null,null,null,null,null,null,null,null,null,null,null,null,null,null,null,null,null,null,null,null,null,null,null,null,null,null,null,null,null,null,null,null,null,null,null,null,null,null,null,null,null,null,null,null,null,null,null,null,null,null,null,"","",0]
["30: E.T. Electricidad",null,150,0,"",0,0,0,0,null,"",null,null,null,null,null,null,null,null,null,null,null,null,null,null,null,null,null,null,null,null,null,null,null,null,null,null,null,null,null,null,null,null,null,null,null,null,null,null,null,null,null,null,null,null,null,null,null,null,null,null,null,null,"","",0]
["31: E.T. Electrónica",null,151,0,"",0,0,0,0,null,"",null,null,null,null,null,null,null,null,null,null,null,null,null,null,null,null,null,null,null,null,null,null,null,null,null,null,null,null,null,null,null,null,null,null,null,null,null,null,null,null,null,null,null,null,null,null,null,null,null,null,null,null,"","",0]
["32: E.T. Ebanistería",null,152,0,"",0,0,0,0,null,"",null,null,null,null,null,null,null,null,null,null,null,null,null,null,null,null,null,null,null,null,null,null,null,null,null,null,null,null,null,null,null,null,null,null,null,null,null,null,null,null,null,null,null,null,null,null,null,null,null,null,null,null,"","",0]
["33: E.T. Industria del Vestido",null,153,0,"",0,0,0,0,null,"",null,null,null,null,null,null,null,null,null,null,null,null,null,null,null,null,null,null,null,null,null,null,null,null,null,null,null,null,null,null,null,null,null,null,null,null,null,null,null,null,null,null,null,null,null,null,null,null,null,null,null,null,"","",0]
["34: E.T. Industria del Vestido Alimentación y Alta Costura",null,154,0,"",0,0,0,0,null,"",null,null,null,null,null,null,null,null,null,null,null,null,null,null,null,null,null,null,null,null,null,null,null,null,null,null,null,null,null,null,null,null,null,null,null,null,null,null,null,null,null,null,null,null,null,null,null,null,null,null,null,null,"","",0]
["35: E.T. en Industria del Vestido y Alta Costura",null,155,0,"",0,0,0,0,null,"",null,null,null,null,null,null,null,null,null,null,null,null,null,null,null,null,null,null,null,null,null,null,null,null,null,null,null,null,null,null,null,null,null,null,null,null,null,null,null,null,null,null,null,null,null,null,null,null,null,null,null,null,"","",0]
["36: E.S.Técnica Esp. Ind. del Vestido Ind.Alimentaria y Artesanía",null,156,0,"",0,0,0,0,null,"",null,null,null,null,null,null,null,null,null,null,null,null,null,null,null,null,null,null,null,null,null,null,null,null,null,null,null,null,null,null,null,null,null,null,null,null,null,null,null,null,null,null,null,null,null,null,null,null,null,null,null,null,"","",0]
["37: E.T. Industria Alimentaria",null,157,0,"",0,0,0,0,null,"",null,null,null,null,null,null,null,null,null,null,null,null,null,null,null,null,null,null,null,null,null,null,null,null,null,null,null,null,null,null,null,null,null,null,null,null,null,null,null,null,null,null,null,null,null,null,null,null,null,null,null,null,"","",0]
["38: E.T. Mecánica Automotriz",null,158,0,"",0,0,0,0,null,"",null,null,null,null,null,null,null,null,null,null,null,null,null,null,null,null,null,null,null,null,null,null,null,null,null,null,null,null,null,null,null,null,null,null,null,null,null,null,null,null,null,null,null,null,null,null,null,null,null,null,null,null,"","",0]
["39: E.T. Mecánica de Producción",null,159,0,"",0,0,0,0,null,"",null,null,null,null,null,null,null,null,null,null,null,null,null,null,null,null,null,null,null,null,null,null,null,null,null,null,null,null,null,null,null,null,null,null,null,null,null,null,null,null,null,null,null,null,null,null,null,null,null,null,null,null,"","",0]
["40: E.T. Mecánica de Producción y Soldadura",null,160,0,"",0,0,0,0,null,"",null,null,null,null,null,null,null,null,null,null,null,null,null,null,null,null,null,null,null,null,null,null,null,null,null,null,null,null,null,null,null,null,null,null,null,null,null,null,null,null,null,null,null,null,null,null,null,null,null,null,null,null,"","",0]
["41: Educación para el trabajo Textil y Confección",null,161,0,"",0,0,0,0,null,"",null,null,null,null,null,null,null,null,null,null,null,null,null,null,null,null,null,null,null,null,null,null,null,null,null,null,null,null,null,null,null,null,null,null,null,null,null,null,null,null,null,null,null,null,null,null,null,null,null,null,null,null,"","",0]
["42: Otra pedagógica",null,162,0,"",0,0,0,0,null,"",null,null,null,null,null,null,null,null,null,null,null,null,null,null,null,null,null,null,null,null,null,null,null,null,null,null,null,null,null,null,null,null,null,null,null,null,null,null,null,null,null,null,null,null,null,null,null,null,null,null,null,null,"","",0]
[null,null,163,0,"",0,0,0,0,null,"",null,null,null,null,null,null,null,null,null,null,null,null,null,null,null,null,null,null,null,null,null,null,null,null,null,null,null,null,null,null,null,null,null,null,null,null,null,null,null,null,null,null,null,null,null,null,null,null,null,null,null,null,"","",0]
[null,null,164,0,"",0,0,0,0,null,"",null,null,null,null,null,null,null,null,null,null,null,null,null,null,null,null,null,null,null,null,null,null,null,null,null,null,null,null,null,null,null,null,null,null,null,null,null,null,null,null,null,null,null,null,null,null,null,null,null,null,null,null,"","",0]
[null,null,165,0,"",0,0,0,0,null,"",null,null,null,null,null,null,null,null,null,null,null,null,null,null,null,null,null,null,null,null,null,null,null,null,null,null,null,null,null,null,null,null,null,null,null,null,null,null,null,null,null,null,null,null,null,null,null,null,null,null,null,null,"","",0]
[null,null,166,0,"",0,0,0,0,null,"",null,null,null,null,null,null,null,null,null,null,null,null,null,null,null,null,null,null,null,null,null,null,null,null,null,null,null,null,null,null,null,null,null,null,null,null,null,null,null,null,null,null,null,null,null,null,null,null,null,null,null,null,"","",0]
[null,null,167,0,"",0,0,0,0,null,"",null,null,null,null,null,null,null,null,null,null,null,null,null,null,null,null,null,null,null,null,null,null,null,null,null,null,null,null,null,null,null,null,null,null,null,null,null,null,null,null,null,null,null,null,null,null,null,null,null,null,null,null,"","",0]
[null,null,168,0,"",0,0,0,0,null,"",null,null,null,null,null,null,null,null,null,null,null,null,null,null,null,null,null,null,null,null,null,null,null,null,null,null,null,null,null,null,null,null,null,null,null,null,null,null,null,null,null,null,null,null,null,null,null,null,null,null,null,null,"","",0]
[null,null,169,0,"",0,0,0,0,null,"",null,null,null,null,null,null,null,null,null,null,null,null,null,null,null,null,null,null,null,null,null,null,null,null,null,null,null,null,null,null,null,null,null,null,null,null,null,null,null,null,null,null,null,null,null,null,null,null,null,null,null,null,"","",0]
[null,null,170,0,"",0,0,0,0,null,"",null,null,null,null,null,null,null,null,null,null,null,null,null,null,null,null,null,null,null,null,null,null,null,null,null,null,null,null,null,null,null,null,null,null,null,null,null,null,null,null,null,null,null,null,null,null,null,null,null,null,null,null,"","",0]
[null,null,171,0,"",0,0,0,0,null,"",null,null,null,null,null,null,null,null,null,null,null,null,null,null,null,null,null,null,null,null,null,null,null,null,null,null,null,null,null,null,null,null,null,null,null,null,null,null,null,null,null,null,null,null,null,null,null,null,null,null,null,null,"","",0]
[null,null,172,0,"",0,0,0,0,null,"",null,null,null,null,null,null,null,null,null,null,null,null,null,null,null,null,null,null,null,null,null,null,null,null,null,null,null,null,null,null,null,null,null,null,null,null,null,null,null,null,null,null,null,null,null,null,null,null,null,null,null,null,"","",0]
[null,null,173,0,"",0,0,0,0,null,"",null,null,null,null,null,null,null,null,null,null,null,null,null,null,null,null,null,null,null,null,null,null,null,null,null,null,null,null,null,null,null,null,null,null,null,null,null,null,null,null,null,null,null,null,null,null,null,null,null,null,null,null,"","",0]
[null,null,174,0,"",0,0,0,0,null,"",null,null,null,null,null,null,null,null,null,null,null,null,null,null,null,null,null,null,null,null,null,null,null,null,null,null,null,null,null,null,null,null,null,null,null,null,null,null,null,null,null,null,null,null,null,null,null,null,null,null,null,null,"","",0]
[null,null,175,0,"",0,0,0,0,null,"",null,null,null,null,null,null,null,null,null,null,null,null,null,null,null,null,null,null,null,null,null,null,null,null,null,null,null,null,null,null,null,null,null,null,null,null,null,null,null,null,null,null,null,null,null,null,null,null,null,null,null,null,"","",0]
[null,null,176,0,"",0,0,0,0,null,"",null,null,null,null,null,null,null,null,null,null,null,null,null,null,null,null,null,null,null,null,null,null,null,null,null,null,null,null,null,null,null,null,null,null,null,null,null,null,null,null,null,null,null,null,null,null,null,null,null,null,null,null,"","",0]
[null,null,177,0,"",0,0,0,0,null,"",null,null,null,null,null,null,null,null,null,null,null,null,null,null,null,null,null,null,null,null,null,null,null,null,null,null,null,null,null,null,null,null,null,null,null,null,null,null,null,null,null,null,null,null,null,null,null,null,null,null,null,null,"","",0]
[null,null,178,0,"",0,0,0,0,null,"",null,null,null,null,null,null,null,null,null,null,null,null,null,null,null,null,null,null,null,null,null,null,null,null,null,null,null,null,null,null,null,null,null,null,null,null,null,null,null,null,null,null,null,null,null,null,null,null,null,null,null,null,"","",0]
[null,null,179,0,"",0,0,0,0,null,"",null,null,null,null,null,null,null,null,null,null,null,null,null,null,null,null,null,null,null,null,null,null,null,null,null,null,null,null,null,null,null,null,null,null,null,null,null,null,null,null,null,null,null,null,null,null,null,null,null,null,null,null,"","",0]
[null,null,180,0,"",0,0,0,0,null,"",null,null,null,null,null,null,null,null,null,null,null,null,null,null,null,null,null,null,null,null,null,null,null,null,null,null,null,null,null,null,null,null,null,null,null,null,null,null,null,null,null,null,null,null,null,null,null,null,null,null,null,null,"","",0]
[null,null,181,0,"",0,0,0,0,null,"",null,null,null,null,null,null,null,null,null,null,null,null,null,null,null,null,null,null,null,null,null,null,null,null,null,null,null,null,null,null,null,null,null,null,null,null,null,null,null,null,null,null,null,null,null,null,null,null,null,null,null,null,"","",0]
[null,null,182,0,"",0,0,0,0,null,"",null,null,null,null,null,null,null,null,null,null,null,null,null,null,null,null,null,null,null,null,null,null,null,null,null,null,null,null,null,null,null,null,null,null,null,null,null,null,null,null,null,null,null,null,null,null,null,null,null,null,null,null,"","",0]
[null,null,183,0,"",0,0,0,0,null,"",null,null,null,null,null,null,null,null,null,null,null,null,null,null,null,null,null,null,null,null,null,null,null,null,null,null,null,null,null,null,null,null,null,null,null,null,null,null,null,null,null,null,null,null,null,null,null,null,null,null,null,null,"","",0]
[null,null,184,0,"",0,0,0,0,null,"",null,null,null,null,null,null,null,null,null,null,null,null,null,null,null,null,null,null,null,null,null,null,null,null,null,null,null,null,null,null,null,null,null,null,null,null,null,null,null,null,null,null,null,null,null,null,null,null,null,null,null,null,"","",0]
[null,null,185,0,"",0,0,0,0,null,"",null,null,null,null,null,null,null,null,null,null,null,null,null,null,null,null,null,null,null,null,null,null,null,null,null,null,null,null,null,null,null,null,null,null,null,null,null,null,null,null,null,null,null,null,null,null,null,null,null,null,null,null,"","",0]
[null,null,186,0,"",0,0,0,0,null,"",null,null,null,null,null,null,null,null,null,null,null,null,null,null,null,null,null,null,null,null,null,null,null,null,null,null,null,null,null,null,null,null,null,null,null,null,null,null,null,null,null,null,null,null,null,null,null,null,null,null,null,null,"","",0]
[null,null,187,0,"",0,0,0,0,null,"",null,null,null,null,null,null,null,null,null,null,null,null,null,null,null,null,null,null,null,null,null,null,null,null,null,null,null,null,null,null,null,null,null,null,null,null,null,null,null,null,null,null,null,null,null,null,null,null,null,null,null,null,"","",0]
[null,null,188,0,"",0,0,0,0,null,"",null,null,null,null,null,null,null,null,null,null,null,null,null,null,null,null,null,null,null,null,null,null,null,null,null,null,null,null,null,null,null,null,null,null,null,null,null,null,null,null,null,null,null,null,null,null,null,null,null,null,null,null,"","",0]
[null,null,189,0,"",0,0,0,0,null,"",null,null,null,null,null,null,null,null,null,null,null,null,null,null,null,null,null,null,null,null,null,null,null,null,null,null,null,null,null,null,null,null,null,null,null,null,null,null,null,null,null,null,null,null,null,null,null,null,null,null,null,null,"","",0]
[null,null,190,0,"",0,0,0,0,null,"",null,null,null,null,null,null,null,null,null,null,null,null,null,null,null,null,null,null,null,null,null,null,null,null,null,null,null,null,null,null,null,null,null,null,null,null,null,null,null,null,null,null,null,null,null,null,null,null,null,null,null,null,"","",0]
[null,null,191,0,"",0,0,0,0,null,"",null,null,null,null,null,null,null,null,null,null,null,null,null,null,null,null,null,null,null,null,null,null,null,null,null,null,null,null,null,null,null,null,null,null,null,null,null,null,null,null,null,null,null,null,null,null,null,null,null,null,null,null,"","",0]
[null,null,192,0,"",0,0,0,0,null,"",null,null,null,null,null,null,null,null,null,null,null,null,null,null,null,null,null,null,null,null,null,null,null,null,null,null,null,null,null,null,null,null,null,null,null,null,null,null,null,null,null,null,null,null,null,null,null,null,null,null,null,null,"","",0]
[null,null,193,{"$f":"IF(AND(LEFT(Q211,2)=\"01\",LEFT(W211,2)=\"01\",LEFT(X211,2)=\"01\",E211=1),1,0)","v":0},"",0,0,0,{"$f":"IF(K211<>\"\",1,0)","v":0},null,"",null,null,null,null,null,null,null,null,null,null,null,null,null,null,null,null,null,null,null,null,null,null,null,null,null,null,null,null,null,null,null,null,null,null,null,null,null,null,null,null,null,null,null,null,null,null,null,null,null,null,null,null,"","",0]
[null,null,194,0,{"$f":"$B$16","v":""},{"$f":"COUNTIF(AO212:AX212,\"X\")","v":0},{"$f":"IF(Q212<>\"\",VALUE(LEFT(Q212,2)),0)","v":0},{"$f":"IF(P212<>\"\",COUNTIF($P$19:$P$518,P212),0)","v":0},0,null,"",null,null,null,null,null,null,null,null,null,null,null,null,null,null,null,null,null,null,null,null,null,null,null,null,null,null,null,null,null,null,null,null,null,null,null,null,null,null,null,null,null,null,null,null,null,null,null,null,null,null,null,null,"",{"$f":"IF($Z212<>\"\",IF(OR(LEFT($Z212,2)=\"01\",LEFT($Z212,2)=\"02\",LEFT($Z212,2)=\"04\",LEFT($Z212,2)=\"05\"),1,0),\"\")","v":""},0]
[null,null,195,0,"",0,0,0,0,null,{"$f":"IF(C213<=$B$5,C213,\"\")","v":""},null,null,null,null,null,null,null,null,null,null,null,null,null,null,null,null,null,null,null,null,null,null,null,null,null,null,null,null,null,null,null,null,null,null,null,null,null,null,null,null,null,null,null,null,null,null,null,null,null,null,null,null,"","",0]
[null,null,196,0,"",0,0,0,0,null,"",null,null,null,null,null,null,null,null,null,null,null,null,null,null,null,null,null,null,null,null,null,null,null,null,null,null,null,null,null,null,null,null,null,null,null,null,null,null,null,null,null,null,null,null,null,null,null,null,null,null,null,null,"","",0]
[null,null,197,0,"",0,0,0,0,null,"",null,null,null,null,null,null,null,null,null,null,null,null,null,null,null,null,null,null,null,null,null,null,null,null,null,null,null,null,null,null,null,null,null,null,null,null,null,null,null,null,null,null,null,null,null,null,null,null,null,null,null,null,"","",0]
[null,null,198,0,"",0,0,0,0,null,"",null,null,null,null,null,null,null,null,null,null,null,null,null,null,null,null,null,null,null,null,null,null,null,null,null,null,null,null,null,null,null,null,null,null,null,null,null,null,null,null,null,null,null,null,null,null,null,null,null,null,null,null,"","",0]
[null,null,199,0,"",0,0,0,0,null,"",null,null,null,null,null,null,null,null,null,null,null,null,null,null,null,null,null,null,null,null,null,null,null,null,null,null,null,null,null,null,null,null,null,null,null,null,null,null,null,null,null,null,null,null,null,null,null,null,null,null,null,null,"","",0]
[null,null,200,0,"",0,0,0,{"$f":"IF(K218<>\"\",1,0)","v":0},null,"",null,null,null,null,null,null,null,null,null,null,null,null,null,null,null,null,null,null,null,null,null,null,null,null,null,null,null,null,null,null,null,null,null,null,null,null,null,null,null,null,null,null,null,null,null,null,null,null,null,null,null,null,"","",0]
[null,null,201,0,"",0,0,0,{"$f":"IF(K219<>\"\",1,0)","v":0},null,"",null,null,null,null,null,null,null,null,null,null,null,null,null,null,null,null,null,null,null,null,null,null,null,null,null,null,null,null,null,null,null,null,null,null,null,null,null,null,null,null,null,null,null,null,null,null,null,null,null,null,null,null,"","",0]
[null,null,202,0,"",0,0,0,0,null,"",null,null,null,null,null,null,null,null,null,null,null,null,null,null,null,null,null,null,null,null,null,null,null,null,null,null,null,null,null,null,null,null,null,null,null,null,null,null,null,null,null,null,null,null,null,null,null,null,null,null,null,null,"","",0]
[null,null,203,0,"",0,0,0,0,null,"",null,null,null,null,null,null,null,null,null,null,null,null,null,null,null,null,null,null,null,null,null,null,null,null,null,null,null,null,null,null,null,null,null,null,null,null,null,null,null,null,null,null,null,null,null,null,null,null,null,null,null,null,"","",0]
[null,null,204,0,"",0,0,0,0,null,"",null,null,null,null,null,null,null,null,null,null,null,null,null,null,null,null,null,null,null,null,null,null,null,null,null,null,null,null,null,null,null,null,null,null,null,null,null,null,null,null,null,null,null,null,null,null,null,null,null,null,null,null,"","",0]
[null,null,205,0,"",0,0,0,0,null,"",null,null,null,null,null,null,null,null,null,null,null,null,null,null,null,null,null,null,null,null,null,null,null,null,null,null,null,null,null,null,null,null,null,null,null,null,null,null,null,null,null,null,null,null,null,null,null,null,null,null,null,null,"","",0]
[null,null,206,0,"",0,0,0,0,null,"",null,null,null,null,null,null,null,null,null,null,null,null,null,null,null,null,null,null,null,null,null,null,null,null,null,null,null,null,null,null,null,null,null,null,null,null,null,null,null,null,null,null,null,null,null,null,null,null,null,null,null,null,"","",0]
[null,null,207,0,"",0,0,0,0,null,"",null,null,null,null,null,null,null,null,null,null,null,null,null,null,null,null,null,null,null,null,null,null,null,null,null,null,null,null,null,null,null,null,null,null,null,null,null,null,null,null,null,null,null,null,null,null,null,null,null,null,null,null,"","",0]
[null,null,208,0,"",0,0,0,0,null,"",null,null,null,null,null,null,null,null,null,null,null,null,null,null,null,null,null,null,null,null,null,null,null,null,null,null,null,null,null,null,null,null,null,null,null,null,null,null,null,null,null,null,null,null,null,null,null,null,null,null,null,null,"","",0]
[null,null,209,0,"",0,0,0,0,null,"",null,null,null,null,null,null,null,null,null,null,null,null,null,null,null,null,null,null,null,null,null,null,null,null,null,null,null,null,null,null,null,null,null,null,null,null,null,null,null,null,null,null,null,null,null,null,null,null,null,null,null,null,"","",0]
[null,null,210,0,"",0,0,0,0,null,"",null,null,null,null,null,null,null,null,null,null,null,null,null,null,null,null,null,null,null,null,null,null,null,null,null,null,null,null,null,null,null,null,null,null,null,null,null,null,null,null,null,null,null,null,null,null,null,null,null,null,null,null,"","",0]
[null,null,211,0,"",0,0,0,0,null,"",null,null,null,null,null,null,null,null,null,null,null,null,null,null,null,null,null,null,null,null,null,null,null,null,null,null,null,null,null,null,null,null,null,null,null,null,null,null,null,null,null,null,null,null,null,null,null,null,null,null,null,null,"","",0]
[null,null,212,0,"",0,0,0,0,null,"",null,null,null,null,null,null,null,null,null,null,null,null,null,null,null,null,null,null,null,null,null,null,null,null,null,null,null,null,null,null,null,null,null,null,null,null,null,null,null,null,null,null,null,null,null,null,null,null,null,null,null,null,"","",0]
[null,null,213,0,"",0,0,0,0,null,"",null,null,null,null,null,null,null,null,null,null,null,null,null,null,null,null,null,null,null,null,null,null,null,null,null,null,null,null,null,null,null,null,null,null,null,null,null,null,null,null,null,null,null,null,null,null,null,null,null,null,null,null,"","",0]
[null,null,214,0,"",0,0,0,0,null,"",null,null,null,null,null,null,null,null,null,null,null,null,null,null,null,null,null,null,null,null,null,null,null,null,null,null,null,null,null,null,null,null,null,null,null,null,null,null,null,null,null,null,null,null,null,null,null,null,null,null,null,null,"","",0]
[null,null,215,0,"",0,0,0,0,null,"",null,null,null,null,null,null,null,null,null,null,null,null,null,null,null,null,null,null,null,null,null,null,null,null,null,null,null,null,null,null,null,null,null,null,null,null,null,null,null,null,null,null,null,null,null,null,null,null,null,null,null,null,"","",0]
[null,null,216,0,"",0,0,0,0,null,"",null,null,null,null,null,null,null,null,null,null,null,null,null,null,null,null,null,null,null,null,null,null,null,null,null,null,null,null,null,null,null,null,null,null,null,null,null,null,null,null,null,null,null,null,null,null,null,null,null,null,null,null,"","",0]
[null,null,217,0,"",0,0,0,0,null,"",null,null,null,null,null,null,null,null,null,null,null,null,null,null,null,null,null,null,null,null,null,null,null,null,null,null,null,null,null,null,null,null,null,null,null,null,null,null,null,null,null,null,null,null,null,null,null,null,null,null,null,null,"","",0]
[null,null,218,0,"",0,0,0,0,null,"",null,null,null,null,null,null,null,null,null,null,null,null,null,null,null,null,null,null,null,null,null,null,null,null,null,null,null,null,null,null,null,null,null,null,null,null,null,null,null,null,null,null,null,null,null,null,null,null,null,null,null,null,"","",0]
[null,null,219,0,"",0,0,0,0,null,"",null,null,null,null,null,null,null,null,null,null,null,null,null,null,null,null,null,null,null,null,null,null,null,null,null,null,null,null,null,null,null,null,null,null,null,null,null,null,null,null,null,null,null,null,null,null,null,null,null,null,null,null,"","",0]
[null,null,220,0,"",0,0,0,0,null,"",null,null,null,null,null,null,null,null,null,null,null,null,null,null,null,null,null,null,null,null,null,null,null,null,null,null,null,null,null,null,null,null,null,null,null,null,null,null,null,null,null,null,null,null,null,null,null,null,null,null,null,null,"","",0]
[null,null,221,0,"",0,0,0,0,null,"",null,null,null,null,null,null,null,null,null,null,null,null,null,null,null,null,null,null,null,null,null,null,null,null,null,null,null,null,null,null,null,null,null,null,null,null,null,null,null,null,null,null,null,null,null,null,null,null,null,null,null,null,"","",0]
[null,null,222,0,"",0,0,0,0,null,"",null,null,null,null,null,null,null,null,null,null,null,null,null,null,null,null,null,null,null,null,null,null,null,null,null,null,null,null,null,null,null,null,null,null,null,null,null,null,null,null,null,null,null,null,null,null,null,null,null,null,null,null,"","",0]
[null,null,223,0,"",0,0,0,0,null,"",null,null,null,null,null,null,null,null,null,null,null,null,null,null,null,null,null,null,null,null,null,null,null,null,null,null,null,null,null,null,null,null,null,null,null,null,null,null,null,null,null,null,null,null,null,null,null,null,null,null,null,null,"","",0]
[null,null,224,0,"",0,0,0,0,null,"",null,null,null,null,null,null,null,null,null,null,null,null,null,null,null,null,null,null,null,null,null,null,null,null,null,null,null,null,null,null,null,null,null,null,null,null,null,null,null,null,null,null,null,null,null,null,null,null,null,null,null,null,"","",0]
[null,null,225,0,"",0,0,0,0,null,"",null,null,null,null,null,null,null,null,null,null,null,null,null,null,null,null,null,null,null,null,null,null,null,null,null,null,null,null,null,null,null,null,null,null,null,null,null,null,null,null,null,null,null,null,null,null,null,null,null,null,null,null,"","",0]
[null,null,226,0,"",0,0,0,0,null,"",null,null,null,null,null,null,null,null,null,null,null,null,null,null,null,null,null,null,null,null,null,null,null,null,null,null,null,null,null,null,null,null,null,null,null,null,null,null,null,null,null,null,null,null,null,null,null,null,null,null,null,null,"","",0]
[null,null,227,0,"",0,0,0,0,null,"",null,null,null,null,null,null,null,null,null,null,null,null,null,null,null,null,null,null,null,null,null,null,null,null,null,null,null,null,null,null,null,null,null,null,null,null,null,null,null,null,null,null,null,null,null,null,null,null,null,null,null,null,"","",0]
[null,null,228,0,"",0,0,0,0,null,"",null,null,null,null,null,null,null,null,null,null,null,null,null,null,null,null,null,null,null,null,null,null,null,null,null,null,null,null,null,null,null,null,null,null,null,null,null,null,null,null,null,null,null,null,null,null,null,null,null,null,null,null,"","",0]
[null,null,229,0,"",0,0,0,0,null,"",null,null,null,null,null,null,null,null,null,null,null,null,null,null,null,null,null,null,null,null,null,null,null,null,null,null,null,null,null,null,null,null,null,null,null,null,null,null,null,null,null,null,null,null,null,null,null,null,null,null,null,null,"","",0]
[null,null,230,0,"",0,0,0,0,null,"",null,null,null,null,null,null,null,null,null,null,null,null,null,null,null,null,null,null,null,null,null,null,null,null,null,null,null,null,null,null,null,null,null,null,null,null,null,null,null,null,null,null,null,null,null,null,null,null,null,null,null,null,"","",0]
[null,null,231,0,"",0,0,0,0,null,"",null,null,null,null,null,null,null,null,null,null,null,null,null,null,null,null,null,null,null,null,null,null,null,null,null,null,null,null,null,null,null,null,null,null,null,null,null,null,null,null,null,null,null,null,null,null,null,null,null,null,null,null,"","",0]
[null,null,232,0,"",0,0,0,0,null,"",null,null,null,null,null,null,null,null,null,null,null,null,null,null,null,null,null,null,null,null,null,null,null,null,null,null,null,null,null,null,null,null,null,null,null,null,null,null,null,null,null,null,null,null,null,null,null,null,null,null,null,null,"","",0]
[null,null,233,0,"",0,0,0,0,null,"",null,null,null,null,null,null,null,null,null,null,null,null,null,null,null,null,null,null,null,null,null,null,null,null,null,null,null,null,null,null,null,null,null,null,null,null,null,null,null,null,null,null,null,null,null,null,null,null,null,null,null,null,"","",0]
[null,null,234,0,"",0,0,0,0,null,"",null,null,null,null,null,null,null,null,null,null,null,null,null,null,null,null,null,null,null,null,null,null,null,null,null,null,null,null,null,null,null,null,null,null,null,null,null,null,null,null,null,null,null,null,null,null,null,null,null,null,null,null,"","",0]
[null,null,235,0,"",0,0,0,0,null,"",null,null,null,null,null,null,null,null,null,null,null,null,null,null,null,null,null,null,null,null,null,null,null,null,null,null,null,null,null,null,null,null,null,null,null,null,null,null,null,null,null,null,null,null,null,null,null,null,null,null,null,null,"","",0]
[null,null,236,0,"",0,0,0,0,null,"",null,null,null,null,null,null,null,null,null,null,null,null,null,null,null,null,null,null,null,null,null,null,null,null,null,null,null,null,null,null,null,null,null,null,null,null,null,null,null,null,null,null,null,null,null,null,null,null,null,null,null,null,"","",0]
[null,null,237,0,"",0,0,0,0,null,"",null,null,null,null,null,null,null,null,null,null,null,null,null,null,null,null,null,null,null,null,null,null,null,null,null,null,null,null,null,null,null,null,null,null,null,null,null,null,null,null,null,null,null,null,null,null,null,null,null,null,null,null,"","",0]
[null,null,238,0,"",0,0,0,0,null,"",null,null,null,null,null,null,null,null,null,null,null,null,null,null,null,null,null,null,null,null,null,null,null,null,null,null,null,null,null,null,null,null,null,null,null,null,null,null,null,null,null,null,null,null,null,null,null,null,null,null,null,null,"","",0]
[null,null,239,0,"",0,0,0,0,null,"",null,null,null,null,null,null,null,null,null,null,null,null,null,null,null,null,null,null,null,null,null,null,null,null,null,null,null,null,null,null,null,null,null,null,null,null,null,null,null,null,null,null,null,null,null,null,null,null,null,null,null,null,"","",0]
[null,null,240,0,"",0,0,0,0,null,"",null,null,null,null,null,null,null,null,null,null,null,null,null,null,null,null,null,null,null,null,null,null,null,null,null,null,null,null,null,null,null,null,null,null,null,null,null,null,null,null,null,null,null,null,null,null,null,null,null,null,null,null,"","",0]
[null,null,241,0,"",0,0,0,0,null,"",null,null,null,null,null,null,null,null,null,null,null,null,null,null,null,null,null,null,null,null,null,null,null,null,null,null,null,null,null,null,null,null,null,null,null,null,null,null,null,null,null,null,null,null,null,null,null,null,null,null,null,null,"","",0]
[null,null,242,0,"",0,0,0,0,null,"",null,null,null,null,null,null,null,null,null,null,null,null,null,null,null,null,null,null,null,null,null,null,null,null,null,null,null,null,null,null,null,null,null,null,null,null,null,null,null,null,null,null,null,null,null,null,null,null,null,null,null,null,"","",0]
[null,null,243,0,"",0,0,0,0,null,"",null,null,null,null,null,null,null,null,null,null,null,null,null,null,null,null,null,null,null,null,null,null,null,null,null,null,null,null,null,null,null,null,null,null,null,null,null,null,null,null,null,null,null,null,null,null,null,null,null,null,null,null,"","",0]
[null,null,244,0,"",0,0,0,0,null,"",null,null,null,null,null,null,null,null,null,null,null,null,null,null,null,null,null,null,null,null,null,null,null,null,null,null,null,null,null,null,null,null,null,null,null,null,null,null,null,null,null,null,null,null,null,null,null,null,null,null,null,null,"","",0]
[null,null,245,0,"",0,0,0,0,null,"",null,null,null,null,null,null,null,null,null,null,null,null,null,null,null,null,null,null,null,null,null,null,null,null,null,null,null,null,null,null,null,null,null,null,null,null,null,null,null,null,null,null,null,null,null,null,null,null,null,null,null,null,"","",0]
[null,null,246,0,"",0,0,0,0,null,"",null,null,null,null,null,null,null,null,null,null,null,null,null,null,null,null,null,null,null,null,null,null,null,null,null,null,null,null,null,null,null,null,null,null,null,null,null,null,null,null,null,null,null,null,null,null,null,null,null,null,null,null,"","",0]
[null,null,247,0,"",0,0,0,0,null,"",null,null,null,null,null,null,null,null,null,null,null,null,null,null,null,null,null,null,null,null,null,null,null,null,null,null,null,null,null,null,null,null,null,null,null,null,null,null,null,null,null,null,null,null,null,null,null,null,null,null,null,null,"","",0]
[null,null,248,0,"",0,0,0,0,null,"",null,null,null,null,null,null,null,null,null,null,null,null,null,null,null,null,null,null,null,null,null,null,null,null,null,null,null,null,null,null,null,null,null,null,null,null,null,null,null,null,null,null,null,null,null,null,null,null,null,null,null,null,"","",0]
[null,null,249,0,"",0,0,0,0,null,"",null,null,null,null,null,null,null,null,null,null,null,null,null,null,null,null,null,null,null,null,null,null,null,null,null,null,null,null,null,null,null,null,null,null,null,null,null,null,null,null,null,null,null,null,null,null,null,null,null,null,null,null,"","",0]
[null,null,250,0,"",0,0,0,0,null,"",null,null,null,null,null,null,null,null,null,null,null,null,null,null,null,null,null,null,null,null,null,null,null,null,null,null,null,null,null,null,null,null,null,null,null,null,null,null,null,null,null,null,null,null,null,null,null,null,null,null,null,null,"","",0]
[null,null,251,0,"",0,0,0,0,null,"",null,null,null,null,null,null,null,null,null,null,null,null,null,null,null,null,null,null,null,null,null,null,null,null,null,null,null,null,null,null,null,null,null,null,null,null,null,null,null,null,null,null,null,null,null,null,null,null,null,null,null,null,"","",0]
[null,null,252,0,"",0,0,0,0,null,"",null,null,null,null,null,null,null,null,null,null,null,null,null,null,null,null,null,null,null,null,null,null,null,null,null,null,null,null,null,null,null,null,null,null,null,null,null,null,null,null,null,null,null,null,null,null,null,null,null,null,null,null,"","",0]
[null,null,253,0,"",0,0,0,0,null,"",null,null,null,null,null,null,null,null,null,null,null,null,null,null,null,null,null,null,null,null,null,null,null,null,null,null,null,null,null,null,null,null,null,null,null,null,null,null,null,null,null,null,null,null,null,null,null,null,null,null,null,null,"","",0]
[null,null,254,0,"",0,0,0,0,null,"",null,null,null,null,null,null,null,null,null,null,null,null,null,null,null,null,null,null,null,null,null,null,null,null,null,null,null,null,null,null,null,null,null,null,null,null,null,null,null,null,null,null,null,null,null,null,null,null,null,null,null,null,"","",0]
[null,null,255,0,"",0,0,0,0,null,"",null,null,null,null,null,null,null,null,null,null,null,null,null,null,null,null,null,null,null,null,null,null,null,null,null,null,null,null,null,null,null,null,null,null,null,null,null,null,null,null,null,null,null,null,null,null,null,null,null,null,null,null,"","",0]
[null,null,256,0,"",0,0,0,0,null,"",null,null,null,null,null,null,null,null,null,null,null,null,null,null,null,null,null,null,null,null,null,null,null,null,null,null,null,null,null,null,null,null,null,null,null,null,null,null,null,null,null,null,null,null,null,null,null,null,null,null,null,null,"","",0]
[null,null,257,{"$f":"IF(AND(LEFT(Q275,2)=\"01\",LEFT(W275,2)=\"01\",LEFT(X275,2)=\"01\",E275=1),1,0)","v":0},"",0,0,0,0,null,"",null,null,null,null,null,null,null,null,null,null,null,null,null,null,null,null,null,null,null,null,null,null,null,null,null,null,null,null,null,null,null,null,null,null,null,null,null,null,null,null,null,null,null,null,null,null,null,null,null,null,null,null,"","",0]
[null,null,258,0,{"$f":"$B$16","v":""},{"$f":"COUNTIF(AO276:AX276,\"X\")","v":0},{"$f":"IF(Q276<>\"\",VALUE(LEFT(Q276,2)),0)","v":0},{"$f":"IF(P276<>\"\",COUNTIF($P$19:$P$518,P276),0)","v":0},0,null,"",null,null,null,null,null,null,null,null,null,null,null,null,null,null,null,null,null,null,null,null,null,null,null,null,null,null,null,null,null,null,null,null,null,null,null,null,null,null,null,null,null,null,null,null,null,null,null,null,null,null,null,null,"",{"$f":"IF($Z276<>\"\",IF(OR(LEFT($Z276,2)=\"01\",LEFT($Z276,2)=\"02\",LEFT($Z276,2)=\"04\",LEFT($Z276,2)=\"05\"),1,0),\"\")","v":""},0]
[null,null,259,0,"",0,0,0,0,null,{"$f":"IF(C277<=$B$5,C277,\"\")","v":""},null,null,null,null,null,null,null,null,null,null,null,null,null,null,null,null,null,null,null,null,null,null,null,null,null,null,null,null,null,null,null,null,null,null,null,null,null,null,null,null,null,null,null,null,null,null,null,null,null,null,null,null,"","",0]
[null,null,260,0,"",0,0,0,0,null,"",null,null,null,null,null,null,null,null,null,null,null,null,null,null,null,null,null,null,null,null,null,null,null,null,null,null,null,null,null,null,null,null,null,null,null,null,null,null,null,null,null,null,null,null,null,null,null,null,null,null,null,null,"","",0]
[null,null,261,0,"",0,0,0,0,null,"",null,null,null,null,null,null,null,null,null,null,null,null,null,null,null,null,null,null,null,null,null,null,null,null,null,null,null,null,null,null,null,null,null,null,null,null,null,null,null,null,null,null,null,null,null,null,null,null,null,null,null,null,"","",0]
[null,null,262,0,"",0,0,0,0,null,"",null,null,null,null,null,null,null,null,null,null,null,null,null,null,null,null,null,null,null,null,null,null,null,null,null,null,null,null,null,null,null,null,null,null,null,null,null,null,null,null,null,null,null,null,null,null,null,null,null,null,null,null,"","",0]
[null,null,263,0,"",0,0,0,0,null,"",null,null,null,null,null,null,null,null,null,null,null,null,null,null,null,null,null,null,null,null,null,null,null,null,null,null,null,null,null,null,null,null,null,null,null,null,null,null,null,null,null,null,null,null,null,null,null,null,null,null,null,null,"","",0]
[null,null,264,0,"",0,0,0,0,null,"",null,null,null,null,null,null,null,null,null,null,null,null,null,null,null,null,null,null,null,null,null,null,null,null,null,null,null,null,null,null,null,null,null,null,null,null,null,null,null,null,null,null,null,null,null,null,null,null,null,null,null,null,"","",0]
[null,null,265,0,"",0,0,0,{"$f":"IF(K283<>\"\",1,0)","v":0},null,"",null,null,null,null,null,null,null,null,null,null,null,null,null,null,null,null,null,null,null,null,null,null,null,null,null,null,null,null,null,null,null,null,null,null,null,null,null,null,null,null,null,null,null,null,null,null,null,null,null,null,null,null,"","",0]
[null,null,266,0,"",0,0,0,0,null,"",null,null,null,null,null,null,null,null,null,null,null,null,null,null,null,null,null,null,null,null,null,null,null,null,null,null,null,null,null,null,null,null,null,null,null,null,null,null,null,null,null,null,null,null,null,null,null,null,null,null,null,null,"","",0]
[null,null,267,0,"",0,0,0,0,null,"",null,null,null,null,null,null,null,null,null,null,null,null,null,null,null,null,null,null,null,null,null,null,null,null,null,null,null,null,null,null,null,null,null,null,null,null,null,null,null,null,null,null,null,null,null,null,null,null,null,null,null,null,"","",0]
[null,null,268,0,"",0,0,0,0,null,"",null,null,null,null,null,null,null,null,null,null,null,null,null,null,null,null,null,null,null,null,null,null,null,null,null,null,null,null,null,null,null,null,null,null,null,null,null,null,null,null,null,null,null,null,null,null,null,null,null,null,null,null,"","",0]
[null,null,269,0,"",0,0,0,0,null,"",null,null,null,null,null,null,null,null,null,null,null,null,null,null,null,null,null,null,null,null,null,null,null,null,null,null,null,null,null,null,null,null,null,null,null,null,null,null,null,null,null,null,null,null,null,null,null,null,null,null,null,null,"","",0]
[null,null,270,0,"",0,0,0,0,null,"",null,null,null,null,null,null,null,null,null,null,null,null,null,null,null,null,null,null,null,null,null,null,null,null,null,null,null,null,null,null,null,null,null,null,null,null,null,null,null,null,null,null,null,null,null,null,null,null,null,null,null,null,"","",0]
[null,null,271,0,"",0,0,0,0,null,"",null,null,null,null,null,null,null,null,null,null,null,null,null,null,null,null,null,null,null,null,null,null,null,null,null,null,null,null,null,null,null,null,null,null,null,null,null,null,null,null,null,null,null,null,null,null,null,null,null,null,null,null,"","",0]
[null,null,272,0,"",0,0,0,0,null,"",null,null,null,null,null,null,null,null,null,null,null,null,null,null,null,null,null,null,null,null,null,null,null,null,null,null,null,null,null,null,null,null,null,null,null,null,null,null,null,null,null,null,null,null,null,null,null,null,null,null,null,null,"","",0]
[null,null,273,0,"",0,0,0,0,null,"",null,null,null,null,null,null,null,null,null,null,null,null,null,null,null,null,null,null,null,null,null,null,null,null,null,null,null,null,null,null,null,null,null,null,null,null,null,null,null,null,null,null,null,null,null,null,null,null,null,null,null,null,"","",0]
[null,null,274,0,"",0,0,0,0,null,"",null,null,null,null,null,null,null,null,null,null,null,null,null,null,null,null,null,null,null,null,null,null,null,null,null,null,null,null,null,null,null,null,null,null,null,null,null,null,null,null,null,null,null,null,null,null,null,null,null,null,null,null,"","",0]
[null,null,275,0,"",0,0,0,0,null,"",null,null,null,null,null,null,null,null,null,null,null,null,null,null,null,null,null,null,null,null,null,null,null,null,null,null,null,null,null,null,null,null,null,null,null,null,null,null,null,null,null,null,null,null,null,null,null,null,null,null,null,null,"","",0]
[null,null,276,0,"",0,0,0,0,null,"",null,null,null,null,null,null,null,null,null,null,null,null,null,null,null,null,null,null,null,null,null,null,null,null,null,null,null,null,null,null,null,null,null,null,null,null,null,null,null,null,null,null,null,null,null,null,null,null,null,null,null,null,"","",0]
[null,null,277,0,"",0,0,0,0,null,"",null,null,null,null,null,null,null,null,null,null,null,null,null,null,null,null,null,null,null,null,null,null,null,null,null,null,null,null,null,null,null,null,null,null,null,null,null,null,null,null,null,null,null,null,null,null,null,null,null,null,null,null,"","",0]
[null,null,278,0,"",0,0,0,0,null,"",null,null,null,null,null,null,null,null,null,null,null,null,null,null,null,null,null,null,null,null,null,null,null,null,null,null,null,null,null,null,null,null,null,null,null,null,null,null,null,null,null,null,null,null,null,null,null,null,null,null,null,null,"","",0]
[null,null,279,0,"",0,0,0,0,null,"",null,null,null,null,null,null,null,null,null,null,null,null,null,null,null,null,null,null,null,null,null,null,null,null,null,null,null,null,null,null,null,null,null,null,null,null,null,null,null,null,null,null,null,null,null,null,null,null,null,null,null,null,"","",0]
[null,null,280,0,"",0,0,0,0,null,"",null,null,null,null,null,null,null,null,null,null,null,null,null,null,null,null,null,null,null,null,null,null,null,null,null,null,null,null,null,null,null,null,null,null,null,null,null,null,null,null,null,null,null,null,null,null,null,null,null,null,null,null,"","",0]
[null,null,281,0,"",0,0,0,0,null,"",null,null,null,null,null,null,null,null,null,null,null,null,null,null,null,null,null,null,null,null,null,null,null,null,null,null,null,null,null,null,null,null,null,null,null,null,null,null,null,null,null,null,null,null,null,null,null,null,null,null,null,null,"","",0]
[null,null,282,0,"",0,0,0,0,null,"",null,null,null,null,null,null,null,null,null,null,null,null,null,null,null,null,null,null,null,null,null,null,null,null,null,null,null,null,null,null,null,null,null,null,null,null,null,null,null,null,null,null,null,null,null,null,null,null,null,null,null,null,"","",0]
[null,null,283,0,"",0,0,0,0,null,"",null,null,null,null,null,null,null,null,null,null,null,null,null,null,null,null,null,null,null,null,null,null,null,null,null,null,null,null,null,null,null,null,null,null,null,null,null,null,null,null,null,null,null,null,null,null,null,null,null,null,null,null,"","",0]
[null,null,284,0,"",0,0,0,0,null,"",null,null,null,null,null,null,null,null,null,null,null,null,null,null,null,null,null,null,null,null,null,null,null,null,null,null,null,null,null,null,null,null,null,null,null,null,null,null,null,null,null,null,null,null,null,null,null,null,null,null,null,null,"","",0]
[null,null,285,0,"",0,0,0,0,null,"",null,null,null,null,null,null,null,null,null,null,null,null,null,null,null,null,null,null,null,null,null,null,null,null,null,null,null,null,null,null,null,null,null,null,null,null,null,null,null,null,null,null,null,null,null,null,null,null,null,null,null,null,"","",0]
[null,null,286,0,"",0,0,0,0,null,"",null,null,null,null,null,null,null,null,null,null,null,null,null,null,null,null,null,null,null,null,null,null,null,null,null,null,null,null,null,null,null,null,null,null,null,null,null,null,null,null,null,null,null,null,null,null,null,null,null,null,null,null,"","",0]
[null,null,287,0,"",0,0,0,0,null,"",null,null,null,null,null,null,null,null,null,null,null,null,null,null,null,null,null,null,null,null,null,null,null,null,null,null,null,null,null,null,null,null,null,null,null,null,null,null,null,null,null,null,null,null,null,null,null,null,null,null,null,null,"","",0]
[null,null,288,0,"",0,0,0,0,null,"",null,null,null,null,null,null,null,null,null,null,null,null,null,null,null,null,null,null,null,null,null,null,null,null,null,null,null,null,null,null,null,null,null,null,null,null,null,null,null,null,null,null,null,null,null,null,null,null,null,null,null,null,"","",0]
[null,null,289,0,"",0,0,0,0,null,"",null,null,null,null,null,null,null,null,null,null,null,null,null,null,null,null,null,null,null,null,null,null,null,null,null,null,null,null,null,null,null,null,null,null,null,null,null,null,null,null,null,null,null,null,null,null,null,null,null,null,null,null,"","",0]
[null,null,290,0,"",0,0,0,0,null,"",null,null,null,null,null,null,null,null,null,null,null,null,null,null,null,null,null,null,null,null,null,null,null,null,null,null,null,null,null,null,null,null,null,null,null,null,null,null,null,null,null,null,null,null,null,null,null,null,null,null,null,null,"","",0]
[null,null,291,0,"",0,0,0,0,null,"",null,null,null,null,null,null,null,null,null,null,null,null,null,null,null,null,null,null,null,null,null,null,null,null,null,null,null,null,null,null,null,null,null,null,null,null,null,null,null,null,null,null,null,null,null,null,null,null,null,null,null,null,"","",0]
[null,null,292,0,"",0,0,0,0,null,"",null,null,null,null,null,null,null,null,null,null,null,null,null,null,null,null,null,null,null,null,null,null,null,null,null,null,null,null,null,null,null,null,null,null,null,null,null,null,null,null,null,null,null,null,null,null,null,null,null,null,null,null,"","",0]
[null,null,293,0,"",0,0,0,0,null,"",null,null,null,null,null,null,null,null,null,null,null,null,null,null,null,null,null,null,null,null,null,null,null,null,null,null,null,null,null,null,null,null,null,null,null,null,null,null,null,null,null,null,null,null,null,null,null,null,null,null,null,null,"","",0]
[null,null,294,0,"",0,0,0,0,null,"",null,null,null,null,null,null,null,null,null,null,null,null,null,null,null,null,null,null,null,null,null,null,null,null,null,null,null,null,null,null,null,null,null,null,null,null,null,null,null,null,null,null,null,null,null,null,null,null,null,null,null,null,"","",0]
[null,null,295,0,"",0,0,0,0,null,"",null,null,null,null,null,null,null,null,null,null,null,null,null,null,null,null,null,null,null,null,null,null,null,null,null,null,null,null,null,null,null,null,null,null,null,null,null,null,null,null,null,null,null,null,null,null,null,null,null,null,null,null,"","",0]
[null,null,296,0,"",0,0,0,0,null,"",null,null,null,null,null,null,null,null,null,null,null,null,null,null,null,null,null,null,null,null,null,null,null,null,null,null,null,null,null,null,null,null,null,null,null,null,null,null,null,null,null,null,null,null,null,null,null,null,null,null,null,null,"","",0]
[null,null,297,0,"",0,0,0,0,null,"",null,null,null,null,null,null,null,null,null,null,null,null,null,null,null,null,null,null,null,null,null,null,null,null,null,null,null,null,null,null,null,null,null,null,null,null,null,null,null,null,null,null,null,null,null,null,null,null,null,null,null,null,"","",0]
[null,null,298,0,"",0,0,0,0,null,"",null,null,null,null,null,null,null,null,null,null,null,null,null,null,null,null,null,null,null,null,null,null,null,null,null,null,null,null,null,null,null,null,null,null,null,null,null,null,null,null,null,null,null,null,null,null,null,null,null,null,null,null,"","",0]
[null,null,299,0,"",0,0,0,0,null,"",null,null,null,null,null,null,null,null,null,null,null,null,null,null,null,null,null,null,null,null,null,null,null,null,null,null,null,null,null,null,null,null,null,null,null,null,null,null,null,null,null,null,null,null,null,null,null,null,null,null,null,null,"","",0]
[null,null,300,0,"",0,0,0,0,null,"",null,null,null,null,null,null,null,null,null,null,null,null,null,null,null,null,null,null,null,null,null,null,null,null,null,null,null,null,null,null,null,null,null,null,null,null,null,null,null,null,null,null,null,null,null,null,null,null,null,null,null,null,"","",0]
[null,null,301,0,"",0,0,0,0,null,"",null,null,null,null,null,null,null,null,null,null,null,null,null,null,null,null,null,null,null,null,null,null,null,null,null,null,null,null,null,null,null,null,null,null,null,null,null,null,null,null,null,null,null,null,null,null,null,null,null,null,null,null,"","",0]
[null,null,302,0,"",0,0,0,0,null,"",null,null,null,null,null,null,null,null,null,null,null,null,null,null,null,null,null,null,null,null,null,null,null,null,null,null,null,null,null,null,null,null,null,null,null,null,null,null,null,null,null,null,null,null,null,null,null,null,null,null,null,null,"","",0]
[null,null,303,0,"",0,0,0,0,null,"",null,null,null,null,null,null,null,null,null,null,null,null,null,null,null,null,null,null,null,null,null,null,null,null,null,null,null,null,null,null,null,null,null,null,null,null,null,null,null,null,null,null,null,null,null,null,null,null,null,null,null,null,"","",0]
[null,null,304,0,"",0,0,0,0,null,"",null,null,null,null,null,null,null,null,null,null,null,null,null,null,null,null,null,null,null,null,null,null,null,null,null,null,null,null,null,null,null,null,null,null,null,null,null,null,null,null,null,null,null,null,null,null,null,null,null,null,null,null,"","",0]
[null,null,305,0,"",0,0,0,0,null,"",null,null,null,null,null,null,null,null,null,null,null,null,null,null,null,null,null,null,null,null,null,null,null,null,null,null,null,null,null,null,null,null,null,null,null,null,null,null,null,null,null,null,null,null,null,null,null,null,null,null,null,null,"","",0]
[null,null,306,0,"",0,0,0,0,null,"",null,null,null,null,null,null,null,null,null,null,null,null,null,null,null,null,null,null,null,null,null,null,null,null,null,null,null,null,null,null,null,null,null,null,null,null,null,null,null,null,null,null,null,null,null,null,null,null,null,null,null,null,"","",0]
[null,null,307,0,"",0,0,0,0,null,"",null,null,null,null,null,null,null,null,null,null,null,null,null,null,null,null,null,null,null,null,null,null,null,null,null,null,null,null,null,null,null,null,null,null,null,null,null,null,null,null,null,null,null,null,null,null,null,null,null,null,null,null,"","",0]
[null,null,308,0,"",0,0,0,0,null,"",null,null,null,null,null,null,null,null,null,null,null,null,null,null,null,null,null,null,null,null,null,null,null,null,null,null,null,null,null,null,null,null,null,null,null,null,null,null,null,null,null,null,null,null,null,null,null,null,null,null,null,null,"","",0]
[null,null,309,0,"",0,0,0,0,null,"",null,null,null,null,null,null,null,null,null,null,null,null,null,null,null,null,null,null,null,null,null,null,null,null,null,null,null,null,null,null,null,null,null,null,null,null,null,null,null,null,null,null,null,null,null,null,null,null,null,null,null,null,"","",0]
[null,null,310,0,"",0,0,0,0,null,"",null,null,null,null,null,null,null,null,null,null,null,null,null,null,null,null,null,null,null,null,null,null,null,null,null,null,null,null,null,null,null,null,null,null,null,null,null,null,null,null,null,null,null,null,null,null,null,null,null,null,null,null,"","",0]
[null,null,311,0,"",0,0,0,0,null,"",null,null,null,null,null,null,null,null,null,null,null,null,null,null,null,null,null,null,null,null,null,null,null,null,null,null,null,null,null,null,null,null,null,null,null,null,null,null,null,null,null,null,null,null,null,null,null,null,null,null,null,null,"","",0]
[null,null,312,0,"",0,0,0,0,null,"",null,null,null,null,null,null,null,null,null,null,null,null,null,null,null,null,null,null,null,null,null,null,null,null,null,null,null,null,null,null,null,null,null,null,null,null,null,null,null,null,null,null,null,null,null,null,null,null,null,null,null,null,"","",0]
[null,null,313,0,"",0,0,0,0,null,"",null,null,null,null,null,null,null,null,null,null,null,null,null,null,null,null,null,null,null,null,null,null,null,null,null,null,null,null,null,null,null,null,null,null,null,null,null,null,null,null,null,null,null,null,null,null,null,null,null,null,null,null,"","",0]
[null,null,314,0,"",0,0,0,0,null,"",null,null,null,null,null,null,null,null,null,null,null,null,null,null,null,null,null,null,null,null,null,null,null,null,null,null,null,null,null,null,null,null,null,null,null,null,null,null,null,null,null,null,null,null,null,null,null,null,null,null,null,null,"","",0]
[null,null,315,0,"",0,0,0,0,null,"",null,null,null,null,null,null,null,null,null,null,null,null,null,null,null,null,null,null,null,null,null,null,null,null,null,null,null,null,null,null,null,null,null,null,null,null,null,null,null,null,null,null,null,null,null,null,null,null,null,null,null,null,"","",0]
[null,null,316,0,"",0,0,0,0,null,"",null,null,null,null,null,null,null,null,null,null,null,null,null,null,null,null,null,null,null,null,null,null,null,null,null,null,null,null,null,null,null,null,null,null,null,null,null,null,null,null,null,null,null,null,null,null,null,null,null,null,null,null,"","",0]
[null,null,317,0,"",0,0,0,0,null,"",null,null,null,null,null,null,null,null,null,null,null,null,null,null,null,null,null,null,null,null,null,null,null,null,null,null,null,null,null,null,null,null,null,null,null,null,null,null,null,null,null,null,null,null,null,null,null,null,null,null,null,null,"","",0]
[null,null,318,0,"",0,0,0,0,null,"",null,null,null,null,null,null,null,null,null,null,null,null,null,null,null,null,null,null,null,null,null,null,null,null,null,null,null,null,null,null,null,null,null,null,null,null,null,null,null,null,null,null,null,null,null,null,null,null,null,null,null,null,"","",0]
[null,null,319,0,"",0,0,0,0,null,"",null,null,null,null,null,null,null,null,null,null,null,null,null,null,null,null,null,null,null,null,null,null,null,null,null,null,null,null,null,null,null,null,null,null,null,null,null,null,null,null,null,null,null,null,null,null,null,null,null,null,null,null,"","",0]
[null,null,320,0,"",0,0,0,0,null,"",null,null,null,null,null,null,null,null,null,null,null,null,null,null,null,null,null,null,null,null,null,null,null,null,null,null,null,null,null,null,null,null,null,null,null,null,null,null,null,null,null,null,null,null,null,null,null,null,null,null,null,null,"","",0]
[null,null,321,{"$f":"IF(AND(LEFT(Q339,2)=\"01\",LEFT(W339,2)=\"01\",LEFT(X339,2)=\"01\",E339=1),1,0)","v":0},"",0,0,0,0,null,"",null,null,null,null,null,null,null,null,null,null,null,null,null,null,null,null,null,null,null,null,null,null,null,null,null,null,null,null,null,null,null,null,null,null,null,null,null,null,null,null,null,null,null,null,null,null,null,null,null,null,null,null,"","",0]
[null,null,322,0,{"$f":"$B$16","v":""},{"$f":"COUNTIF(AO340:AX340,\"X\")","v":0},{"$f":"IF(Q340<>\"\",VALUE(LEFT(Q340,2)),0)","v":0},{"$f":"IF(P340<>\"\",COUNTIF($P$19:$P$518,P340),0)","v":0},0,null,"",null,null,null,null,null,null,null,null,null,null,null,null,null,null,null,null,null,null,null,null,null,null,null,null,null,null,null,null,null,null,null,null,null,null,null,null,null,null,null,null,null,null,null,null,null,null,null,null,null,null,null,null,"",{"$f":"IF($Z340<>\"\",IF(OR(LEFT($Z340,2)=\"01\",LEFT($Z340,2)=\"02\",LEFT($Z340,2)=\"04\",LEFT($Z340,2)=\"05\"),1,0),\"\")","v":""},0]
[null,null,323,0,"",0,0,0,0,null,{"$f":"IF(C341<=$B$5,C341,\"\")","v":""},null,null,null,null,null,null,null,null,null,null,null,null,null,null,null,null,null,null,null,null,null,null,null,null,null,null,null,null,null,null,null,null,null,null,null,null,null,null,null,null,null,null,null,null,null,null,null,null,null,null,null,null,"","",0]
[null,null,324,0,"",0,0,0,0,null,"",null,null,null,null,null,null,null,null,null,null,null,null,null,null,null,null,null,null,null,null,null,null,null,null,null,null,null,null,null,null,null,null,null,null,null,null,null,null,null,null,null,null,null,null,null,null,null,null,null,null,null,null,"","",0]
[null,null,325,0,"",0,0,0,0,null,"",null,null,null,null,null,null,null,null,null,null,null,null,null,null,null,null,null,null,null,null,null,null,null,null,null,null,null,null,null,null,null,null,null,null,null,null,null,null,null,null,null,null,null,null,null,null,null,null,null,null,null,null,"","",0]
[null,null,326,0,"",0,0,0,0,null,"",null,null,null,null,null,null,null,null,null,null,null,null,null,null,null,null,null,null,null,null,null,null,null,null,null,null,null,null,null,null,null,null,null,null,null,null,null,null,null,null,null,null,null,null,null,null,null,null,null,null,null,null,"","",0]
[null,null,327,0,"",0,0,0,0,null,"",null,null,null,null,null,null,null,null,null,null,null,null,null,null,null,null,null,null,null,null,null,null,null,null,null,null,null,null,null,null,null,null,null,null,null,null,null,null,null,null,null,null,null,null,null,null,null,null,null,null,null,null,"","",0]
[null,null,328,0,"",0,0,0,0,null,"",null,null,null,null,null,null,null,null,null,null,null,null,null,null,null,null,null,null,null,null,null,null,null,null,null,null,null,null,null,null,null,null,null,null,null,null,null,null,null,null,null,null,null,null,null,null,null,null,null,null,null,null,"","",0]
[null,null,329,0,"",0,0,0,{"$f":"IF(K347<>\"\",1,0)","v":0},null,"",null,null,null,null,null,null,null,null,null,null,null,null,null,null,null,null,null,null,null,null,null,null,null,null,null,null,null,null,null,null,null,null,null,null,null,null,null,null,null,null,null,null,null,null,null,null,null,null,null,null,null,null,"","",0]
[null,null,330,0,"",0,0,0,0,null,"",null,null,null,null,null,null,null,null,null,null,null,null,null,null,null,null,null,null,null,null,null,null,null,null,null,null,null,null,null,null,null,null,null,null,null,null,null,null,null,null,null,null,null,null,null,null,null,null,null,null,null,null,"","",0]
[null,null,331,0,"",0,0,0,0,null,"",null,null,null,null,null,null,null,null,null,null,null,null,null,null,null,null,null,null,null,null,null,null,null,null,null,null,null,null,null,null,null,null,null,null,null,null,null,null,null,null,null,null,null,null,null,null,null,null,null,null,null,null,"","",0]
[null,null,332,0,"",0,0,0,0,null,"",null,null,null,null,null,null,null,null,null,null,null,null,null,null,null,null,null,null,null,null,null,null,null,null,null,null,null,null,null,null,null,null,null,null,null,null,null,null,null,null,null,null,null,null,null,null,null,null,null,null,null,null,"","",0]
[null,null,333,0,"",0,0,0,0,null,"",null,null,null,null,null,null,null,null,null,null,null,null,null,null,null,null,null,null,null,null,null,null,null,null,null,null,null,null,null,null,null,null,null,null,null,null,null,null,null,null,null,null,null,null,null,null,null,null,null,null,null,null,"","",0]
[null,null,334,0,"",0,0,0,0,null,"",null,null,null,null,null,null,null,null,null,null,null,null,null,null,null,null,null,null,null,null,null,null,null,null,null,null,null,null,null,null,null,null,null,null,null,null,null,null,null,null,null,null,null,null,null,null,null,null,null,null,null,null,"","",0]
[null,null,335,0,"",0,0,0,0,null,"",null,null,null,null,null,null,null,null,null,null,null,null,null,null,null,null,null,null,null,null,null,null,null,null,null,null,null,null,null,null,null,null,null,null,null,null,null,null,null,null,null,null,null,null,null,null,null,null,null,null,null,null,"","",0]
[null,null,336,0,"",0,0,0,0,null,"",null,null,null,null,null,null,null,null,null,null,null,null,null,null,null,null,null,null,null,null,null,null,null,null,null,null,null,null,null,null,null,null,null,null,null,null,null,null,null,null,null,null,null,null,null,null,null,null,null,null,null,null,"","",0]
[null,null,337,0,"",0,0,0,0,null,"",null,null,null,null,null,null,null,null,null,null,null,null,null,null,null,null,null,null,null,null,null,null,null,null,null,null,null,null,null,null,null,null,null,null,null,null,null,null,null,null,null,null,null,null,null,null,null,null,null,null,null,null,"","",0]
[null,null,338,0,"",0,0,0,0,null,"",null,null,null,null,null,null,null,null,null,null,null,null,null,null,null,null,null,null,null,null,null,null,null,null,null,null,null,null,null,null,null,null,null,null,null,null,null,null,null,null,null,null,null,null,null,null,null,null,null,null,null,null,"","",0]
[null,null,339,0,"",0,0,0,0,null,"",null,null,null,null,null,null,null,null,null,null,null,null,null,null,null,null,null,null,null,null,null,null,null,null,null,null,null,null,null,null,null,null,null,null,null,null,null,null,null,null,null,null,null,null,null,null,null,null,null,null,null,null,"","",0]
[null,null,340,0,"",0,0,0,0,null,"",null,null,null,null,null,null,null,null,null,null,null,null,null,null,null,null,null,null,null,null,null,null,null,null,null,null,null,null,null,null,null,null,null,null,null,null,null,null,null,null,null,null,null,null,null,null,null,null,null,null,null,null,"","",0]
[null,null,341,0,"",0,0,0,0,null,"",null,null,null,null,null,null,null,null,null,null,null,null,null,null,null,null,null,null,null,null,null,null,null,null,null,null,null,null,null,null,null,null,null,null,null,null,null,null,null,null,null,null,null,null,null,null,null,null,null,null,null,null,"","",0]
[null,null,342,0,"",0,0,0,0,null,"",null,null,null,null,null,null,null,null,null,null,null,null,null,null,null,null,null,null,null,null,null,null,null,null,null,null,null,null,null,null,null,null,null,null,null,null,null,null,null,null,null,null,null,null,null,null,null,null,null,null,null,null,"","",0]
[null,null,343,0,"",0,0,0,0,null,"",null,null,null,null,null,null,null,null,null,null,null,null,null,null,null,null,null,null,null,null,null,null,null,null,null,null,null,null,null,null,null,null,null,null,null,null,null,null,null,null,null,null,null,null,null,null,null,null,null,null,null,null,"","",0]
[null,null,344,0,"",0,0,0,0,null,"",null,null,null,null,null,null,null,null,null,null,null,null,null,null,null,null,null,null,null,null,null,null,null,null,null,null,null,null,null,null,null,null,null,null,null,null,null,null,null,null,null,null,null,null,null,null,null,null,null,null,null,null,"","",0]
[null,null,345,0,"",0,0,0,0,null,"",null,null,null,null,null,null,null,null,null,null,null,null,null,null,null,null,null,null,null,null,null,null,null,null,null,null,null,null,null,null,null,null,null,null,null,null,null,null,null,null,null,null,null,null,null,null,null,null,null,null,null,null,"","",0]
[null,null,346,0,"",0,0,0,0,null,"",null,null,null,null,null,null,null,null,null,null,null,null,null,null,null,null,null,null,null,null,null,null,null,null,null,null,null,null,null,null,null,null,null,null,null,null,null,null,null,null,null,null,null,null,null,null,null,null,null,null,null,null,"","",0]
[null,null,347,0,"",0,0,0,0,null,"",null,null,null,null,null,null,null,null,null,null,null,null,null,null,null,null,null,null,null,null,null,null,null,null,null,null,null,null,null,null,null,null,null,null,null,null,null,null,null,null,null,null,null,null,null,null,null,null,null,null,null,null,"","",0]
[null,null,348,0,"",0,0,0,0,null,"",null,null,null,null,null,null,null,null,null,null,null,null,null,null,null,null,null,null,null,null,null,null,null,null,null,null,null,null,null,null,null,null,null,null,null,null,null,null,null,null,null,null,null,null,null,null,null,null,null,null,null,null,"","",0]
[null,null,349,0,"",0,0,0,0,null,"",null,null,null,null,null,null,null,null,null,null,null,null,null,null,null,null,null,null,null,null,null,null,null,null,null,null,null,null,null,null,null,null,null,null,null,null,null,null,null,null,null,null,null,null,null,null,null,null,null,null,null,null,"","",0]
[null,null,350,0,"",0,0,0,0,null,"",null,null,null,null,null,null,null,null,null,null,null,null,null,null,null,null,null,null,null,null,null,null,null,null,null,null,null,null,null,null,null,null,null,null,null,null,null,null,null,null,null,null,null,null,null,null,null,null,null,null,null,null,"","",0]
[null,null,351,0,"",0,0,0,0,null,"",null,null,null,null,null,null,null,null,null,null,null,null,null,null,null,null,null,null,null,null,null,null,null,null,null,null,null,null,null,null,null,null,null,null,null,null,null,null,null,null,null,null,null,null,null,null,null,null,null,null,null,null,"","",0]
[null,null,352,0,"",0,0,0,0,null,"",null,null,null,null,null,null,null,null,null,null,null,null,null,null,null,null,null,null,null,null,null,null,null,null,null,null,null,null,null,null,null,null,null,null,null,null,null,null,null,null,null,null,null,null,null,null,null,null,null,null,null,null,"","",0]
[null,null,353,0,"",0,0,0,0,null,"",null,null,null,null,null,null,null,null,null,null,null,null,null,null,null,null,null,null,null,null,null,null,null,null,null,null,null,null,null,null,null,null,null,null,null,null,null,null,null,null,null,null,null,null,null,null,null,null,null,null,null,null,"","",0]
[null,null,354,0,"",0,0,0,0,null,"",null,null,null,null,null,null,null,null,null,null,null,null,null,null,null,null,null,null,null,null,null,null,null,null,null,null,null,null,null,null,null,null,null,null,null,null,null,null,null,null,null,null,null,null,null,null,null,null,null,null,null,null,"","",0]
[null,null,355,0,"",0,0,0,0,null,"",null,null,null,null,null,null,null,null,null,null,null,null,null,null,null,null,null,null,null,null,null,null,null,null,null,null,null,null,null,null,null,null,null,null,null,null,null,null,null,null,null,null,null,null,null,null,null,null,null,null,null,null,"","",0]
[null,null,356,0,"",0,0,0,0,null,"",null,null,null,null,null,null,null,null,null,null,null,null,null,null,null,null,null,null,null,null,null,null,null,null,null,null,null,null,null,null,null,null,null,null,null,null,null,null,null,null,null,null,null,null,null,null,null,null,null,null,null,null,"","",0]
[null,null,357,0,"",0,0,0,0,null,"",null,null,null,null,null,null,null,null,null,null,null,null,null,null,null,null,null,null,null,null,null,null,null,null,null,null,null,null,null,null,null,null,null,null,null,null,null,null,null,null,null,null,null,null,null,null,null,null,null,null,null,null,"","",0]
[null,null,358,0,"",0,0,0,0,null,"",null,null,null,null,null,null,null,null,null,null,null,null,null,null,null,null,null,null,null,null,null,null,null,null,null,null,null,null,null,null,null,null,null,null,null,null,null,null,null,null,null,null,null,null,null,null,null,null,null,null,null,null,"","",0]
[null,null,359,0,"",0,0,0,0,null,"",null,null,null,null,null,null,null,null,null,null,null,null,null,null,null,null,null,null,null,null,null,null,null,null,null,null,null,null,null,null,null,null,null,null,null,null,null,null,null,null,null,null,null,null,null,null,null,null,null,null,null,null,"","",0]
[null,null,360,0,"",0,0,0,0,null,"",null,null,null,null,null,null,null,null,null,null,null,null,null,null,null,null,null,null,null,null,null,null,null,null,null,null,null,null,null,null,null,null,null,null,null,null,null,null,null,null,null,null,null,null,null,null,null,null,null,null,null,null,"","",0]
[null,null,361,0,"",0,0,0,0,null,"",null,null,null,null,null,null,null,null,null,null,null,null,null,null,null,null,null,null,null,null,null,null,null,null,null,null,null,null,null,null,null,null,null,null,null,null,null,null,null,null,null,null,null,null,null,null,null,null,null,null,null,null,"","",0]
[null,null,362,0,"",0,0,0,0,null,"",null,null,null,null,null,null,null,null,null,null,null,null,null,null,null,null,null,null,null,null,null,null,null,null,null,null,null,null,null,null,null,null,null,null,null,null,null,null,null,null,null,null,null,null,null,null,null,null,null,null,null,null,"","",0]
[null,null,363,0,"",0,0,0,0,null,"",null,null,null,null,null,null,null,null,null,null,null,null,null,null,null,null,null,null,null,null,null,null,null,null,null,null,null,null,null,null,null,null,null,null,null,null,null,null,null,null,null,null,null,null,null,null,null,null,null,null,null,null,"","",0]
[null,null,364,0,"",0,0,0,0,null,"",null,null,null,null,null,null,null,null,null,null,null,null,null,null,null,null,null,null,null,null,null,null,null,null,null,null,null,null,null,null,null,null,null,null,null,null,null,null,null,null,null,null,null,null,null,null,null,null,null,null,null,null,"","",0]
[null,null,365,0,"",0,0,0,0,null,"",null,null,null,null,null,null,null,null,null,null,null,null,null,null,null,null,null,null,null,null,null,null,null,null,null,null,null,null,null,null,null,null,null,null,null,null,null,null,null,null,null,null,null,null,null,null,null,null,null,null,null,null,"","",0]
[null,null,366,0,"",0,0,0,0,null,"",null,null,null,null,null,null,null,null,null,null,null,null,null,null,null,null,null,null,null,null,null,null,null,null,null,null,null,null,null,null,null,null,null,null,null,null,null,null,null,null,null,null,null,null,null,null,null,null,null,null,null,null,"","",0]
[null,null,367,0,"",0,0,0,0,null,"",null,null,null,null,null,null,null,null,null,null,null,null,null,null,null,null,null,null,null,null,null,null,null,null,null,null,null,null,null,null,null,null,null,null,null,null,null,null,null,null,null,null,null,null,null,null,null,null,null,null,null,null,"","",0]
[null,null,368,0,"",0,0,0,0,null,"",null,null,null,null,null,null,null,null,null,null,null,null,null,null,null,null,null,null,null,null,null,null,null,null,null,null,null,null,null,null,null,null,null,null,null,null,null,null,null,null,null,null,null,null,null,null,null,null,null,null,null,null,"","",0]
[null,null,369,0,"",0,0,0,0,null,"",null,null,null,null,null,null,null,null,null,null,null,null,null,null,null,null,null,null,null,null,null,null,null,null,null,null,null,null,null,null,null,null,null,null,null,null,null,null,null,null,null,null,null,null,null,null,null,null,null,null,null,null,"","",0]
[null,null,370,0,"",0,0,0,0,null,"",null,null,null,null,null,null,null,null,null,null,null,null,null,null,null,null,null,null,null,null,null,null,null,null,null,null,null,null,null,null,null,null,null,null,null,null,null,null,null,null,null,null,null,null,null,null,null,null,null,null,null,null,"","",0]
[null,null,371,0,"",0,0,0,0,null,"",null,null,null,null,null,null,null,null,null,null,null,null,null,null,null,null,null,null,null,null,null,null,null,null,null,null,null,null,null,null,null,null,null,null,null,null,null,null,null,null,null,null,null,null,null,null,null,null,null,null,null,null,"","",0]
[null,null,372,0,"",0,0,0,0,null,"",null,null,null,null,null,null,null,null,null,null,null,null,null,null,null,null,null,null,null,null,null,null,null,null,null,null,null,null,null,null,null,null,null,null,null,null,null,null,null,null,null,null,null,null,null,null,null,null,null,null,null,null,"","",0]
[null,null,373,0,"",0,0,0,0,null,"",null,null,null,null,null,null,null,null,null,null,null,null,null,null,null,null,null,null,null,null,null,null,null,null,null,null,null,null,null,null,null,null,null,null,null,null,null,null,null,null,null,null,null,null,null,null,null,null,null,null,null,null,"","",0]
[null,null,374,0,"",0,0,0,0,null,"",null,null,null,null,null,null,null,null,null,null,null,null,null,null,null,null,null,null,null,null,null,null,null,null,null,null,null,null,null,null,null,null,null,null,null,null,null,null,null,null,null,null,null,null,null,null,null,null,null,null,null,null,"","",0]
[null,null,375,0,"",0,0,0,0,null,"",null,null,null,null,null,null,null,null,null,null,null,null,null,null,null,null,null,null,null,null,null,null,null,null,null,null,null,null,null,null,null,null,null,null,null,null,null,null,null,null,null,null,null,null,null,null,null,null,null,null,null,null,"","",0]
[null,null,376,0,"",0,0,0,0,null,"",null,null,null,null,null,null,null,null,null,null,null,null,null,null,null,null,null,null,null,null,null,null,null,null,null,null,null,null,null,null,null,null,null,null,null,null,null,null,null,null,null,null,null,null,null,null,null,null,null,null,null,null,"","",0]
[null,null,377,0,"",0,0,0,0,null,"",null,null,null,null,null,null,null,null,null,null,null,null,null,null,null,null,null,null,null,null,null,null,null,null,null,null,null,null,null,null,null,null,null,null,null,null,null,null,null,null,null,null,null,null,null,null,null,null,null,null,null,null,"","",0]
[null,null,378,0,"",0,0,0,0,null,"",null,null,null,null,null,null,null,null,null,null,null,null,null,null,null,null,null,null,null,null,null,null,null,null,null,null,null,null,null,null,null,null,null,null,null,null,null,null,null,null,null,null,null,null,null,null,null,null,null,null,null,null,"","",0]
[null,null,379,0,"",0,0,0,0,null,"",null,null,null,null,null,null,null,null,null,null,null,null,null,null,null,null,null,null,null,null,null,null,null,null,null,null,null,null,null,null,null,null,null,null,null,null,null,null,null,null,null,null,null,null,null,null,null,null,null,null,null,null,"","",0]
[null,null,380,0,"",0,0,0,0,null,"",null,null,null,null,null,null,null,null,null,null,null,null,null,null,null,null,null,null,null,null,null,null,null,null,null,null,null,null,null,null,null,null,null,null,null,null,null,null,null,null,null,null,null,null,null,null,null,null,null,null,null,null,"","",0]
[null,null,381,0,"",0,0,0,0,null,"",null,null,null,null,null,null,null,null,null,null,null,null,null,null,null,null,null,null,null,null,null,null,null,null,null,null,null,null,null,null,null,null,null,null,null,null,null,null,null,null,null,null,null,null,null,null,null,null,null,null,null,null,"","",0]
[null,null,382,0,"",0,0,0,0,null,"",null,null,null,null,null,null,null,null,null,null,null,null,null,null,null,null,null,null,null,null,null,null,null,null,null,null,null,null,null,null,null,null,null,null,null,null,null,null,null,null,null,null,null,null,null,null,null,null,null,null,null,null,"","",0]
[null,null,383,0,"",0,0,0,0,null,"",null,null,null,null,null,null,null,null,null,null,null,null,null,null,null,null,null,null,null,null,null,null,null,null,null,null,null,null,null,null,null,null,null,null,null,null,null,null,null,null,null,null,null,null,null,null,null,null,null,null,null,null,"","",0]
[null,null,384,0,"",0,0,0,0,null,"",null,null,null,null,null,null,null,null,null,null,null,null,null,null,null,null,null,null,null,null,null,null,null,null,null,null,null,null,null,null,null,null,null,null,null,null,null,null,null,null,null,null,null,null,null,null,null,null,null,null,null,null,"","",0]
[null,null,385,{"$f":"IF(AND(LEFT(Q403,2)=\"01\",LEFT(W403,2)=\"01\",LEFT(X403,2)=\"01\",E403=1),1,0)","v":0},"",0,0,0,0,null,"",null,null,null,null,null,null,null,null,null,null,null,null,null,null,null,null,null,null,null,null,null,null,null,null,null,null,null,null,null,null,null,null,null,null,null,null,null,null,null,null,null,null,null,null,null,null,null,null,null,null,null,null,"","",0]
[null,null,386,0,{"$f":"$B$16","v":""},{"$f":"COUNTIF(AO404:AX404,\"X\")","v":0},{"$f":"IF(Q404<>\"\",VALUE(LEFT(Q404,2)),0)","v":0},{"$f":"IF(P404<>\"\",COUNTIF($P$19:$P$518,P404),0)","v":0},0,null,"",null,null,null,null,null,null,null,null,null,null,null,null,null,null,null,null,null,null,null,null,null,null,null,null,null,null,null,null,null,null,null,null,null,null,null,null,null,null,null,null,null,null,null,null,null,null,null,null,null,null,null,null,"",{"$f":"IF($Z404<>\"\",IF(OR(LEFT($Z404,2)=\"01\",LEFT($Z404,2)=\"02\",LEFT($Z404,2)=\"04\",LEFT($Z404,2)=\"05\"),1,0),\"\")","v":""},0]
[null,null,387,0,"",0,0,0,0,null,{"$f":"IF(C405<=$B$5,C405,\"\")","v":""},null,null,null,null,null,null,null,null,null,null,null,null,null,null,null,null,null,null,null,null,null,null,null,null,null,null,null,null,null,null,null,null,null,null,null,null,null,null,null,null,null,null,null,null,null,null,null,null,null,null,null,null,"","",0]
[null,null,388,0,"",0,0,0,0,null,"",null,null,null,null,null,null,null,null,null,null,null,null,null,null,null,null,null,null,null,null,null,null,null,null,null,null,null,null,null,null,null,null,null,null,null,null,null,null,null,null,null,null,null,null,null,null,null,null,null,null,null,null,"","",0]
[null,null,389,0,"",0,0,0,0,null,"",null,null,null,null,null,null,null,null,null,null,null,null,null,null,null,null,null,null,null,null,null,null,null,null,null,null,null,null,null,null,null,null,null,null,null,null,null,null,null,null,null,null,null,null,null,null,null,null,null,null,null,null,"","",0]
[null,null,390,0,"",0,0,0,0,null,"",null,null,null,null,null,null,null,null,null,null,null,null,null,null,null,null,null,null,null,null,null,null,null,null,null,null,null,null,null,null,null,null,null,null,null,null,null,null,null,null,null,null,null,null,null,null,null,null,null,null,null,null,"","",0]
[null,null,391,0,"",0,0,0,0,null,"",null,null,null,null,null,null,null,null,null,null,null,null,null,null,null,null,null,null,null,null,null,null,null,null,null,null,null,null,null,null,null,null,null,null,null,null,null,null,null,null,null,null,null,null,null,null,null,null,null,null,null,null,"","",0]
[null,null,392,0,"",0,0,0,0,null,"",null,null,null,null,null,null,null,null,null,null,null,null,null,null,null,null,null,null,null,null,null,null,null,null,null,null,null,null,null,null,null,null,null,null,null,null,null,null,null,null,null,null,null,null,null,null,null,null,null,null,null,null,"","",0]
[null,null,393,0,"",0,0,0,{"$f":"IF(K411<>\"\",1,0)","v":0},null,"",null,null,null,null,null,null,null,null,null,null,null,null,null,null,null,null,null,null,null,null,null,null,null,null,null,null,null,null,null,null,null,null,null,null,null,null,null,null,null,null,null,null,null,null,null,null,null,null,null,null,null,null,"","",0]
[null,null,394,0,"",0,0,0,0,null,"",null,null,null,null,null,null,null,null,null,null,null,null,null,null,null,null,null,null,null,null,null,null,null,null,null,null,null,null,null,null,null,null,null,null,null,null,null,null,null,null,null,null,null,null,null,null,null,null,null,null,null,null,"","",0]
[null,null,395,0,"",0,0,0,0,null,"",null,null,null,null,null,null,null,null,null,null,null,null,null,null,null,null,null,null,null,null,null,null,null,null,null,null,null,null,null,null,null,null,null,null,null,null,null,null,null,null,null,null,null,null,null,null,null,null,null,null,null,null,"","",0]
[null,null,396,0,"",0,0,0,0,null,"",null,null,null,null,null,null,null,null,null,null,null,null,null,null,null,null,null,null,null,null,null,null,null,null,null,null,null,null,null,null,null,null,null,null,null,null,null,null,null,null,null,null,null,null,null,null,null,null,null,null,null,null,"","",0]
[null,null,397,0,"",0,0,0,0,null,"",null,null,null,null,null,null,null,null,null,null,null,null,null,null,null,null,null,null,null,null,null,null,null,null,null,null,null,null,null,null,null,null,null,null,null,null,null,null,null,null,null,null,null,null,null,null,null,null,null,null,null,null,"","",0]
[null,null,398,0,"",0,0,0,0,null,"",null,null,null,null,null,null,null,null,null,null,null,null,null,null,null,null,null,null,null,null,null,null,null,null,null,null,null,null,null,null,null,null,null,null,null,null,null,null,null,null,null,null,null,null,null,null,null,null,null,null,null,null,"","",0]
[null,null,399,0,"",0,0,0,0,null,"",null,null,null,null,null,null,null,null,null,null,null,null,null,null,null,null,null,null,null,null,null,null,null,null,null,null,null,null,null,null,null,null,null,null,null,null,null,null,null,null,null,null,null,null,null,null,null,null,null,null,null,null,"","",0]
[null,null,400,0,"",0,0,0,0,null,"",null,null,null,null,null,null,null,null,null,null,null,null,null,null,null,null,null,null,null,null,null,null,null,null,null,null,null,null,null,null,null,null,null,null,null,null,null,null,null,null,null,null,null,null,null,null,null,null,null,null,null,null,"","",0]
[null,null,401,0,"",0,0,0,0,null,"",null,null,null,null,null,null,null,null,null,null,null,null,null,null,null,null,null,null,null,null,null,null,null,null,null,null,null,null,null,null,null,null,null,null,null,null,null,null,null,null,null,null,null,null,null,null,null,null,null,null,null,null,"","",0]
[null,null,402,0,"",0,0,0,0,null,"",null,null,null,null,null,null,null,null,null,null,null,null,null,null,null,null,null,null,null,null,null,null,null,null,null,null,null,null,null,null,null,null,null,null,null,null,null,null,null,null,null,null,null,null,null,null,null,null,null,null,null,null,"","",0]
[null,null,403,0,"",0,0,0,0,null,"",null,null,null,null,null,null,null,null,null,null,null,null,null,null,null,null,null,null,null,null,null,null,null,null,null,null,null,null,null,null,null,null,null,null,null,null,null,null,null,null,null,null,null,null,null,null,null,null,null,null,null,null,"","",0]
[null,null,404,0,"",0,0,0,0,null,"",null,null,null,null,null,null,null,null,null,null,null,null,null,null,null,null,null,null,null,null,null,null,null,null,null,null,null,null,null,null,null,null,null,null,null,null,null,null,null,null,null,null,null,null,null,null,null,null,null,null,null,null,"","",0]
[null,null,405,0,"",0,0,0,0,null,"",null,null,null,null,null,null,null,null,null,null,null,null,null,null,null,null,null,null,null,null,null,null,null,null,null,null,null,null,null,null,null,null,null,null,null,null,null,null,null,null,null,null,null,null,null,null,null,null,null,null,null,null,"","",0]
[null,null,406,0,"",0,0,0,0,null,"",null,null,null,null,null,null,null,null,null,null,null,null,null,null,null,null,null,null,null,null,null,null,null,null,null,null,null,null,null,null,null,null,null,null,null,null,null,null,null,null,null,null,null,null,null,null,null,null,null,null,null,null,"","",0]
[null,null,407,0,"",0,0,0,0,null,"",null,null,null,null,null,null,null,null,null,null,null,null,null,null,null,null,null,null,null,null,null,null,null,null,null,null,null,null,null,null,null,null,null,null,null,null,null,null,null,null,null,null,null,null,null,null,null,null,null,null,null,null,"","",0]
[null,null,408,0,"",0,0,0,0,null,"",null,null,null,null,null,null,null,null,null,null,null,null,null,null,null,null,null,null,null,null,null,null,null,null,null,null,null,null,null,null,null,null,null,null,null,null,null,null,null,null,null,null,null,null,null,null,null,null,null,null,null,null,"","",0]
[null,null,409,0,"",0,0,0,0,null,"",null,null,null,null,null,null,null,null,null,null,null,null,null,null,null,null,null,null,null,null,null,null,null,null,null,null,null,null,null,null,null,null,null,null,null,null,null,null,null,null,null,null,null,null,null,null,null,null,null,null,null,null,"","",0]
[null,null,410,0,"",0,0,0,0,null,"",null,null,null,null,null,null,null,null,null,null,null,null,null,null,null,null,null,null,null,null,null,null,null,null,null,null,null,null,null,null,null,null,null,null,null,null,null,null,null,null,null,null,null,null,null,null,null,null,null,null,null,null,"","",0]
[null,null,411,0,"",0,0,0,0,null,"",null,null,null,null,null,null,null,null,null,null,null,null,null,null,null,null,null,null,null,null,null,null,null,null,null,null,null,null,null,null,null,null,null,null,null,null,null,null,null,null,null,null,null,null,null,null,null,null,null,null,null,null,"","",0]
[null,null,412,0,"",0,0,0,0,null,"",null,null,null,null,null,null,null,null,null,null,null,null,null,null,null,null,null,null,null,null,null,null,null,null,null,null,null,null,null,null,null,null,null,null,null,null,null,null,null,null,null,null,null,null,null,null,null,null,null,null,null,null,"","",0]
[null,null,413,0,"",0,0,0,0,null,"",null,null,null,null,null,null,null,null,null,null,null,null,null,null,null,null,null,null,null,null,null,null,null,null,null,null,null,null,null,null,null,null,null,null,null,null,null,null,null,null,null,null,null,null,null,null,null,null,null,null,null,null,"","",0]
[null,null,414,0,"",0,0,0,0,null,"",null,null,null,null,null,null,null,null,null,null,null,null,null,null,null,null,null,null,null,null,null,null,null,null,null,null,null,null,null,null,null,null,null,null,null,null,null,null,null,null,null,null,null,null,null,null,null,null,null,null,null,null,"","",0]
[null,null,415,0,"",0,0,0,0,null,"",null,null,null,null,null,null,null,null,null,null,null,null,null,null,null,null,null,null,null,null,null,null,null,null,null,null,null,null,null,null,null,null,null,null,null,null,null,null,null,null,null,null,null,null,null,null,null,null,null,null,null,null,"","",0]
[null,null,416,0,"",0,0,0,0,null,"",null,null,null,null,null,null,null,null,null,null,null,null,null,null,null,null,null,null,null,null,null,null,null,null,null,null,null,null,null,null,null,null,null,null,null,null,null,null,null,null,null,null,null,null,null,null,null,null,null,null,null,null,"","",0]
[null,null,417,0,"",0,0,0,0,null,"",null,null,null,null,null,null,null,null,null,null,null,null,null,null,null,null,null,null,null,null,null,null,null,null,null,null,null,null,null,null,null,null,null,null,null,null,null,null,null,null,null,null,null,null,null,null,null,null,null,null,null,null,"","",0]
[null,null,418,0,"",0,0,0,0,null,"",null,null,null,null,null,null,null,null,null,null,null,null,null,null,null,null,null,null,null,null,null,null,null,null,null,null,null,null,null,null,null,null,null,null,null,null,null,null,null,null,null,null,null,null,null,null,null,null,null,null,null,null,"","",0]
[null,null,419,0,"",0,0,0,0,null,"",null,null,null,null,null,null,null,null,null,null,null,null,null,null,null,null,null,null,null,null,null,null,null,null,null,null,null,null,null,null,null,null,null,null,null,null,null,null,null,null,null,null,null,null,null,null,null,null,null,null,null,null,"","",0]
[null,null,420,0,"",0,0,0,0,null,"",null,null,null,null,null,null,null,null,null,null,null,null,null,null,null,null,null,null,null,null,null,null,null,null,null,null,null,null,null,null,null,null,null,null,null,null,null,null,null,null,null,null,null,null,null,null,null,null,null,null,null,null,"","",0]
[null,null,421,0,"",0,0,0,0,null,"",null,null,null,null,null,null,null,null,null,null,null,null,null,null,null,null,null,null,null,null,null,null,null,null,null,null,null,null,null,null,null,null,null,null,null,null,null,null,null,null,null,null,null,null,null,null,null,null,null,null,null,null,"","",0]
[null,null,422,0,"",0,0,0,0,null,"",null,null,null,null,null,null,null,null,null,null,null,null,null,null,null,null,null,null,null,null,null,null,null,null,null,null,null,null,null,null,null,null,null,null,null,null,null,null,null,null,null,null,null,null,null,null,null,null,null,null,null,null,"","",0]
[null,null,423,0,"",0,0,0,0,null,"",null,null,null,null,null,null,null,null,null,null,null,null,null,null,null,null,null,null,null,null,null,null,null,null,null,null,null,null,null,null,null,null,null,null,null,null,null,null,null,null,null,null,null,null,null,null,null,null,null,null,null,null,"","",0]
[null,null,424,0,"",0,0,0,0,null,"",null,null,null,null,null,null,null,null,null,null,null,null,null,null,null,null,null,null,null,null,null,null,null,null,null,null,null,null,null,null,null,null,null,null,null,null,null,null,null,null,null,null,null,null,null,null,null,null,null,null,null,null,"","",0]
[null,null,425,0,"",0,0,0,0,null,"",null,null,null,null,null,null,null,null,null,null,null,null,null,null,null,null,null,null,null,null,null,null,null,null,null,null,null,null,null,null,null,null,null,null,null,null,null,null,null,null,null,null,null,null,null,null,null,null,null,null,null,null,"","",0]
[null,null,426,0,"",0,0,0,0,null,"",null,null,null,null,null,null,null,null,null,null,null,null,null,null,null,null,null,null,null,null,null,null,null,null,null,null,null,null,null,null,null,null,null,null,null,null,null,null,null,null,null,null,null,null,null,null,null,null,null,null,null,null,"","",0]
[null,null,427,0,"",0,0,0,0,null,"",null,null,null,null,null,null,null,null,null,null,null,null,null,null,null,null,null,null,null,null,null,null,null,null,null,null,null,null,null,null,null,null,null,null,null,null,null,null,null,null,null,null,null,null,null,null,null,null,null,null,null,null,"","",0]
[null,null,428,0,"",0,0,0,0,null,"",null,null,null,null,null,null,null,null,null,null,null,null,null,null,null,null,null,null,null,null,null,null,null,null,null,null,null,null,null,null,null,null,null,null,null,null,null,null,null,null,null,null,null,null,null,null,null,null,null,null,null,null,"","",0]
[null,null,429,0,"",0,0,0,0,null,"",null,null,null,null,null,null,null,null,null,null,null,null,null,null,null,null,null,null,null,null,null,null,null,null,null,null,null,null,null,null,null,null,null,null,null,null,null,null,null,null,null,null,null,null,null,null,null,null,null,null,null,null,"","",0]
[null,null,430,0,"",0,0,0,0,null,"",null,null,null,null,null,null,null,null,null,null,null,null,null,null,null,null,null,null,null,null,null,null,null,null,null,null,null,null,null,null,null,null,null,null,null,null,null,null,null,null,null,null,null,null,null,null,null,null,null,null,null,null,"","",0]
[null,null,431,0,"",0,0,0,0,null,"",null,null,null,null,null,null,null,null,null,null,null,null,null,null,null,null,null,null,null,null,null,null,null,null,null,null,null,null,null,null,null,null,null,null,null,null,null,null,null,null,null,null,null,null,null,null,null,null,null,null,null,null,"","",0]
[null,null,432,0,"",0,0,0,0,null,"",null,null,null,null,null,null,null,null,null,null,null,null,null,null,null,null,null,null,null,null,null,null,null,null,null,null,null,null,null,null,null,null,null,null,null,null,null,null,null,null,null,null,null,null,null,null,null,null,null,null,null,null,"","",0]
[null,null,433,0,"",0,0,0,0,null,"",null,null,null,null,null,null,null,null,null,null,null,null,null,null,null,null,null,null,null,null,null,null,null,null,null,null,null,null,null,null,null,null,null,null,null,null,null,null,null,null,null,null,null,null,null,null,null,null,null,null,null,null,"","",0]
[null,null,434,0,"",0,0,0,0,null,"",null,null,null,null,null,null,null,null,null,null,null,null,null,null,null,null,null,null,null,null,null,null,null,null,null,null,null,null,null,null,null,null,null,null,null,null,null,null,null,null,null,null,null,null,null,null,null,null,null,null,null,null,"","",0]
[null,null,435,0,"",0,0,0,0,null,"",null,null,null,null,null,null,null,null,null,null,null,null,null,null,null,null,null,null,null,null,null,null,null,null,null,null,null,null,null,null,null,null,null,null,null,null,null,null,null,null,null,null,null,null,null,null,null,null,null,null,null,null,"","",0]
[null,null,436,0,"",0,0,0,0,null,"",null,null,null,null,null,null,null,null,null,null,null,null,null,null,null,null,null,null,null,null,null,null,null,null,null,null,null,null,null,null,null,null,null,null,null,null,null,null,null,null,null,null,null,null,null,null,null,null,null,null,null,null,"","",0]
[null,null,437,0,"",0,0,0,0,null,"",null,null,null,null,null,null,null,null,null,null,null,null,null,null,null,null,null,null,null,null,null,null,null,null,null,null,null,null,null,null,null,null,null,null,null,null,null,null,null,null,null,null,null,null,null,null,null,null,null,null,null,null,"","",0]
[null,null,438,0,"",0,0,0,0,null,"",null,null,null,null,null,null,null,null,null,null,null,null,null,null,null,null,null,null,null,null,null,null,null,null,null,null,null,null,null,null,null,null,null,null,null,null,null,null,null,null,null,null,null,null,null,null,null,null,null,null,null,null,"","",0]
[null,null,439,0,"",0,0,0,0,null,"",null,null,null,null,null,null,null,null,null,null,null,null,null,null,null,null,null,null,null,null,null,null,null,null,null,null,null,null,null,null,null,null,null,null,null,null,null,null,null,null,null,null,null,null,null,null,null,null,null,null,null,null,"","",0]
[null,null,440,0,"",0,0,0,0,null,"",null,null,null,null,null,null,null,null,null,null,null,null,null,null,null,null,null,null,null,null,null,null,null,null,null,null,null,null,null,null,null,null,null,null,null,null,null,null,null,null,null,null,null,null,null,null,null,null,null,null,null,null,"","",0]
[null,null,441,0,"",0,0,0,0,null,"",null,null,null,null,null,null,null,null,null,null,null,null,null,null,null,null,null,null,null,null,null,null,null,null,null,null,null,null,null,null,null,null,null,null,null,null,null,null,null,null,null,null,null,null,null,null,null,null,null,null,null,null,"","",0]
[null,null,442,0,"",0,0,0,0,null,"",null,null,null,null,null,null,null,null,null,null,null,null,null,null,null,null,null,null,null,null,null,null,null,null,null,null,null,null,null,null,null,null,null,null,null,null,null,null,null,null,null,null,null,null,null,null,null,null,null,null,null,null,"","",0]
[null,null,443,0,"",0,0,0,0,null,"",null,null,null,null,null,null,null,null,null,null,null,null,null,null,null,null,null,null,null,null,null,null,null,null,null,null,null,null,null,null,null,null,null,null,null,null,null,null,null,null,null,null,null,null,null,null,null,null,null,null,null,null,"","",0]
[null,null,444,0,"",0,0,0,0,null,"",null,null,null,null,null,null,null,null,null,null,null,null,null,null,null,null,null,null,null,null,null,null,null,null,null,null,null,null,null,null,null,null,null,null,null,null,null,null,null,null,null,null,null,null,null,null,null,null,null,null,null,null,"","",0]
[null,null,445,0,"",0,0,0,0,null,"",null,null,null,null,null,null,null,null,null,null,null,null,null,null,null,null,null,null,null,null,null,null,null,null,null,null,null,null,null,null,null,null,null,null,null,null,null,null,null,null,null,null,null,null,null,null,null,null,null,null,null,null,"","",0]
[null,null,446,0,"",0,0,0,0,null,"",null,null,null,null,null,null,null,null,null,null,null,null,null,null,null,null,null,null,null,null,null,null,null,null,null,null,null,null,null,null,null,null,null,null,null,null,null,null,null,null,null,null,null,null,null,null,null,null,null,null,null,null,"","",0]
[null,null,447,0,"",0,0,0,0,null,"",null,null,null,null,null,null,null,null,null,null,null,null,null,null,null,null,null,null,null,null,null,null,null,null,null,null,null,null,null,null,null,null,null,null,null,null,null,null,null,null,null,null,null,null,null,null,null,null,null,null,null,null,"","",0]
[null,null,448,0,"",0,0,0,0,null,"",null,null,null,null,null,null,null,null,null,null,null,null,null,null,null,null,null,null,null,null,null,null,null,null,null,null,null,null,null,null,null,null,null,null,null,null,null,null,null,null,null,null,null,null,null,null,null,null,null,null,null,null,"","",0]
[null,null,449,{"$f":"IF(AND(LEFT(Q467,2)=\"01\",LEFT(W467,2)=\"01\",LEFT(X467,2)=\"01\",E467=1),1,0)","v":0},"",0,0,0,0,null,"",null,null,null,null,null,null,null,null,null,null,null,null,null,null,null,null,null,null,null,null,null,null,null,null,null,null,null,null,null,null,null,null,null,null,null,null,null,null,null,null,null,null,null,null,null,null,null,null,null,null,null,null,"","",0]
[null,null,450,0,{"$f":"$B$16","v":""},{"$f":"COUNTIF(AO468:AX468,\"X\")","v":0},{"$f":"IF(Q468<>\"\",VALUE(LEFT(Q468,2)),0)","v":0},{"$f":"IF(P468<>\"\",COUNTIF($P$19:$P$518,P468),0)","v":0},0,null,"",null,null,null,null,null,null,null,null,null,null,null,null,null,null,null,null,null,null,null,null,null,null,null,null,null,null,null,null,null,null,null,null,null,null,null,null,null,null,null,null,null,null,null,null,null,null,null,null,null,null,null,null,"",{"$f":"IF($Z468<>\"\",IF(OR(LEFT($Z468,2)=\"01\",LEFT($Z468,2)=\"02\",LEFT($Z468,2)=\"04\",LEFT($Z468,2)=\"05\"),1,0),\"\")","v":""},0]
[null,null,451,0,"",0,0,0,0,null,{"$f":"IF(C469<=$B$5,C469,\"\")","v":""},null,null,null,null,null,null,null,null,null,null,null,null,null,null,null,null,null,null,null,null,null,null,null,null,null,null,null,null,null,null,null,null,null,null,null,null,null,null,null,null,null,null,null,null,null,null,null,null,null,null,null,null,"","",0]
[null,null,452,0,"",0,0,0,0,null,"",null,null,null,null,null,null,null,null,null,null,null,null,null,null,null,null,null,null,null,null,null,null,null,null,null,null,null,null,null,null,null,null,null,null,null,null,null,null,null,null,null,null,null,null,null,null,null,null,null,null,null,null,"","",0]
[null,null,453,0,"",0,0,0,0,null,"",null,null,null,null,null,null,null,null,null,null,null,null,null,null,null,null,null,null,null,null,null,null,null,null,null,null,null,null,null,null,null,null,null,null,null,null,null,null,null,null,null,null,null,null,null,null,null,null,null,null,null,null,"","",0]
[null,null,454,0,"",0,0,0,0,null,"",null,null,null,null,null,null,null,null,null,null,null,null,null,null,null,null,null,null,null,null,null,null,null,null,null,null,null,null,null,null,null,null,null,null,null,null,null,null,null,null,null,null,null,null,null,null,null,null,null,null,null,null,"","",0]
[null,null,455,0,"",0,0,0,0,null,"",null,null,null,null,null,null,null,null,null,null,null,null,null,null,null,null,null,null,null,null,null,null,null,null,null,null,null,null,null,null,null,null,null,null,null,null,null,null,null,null,null,null,null,null,null,null,null,null,null,null,null,null,"","",0]
[null,null,456,0,"",0,0,0,0,null,"",null,null,null,null,null,null,null,null,null,null,null,null,null,null,null,null,null,null,null,null,null,null,null,null,null,null,null,null,null,null,null,null,null,null,null,null,null,null,null,null,null,null,null,null,null,null,null,null,null,null,null,null,"","",0]
[null,null,457,0,"",0,0,0,{"$f":"IF(K475<>\"\",1,0)","v":0},null,"",null,null,null,null,null,null,null,null,null,null,null,null,null,null,null,null,null,null,null,null,null,null,null,null,null,null,null,null,null,null,null,null,null,null,null,null,null,null,null,null,null,null,null,null,null,null,null,null,null,null,null,null,"","",0]
[null,null,458,0,"",0,0,0,0,null,"",null,null,null,null,null,null,null,null,null,null,null,null,null,null,null,null,null,null,null,null,null,null,null,null,null,null,null,null,null,null,null,null,null,null,null,null,null,null,null,null,null,null,null,null,null,null,null,null,null,null,null,null,"","",0]
[null,null,459,0,"",0,0,0,0,null,"",null,null,null,null,null,null,null,null,null,null,null,null,null,null,null,null,null,null,null,null,null,null,null,null,null,null,null,null,null,null,null,null,null,null,null,null,null,null,null,null,null,null,null,null,null,null,null,null,null,null,null,null,"","",0]
[null,null,460,0,"",0,0,0,0,null,"",null,null,null,null,null,null,null,null,null,null,null,null,null,null,null,null,null,null,null,null,null,null,null,null,null,null,null,null,null,null,null,null,null,null,null,null,null,null,null,null,null,null,null,null,null,null,null,null,null,null,null,null,"","",0]
[null,null,461,0,"",0,0,0,0,null,"",null,null,null,null,null,null,null,null,null,null,null,null,null,null,null,null,null,null,null,null,null,null,null,null,null,null,null,null,null,null,null,null,null,null,null,null,null,null,null,null,null,null,null,null,null,null,null,null,null,null,null,null,"","",0]
[null,null,462,0,"",0,0,0,0,null,"",null,null,null,null,null,null,null,null,null,null,null,null,null,null,null,null,null,null,null,null,null,null,null,null,null,null,null,null,null,null,null,null,null,null,null,null,null,null,null,null,null,null,null,null,null,null,null,null,null,null,null,null,"","",0]
[null,null,463,0,"",0,0,0,0,null,"",null,null,null,null,null,null,null,null,null,null,null,null,null,null,null,null,null,null,null,null,null,null,null,null,null,null,null,null,null,null,null,null,null,null,null,null,null,null,null,null,null,null,null,null,null,null,null,null,null,null,null,null,"","",0]
[null,null,464,0,"",0,0,0,0,null,"",null,null,null,null,null,null,null,null,null,null,null,null,null,null,null,null,null,null,null,null,null,null,null,null,null,null,null,null,null,null,null,null,null,null,null,null,null,null,null,null,null,null,null,null,null,null,null,null,null,null,null,null,"","",0]
[null,null,465,0,"",0,0,0,0,null,"",null,null,null,null,null,null,null,null,null,null,null,null,null,null,null,null,null,null,null,null,null,null,null,null,null,null,null,null,null,null,null,null,null,null,null,null,null,null,null,null,null,null,null,null,null,null,null,null,null,null,null,null,"","",0]
[null,null,466,0,"",0,0,0,0,null,"",null,null,null,null,null,null,null,null,null,null,null,null,null,null,null,null,null,null,null,null,null,null,null,null,null,null,null,null,null,null,null,null,null,null,null,null,null,null,null,null,null,null,null,null,null,null,null,null,null,null,null,null,"","",0]
[null,null,467,0,"",0,0,0,0,null,"",null,null,null,null,null,null,null,null,null,null,null,null,null,null,null,null,null,null,null,null,null,null,null,null,null,null,null,null,null,null,null,null,null,null,null,null,null,null,null,null,null,null,null,null,null,null,null,null,null,null,null,null,"","",0]
[null,null,468,0,"",0,0,0,0,null,"",null,null,null,null,null,null,null,null,null,null,null,null,null,null,null,null,null,null,null,null,null,null,null,null,null,null,null,null,null,null,null,null,null,null,null,null,null,null,null,null,null,null,null,null,null,null,null,null,null,null,null,null,"","",0]
[null,null,469,0,"",0,0,0,0,null,"",null,null,null,null,null,null,null,null,null,null,null,null,null,null,null,null,null,null,null,null,null,null,null,null,null,null,null,null,null,null,null,null,null,null,null,null,null,null,null,null,null,null,null,null,null,null,null,null,null,null,null,null,"","",0]
[null,null,470,0,"",0,0,0,0,null,"",null,null,null,null,null,null,null,null,null,null,null,null,null,null,null,null,null,null,null,null,null,null,null,null,null,null,null,null,null,null,null,null,null,null,null,null,null,null,null,null,null,null,null,null,null,null,null,null,null,null,null,null,"","",0]
[null,null,471,0,"",0,0,0,0,null,"",null,null,null,null,null,null,null,null,null,null,null,null,null,null,null,null,null,null,null,null,null,null,null,null,null,null,null,null,null,null,null,null,null,null,null,null,null,null,null,null,null,null,null,null,null,null,null,null,null,null,null,null,"","",0]
[null,null,472,0,"",0,0,0,0,null,"",null,null,null,null,null,null,null,null,null,null,null,null,null,null,null,null,null,null,null,null,null,null,null,null,null,null,null,null,null,null,null,null,null,null,null,null,null,null,null,null,null,null,null,null,null,null,null,null,null,null,null,null,"","",0]
[null,null,473,0,"",0,0,0,0,null,"",null,null,null,null,null,null,null,null,null,null,null,null,null,null,null,null,null,null,null,null,null,null,null,null,null,null,null,null,null,null,null,null,null,null,null,null,null,null,null,null,null,null,null,null,null,null,null,null,null,null,null,null,"","",0]
[null,null,474,0,"",0,0,0,0,null,"",null,null,null,null,null,null,null,null,null,null,null,null,null,null,null,null,null,null,null,null,null,null,null,null,null,null,null,null,null,null,null,null,null,null,null,null,null,null,null,null,null,null,null,null,null,null,null,null,null,null,null,null,"","",0]
[null,null,475,0,"",0,0,0,0,null,"",null,null,null,null,null,null,null,null,null,null,null,null,null,null,null,null,null,null,null,null,null,null,null,null,null,null,null,null,null,null,null,null,null,null,null,null,null,null,null,null,null,null,null,null,null,null,null,null,null,null,null,null,"","",0]
[null,null,476,0,"",0,0,0,0,null,"",null,null,null,null,null,null,null,null,null,null,null,null,null,null,null,null,null,null,null,null,null,null,null,null,null,null,null,null,null,null,null,null,null,null,null,null,null,null,null,null,null,null,null,null,null,null,null,null,null,null,null,null,"","",0]
[null,null,477,0,"",0,0,0,0,null,"",null,null,null,null,null,null,null,null,null,null,null,null,null,null,null,null,null,null,null,null,null,null,null,null,null,null,null,null,null,null,null,null,null,null,null,null,null,null,null,null,null,null,null,null,null,null,null,null,null,null,null,null,"","",0]
[null,null,478,0,"",0,0,0,0,null,"",null,null,null,null,null,null,null,null,null,null,null,null,null,null,null,null,null,null,null,null,null,null,null,null,null,null,null,null,null,null,null,null,null,null,null,null,null,null,null,null,null,null,null,null,null,null,null,null,null,null,null,null,"","",0]
[null,null,479,0,"",0,0,0,0,null,"",null,null,null,null,null,null,null,null,null,null,null,null,null,null,null,null,null,null,null,null,null,null,null,null,null,null,null,null,null,null,null,null,null,null,null,null,null,null,null,null,null,null,null,null,null,null,null,null,null,null,null,null,"","",0]
[null,null,480,0,"",0,0,0,0,null,"",null,null,null,null,null,null,null,null,null,null,null,null,null,null,null,null,null,null,null,null,null,null,null,null,null,null,null,null,null,null,null,null,null,null,null,null,null,null,null,null,null,null,null,null,null,null,null,null,null,null,null,null,"","",0]
[null,null,481,0,"",0,0,0,0,null,"",null,null,null,null,null,null,null,null,null,null,null,null,null,null,null,null,null,null,null,null,null,null,null,null,null,null,null,null,null,null,null,null,null,null,null,null,null,null,null,null,null,null,null,null,null,null,null,null,null,null,null,null,"","",0]
[null,null,482,0,"",0,0,0,0,null,"",null,null,null,null,null,null,null,null,null,null,null,null,null,null,null,null,null,null,null,null,null,null,null,null,null,null,null,null,null,null,null,null,null,null,null,null,null,null,null,null,null,null,null,null,null,null,null,null,null,null,null,null,"","",0]
[null,null,483,0,"",0,0,0,0,null,"",null,null,null,null,null,null,null,null,null,null,null,null,null,null,null,null,null,null,null,null,null,null,null,null,null,null,null,null,null,null,null,null,null,null,null,null,null,null,null,null,null,null,null,null,null,null,null,null,null,null,null,null,"","",0]
[null,null,484,0,"",0,0,0,0,null,"",null,null,null,null,null,null,null,null,null,null,null,null,null,null,null,null,null,null,null,null,null,null,null,null,null,null,null,null,null,null,null,null,null,null,null,null,null,null,null,null,null,null,null,null,null,null,null,null,null,null,null,null,"","",0]
[null,null,485,0,"",0,0,0,0,null,"",null,null,null,null,null,null,null,null,null,null,null,null,null,null,null,null,null,null,null,null,null,null,null,null,null,null,null,null,null,null,null,null,null,null,null,null,null,null,null,null,null,null,null,null,null,null,null,null,null,null,null,null,"","",0]
[null,null,486,0,"",0,0,0,0,null,"",null,null,null,null,null,null,null,null,null,null,null,null,null,null,null,null,null,null,null,null,null,null,null,null,null,null,null,null,null,null,null,null,null,null,null,null,null,null,null,null,null,null,null,null,null,null,null,null,null,null,null,null,"","",0]
[null,null,487,0,"",0,0,0,0,null,"",null,null,null,null,null,null,null,null,null,null,null,null,null,null,null,null,null,null,null,null,null,null,null,null,null,null,null,null,null,null,null,null,null,null,null,null,null,null,null,null,null,null,null,null,null,null,null,null,null,null,null,null,"","",0]
[null,null,488,0,"",0,0,0,0,null,"",null,null,null,null,null,null,null,null,null,null,null,null,null,null,null,null,null,null,null,null,null,null,null,null,null,null,null,null,null,null,null,null,null,null,null,null,null,null,null,null,null,null,null,null,null,null,null,null,null,null,null,null,"","",0]
[null,null,489,0,"",0,0,0,0,null,"",null,null,null,null,null,null,null,null,null,null,null,null,null,null,null,null,null,null,null,null,null,null,null,null,null,null,null,null,null,null,null,null,null,null,null,null,null,null,null,null,null,null,null,null,null,null,null,null,null,null,null,null,"","",0]
[null,null,490,0,"",0,0,0,0,null,"",null,null,null,null,null,null,null,null,null,null,null,null,null,null,null,null,null,null,null,null,null,null,null,null,null,null,null,null,null,null,null,null,null,null,null,null,null,null,null,null,null,null,null,null,null,null,null,null,null,null,null,null,"","",0]
[null,null,491,0,"",0,0,0,0,null,"",null,null,null,null,null,null,null,null,null,null,null,null,null,null,null,null,null,null,null,null,null,null,null,null,null,null,null,null,null,null,null,null,null,null,null,null,null,null,null,null,null,null,null,null,null,null,null,null,null,null,null,null,"","",0]
[null,null,492,0,"",0,0,0,0,null,"",null,null,null,null,null,null,null,null,null,null,null,null,null,null,null,null,null,null,null,null,null,null,null,null,null,null,null,null,null,null,null,null,null,null,null,null,null,null,null,null,null,null,null,null,null,null,null,null,null,null,null,null,"","",0]
[null,null,493,0,"",0,0,0,0,null,"",null,null,null,null,null,null,null,null,null,null,null,null,null,null,null,null,null,null,null,null,null,null,null,null,null,null,null,null,null,null,null,null,null,null,null,null,null,null,null,null,null,null,null,null,null,null,null,null,null,null,null,null,"","",0]
[null,null,494,0,"",0,0,0,0,null,"",null,null,null,null,null,null,null,null,null,null,null,null,null,null,null,null,null,null,null,null,null,null,null,null,null,null,null,null,null,null,null,null,null,null,null,null,null,null,null,null,null,null,null,null,null,null,null,null,null,null,null,null,"","",0]
[null,null,495,0,"",0,0,0,0,null,"",null,null,null,null,null,null,null,null,null,null,null,null,null,null,null,null,null,null,null,null,null,null,null,null,null,null,null,null,null,null,null,null,null,null,null,null,null,null,null,null,null,null,null,null,null,null,null,null,null,null,null,null,"","",0]
[null,null,496,0,"",0,0,0,0,null,"",null,null,null,null,null,null,null,null,null,null,null,null,null,null,null,null,null,null,null,null,null,null,null,null,null,null,null,null,null,null,null,null,null,null,null,null,null,null,null,null,null,null,null,null,null,null,null,null,null,null,null,null,"","",0]
[null,null,497,0,"",0,0,0,0,null,"",null,null,null,null,null,null,null,null,null,null,null,null,null,null,null,null,null,null,null,null,null,null,null,null,null,null,null,null,null,null,null,null,null,null,null,null,null,null,null,null,null,null,null,null,null,null,null,null,null,null,null,null,"","",0]
[null,null,498,0,"",0,0,0,0,null,"",null,null,null,null,null,null,null,null,null,null,null,null,null,null,null,null,null,null,null,null,null,null,null,null,null,null,null,null,null,null,null,null,null,null,null,null,null,null,null,null,null,null,null,null,null,null,null,null,null,null,null,null,"","",0]
[null,null,499,0,"",0,0,0,0,null,"",null,null,null,null,null,null,null,null,null,null,null,null,null,null,null,null,null,null,null,null,null,null,null,null,null,null,null,null,null,null,null,null,null,null,null,null,null,null,null,null,null,null,null,null,null,null,null,null,null,null,null,null,"","",0]
[null,null,500,0,"",0,0,0,{"$f":"IF(K518<>\"\",1,0)","v":0},null,"",null,null,null,null,null,null,null,null,null,null,null,null,null,null,null,null,null,null,null,null,null,null,null,null,null,null,null,null,null,null,null,null,null,null,null,null,null,null,null,null,null,null,null,null,null,null,null,null,null,null,null,null,"","",0]
[null,null,null,null,null,null,null,null,null," "," ",null,null,null,null,"","","","","","","","","","","","","","","","","","","","","","","","","","","","","","","","","","","","","","","","","","","","",null,null,null,null,"",null,0]
[null,null,null,null,null,null,null,null,null,null,"Limite","Limite","Limite","Limite","Limite","Limite","Limite","Limite","Limite","Limite","Limite","Limite","Limite","Limite","Limite","Limite","Limite","Limite","Limite","Limite","Limite","Limite","Limite","Limite","Limite","Limite","Limite","Limite","Limite","Limite","Limite","Limite","Limite","Limite","Limite","Limite","Limite","Limite","Limite","Limite","Limite","Limite","Limite","Limite","Limite","Limite","Limite","Limite","Limite","Limite","Limite","Limite","Limite"]

{"sheet":"C400","index":4,"n_rows":60,"n_cols":6,"rows_kept":60,"cut":false,"hidden":false,"merged":[[8,2,8,5],[2,1,2,6],[1,1,1,6]]}
[]
[null,"CENSO EDUCATIVO 2022"]
[null,"MATRÍCULA, DOCENTES Y RECURSOS"]
[]
[]
[]
[null,"ANOTACIONES COMPLEMENTARIAS QUE CONSIDERE NECESARIO AGREGAR (máximo 200 caracteres)"]
[]
[]
[]
[]
[null,"DATOS DEL DIRECTOR/RESPONSABLE DEL LLENADO DE LA CÉDULA"]
[]
[null,null,"NOMBRES Y APELLIDOS","CARGO","CORREO ELECTRÓNICO","TELÉFONO"]
[]
[]
[]
[]
[]
[]
[]
["DIRECTOR(A)"]
["SUB DIRECTOR(A)"]
["DOCENTE"]
["COORDINADOR(A)"]
["ASESOR"]
["ADMINISTRATIVO"]
["ASISTENTE"]
["AUXILIAR"]
["SECRETARIA(O)"]
["ESTADÍSTICO"]
["ESPECIALISTA"]
["BIBLIOTECARIO"]
["CARE"]
["COMANDANTE PNP"]
["CONTADOR"]
["DAIP"]
["DIGITADOR(A)"]
["GERENTE"]
["JEFE ACADÉMICO"]
["JEFE ADMINISTRATIVO"]
["JEFE DE ÁREA"]
["JEFE DE LABORATORIO"]
["JEFE DE PERSONAL"]
["JEFE DE SEDE"]
["JEFE DE UNIDAD"]
["OFICINISTA"]
["OPERADOR DE SISTEMAS"]
["PERSONAL DE SERVICIO"]
["PROGRAMADOR"]
["PROMOTOR(A)"]
["PSICOLOGO"]
["REGISTRADOR(A)"]
["REPRESENTANTE LEGAL"]
["SOPORTE TECNOLOGICO"]
["TÉCNICO ADMINISTRATIVO"]
["TESORERO(A)"]
["TRABAJADOR SOCIAL"]
["TUTOR"]
["OTROS"]

{"sheet":"Enviar","index":5,"n_rows":9,"n_cols":4,"rows_kept":9,"cut":false,"hidden":false,"merged":[[0,1,0,4],[1,1,1,4]]}
[null,"CENSO EDUCATIVO 2022"]
[null,"MATRÍCULA, DOCENTES Y RECURSOS"]
[]
[]
[null,null,"Paso 1:","Realice el ENVÍO con su clave EOL."]
[]
[null,null,"Paso 2:","Una vez realizado el ENVÍO,  Revise su constancia de envio."]
[]
[null,null,"  ADVERTENCIA","ASEGÚRESE DE REGISTRAR TODA LA INFORMACIÓN DEL NIVEL INFORMANTE"]

{"sheet":"Carreras","index":6,"n_rows":165,"n_cols":3,"rows_kept":165,"cut":false,"hidden":false,"merged":[]}
[]
[]
[null,"PROFESIONAL  (5 AÑOS DE ESTUDIO)"]
[null,"APF2156520","ARTE DRAMÁTICO PROFESIONAL"]
[null,"APF2136490","ARTÍSTA PROFESIONAL EN ARTES PLÁSTICAS Y VISUALES PROFESIONAL"]
[null,"APF2156493","ARTISTA PROFESIONAL EN DANZA PROFESIONAL"]
[null,"APF2156522","ARTISTA PROFESIONAL EN FOLKLORE PROFESIONAL"]
[null,"APF2156491","ARTISTA PROFESIONAL EN MÚSICA PROFESIONAL"]
[null,"APF2156492","ARTISTA PROFESIONAL EN TEATRO PROFESIONAL"]
[null,"APF2136645","ARTISTA PROFESIONAL EN LA ESPECIALIDAD DE ARTES PLÁSTICAS PROFESIONAL"]
[null,"APF2136646","ARTISTA PROFESIONAL EN LA ESPECIALIDAD EN ARTES PLÁSTICAS CON MENCIÓN EN ESCULTURA PROFESIONAL"]
[null,"APF2136647","ARTISTA PROFESIONAL EN LA ESPECIALIDAD EN ARTES PLÁSTICAS CON MENCIÓN EN GRABADO PROFESIONAL"]
[null,"APF2136648","ARTISTA PROFESIONAL EN LA ESPECIALIDAD EN ARTES PLÁSTICAS CON MENCIÓN EN PINTURA PROFESIONAL"]
[null,"APF2156649","ARTISTA PROFESIONAL EN FOLKLORE CON MENCIÓN EN DANZA PROFESIONAL"]
[null,"APF2156650","ARTISTA PROFESIONAL EN FOLKLORE CON MENCIÓN EN MÚSICA PROFESIONAL"]
[null,"APF2156651","ARTISTA PROFESIONAL EN LA ESPECIALIDAD ACTUACIÓN TEATRAL PROFESIONAL"]
[null,"APF2156652","ARTISTA PROFESIONAL EN LA ESPECIALIDAD MÚSICA PROFESIONAL"]
[null,"APF1616653","EDUCACIÓN ARTÍSTICA EN FOLKLORE CON MENCIÓN EN DANZA PROFESIONAL"]
[null,"APF1616654","EDUCACIÓN ARTÍSTICA EN FOLKLORE CON MENCIÓN EN MÚSICA PROFESIONAL"]
[null,"APF1616655","EDUCACIÓN ARTÍSTICA EN LA ESPECIALIDAD DE ARTES PLÁSTICAS Y VISUALES PROFESIONAL"]
[null,"APF1616656","EDUCACIÓN ARTÍSTICA EN LA ESPECIALIDAD DE DANZA PROFESIONAL"]
[null,"APF1616657","EDUCACIÓN ARTÍSTICA EN LA ESPECIALIDAD DE EDUCACIÓN MUSICAL PROFESIONAL"]
[null,"APF1616658","EDUCACIÓN ARTÍSTICA EN LA ESPECIALIDAD DANZAS FOLKLÓRICAS PROFESIONAL"]
[null,"APF1616659","EDUCACIÓN ARTÍSTICA EN LA ESPECIALIDAD DE ARTE DRAMÁTICO PROFESIONAL"]
[null,"APF1616660","EDUCACIÓN ARTÍSTICA EN LA ESPECIALIDAD MÚSICA PROFESIONAL"]
[null,"APF1616661","EDUCACIÓN ARTÍSTICA EN LA ESPECIALIDAD TEATRO PROFESIONAL"]
[null,"APF1616662","FORMACIÓN ARTÍSTICA EN LA ESPECIALIDAD TEATRO CON MENCIÓN EN ACTUACIÓN PROFESIONAL"]
[null,"APF1616663","FORMACIÓN ARTÍSTICA EN LA ESPECIALIDAD TEATRO CON MENCIÓN EN DISEÑO ESCENOGRÁFICO PROFESIONAL"]
[null,"APF2156664","DOCENTE EN DANZA CLÁSICA PROFESIONAL"]
[null,"APF1616665","EDUCACIÓN MUSICAL Y ARTES PROFESIONAL"]
[null,"APF2156666","INTERPRETACIÓN MUSICAL PROFESIONAL"]
[null,"APF2156667","INTÉRPRETE EN DANZA CLÁSICA PROFESIONAL"]
[null,"APF2136668","ARTES PLÁSTICAS Y VISUALES EN LA ESPECIALIDAD DE ESCULTURA PROFESIONAL"]
[null,"APF2136669","ARTES PLÁSTICAS Y VISUALES EN LA ESPECIALIDAD DE GRABADO Y CERÁMICA PROFESIONAL"]
[null,"APF2136670","ARTES PLÁSTICAS Y VISUALES EN LA ESPECIALIDAD DE PINTURA PROFESIONAL"]
[null,"APF2136671","ARTES VISUALES CON MENCIÓN EN ACUARELA PROFESIONAL"]
[null,"APF2136672","ARTES VISUALES CON MENCIÓN EN CERÁMICA PROFESIONAL"]
[null,"APF2136673","ARTES VISUALES CON MENCIÓN EN ESCULTURA PROFESIONAL"]
[null,"APF2136674","ARTES VISUALES CON MENCIÓN EN PINTURA PROFESIONAL"]
[null,"APF2156675","ARTISTA MÚSICO EN LA ESPECIALIDAD DE COMPOSICIÓN PROFESIONAL"]
[null,"APF2156676","ARTISTA MÚSICO EN LA ESPECIALIDAD DE EJECUCIÓN INSTRUMENTAL Y CANTO PROFESIONAL"]
[null,"APF2136677","ARTISTA PROFESIONAL ARTES PLÁSTICAS Y VISUALES PROFESIONAL"]
[null,"APF2136678","ARTISTA PROFESIONAL EN LA ESPECIALIDAD DE ARTES PLÁSTICAS PROFESIONAL"]
[null,"APF2156679","ARTISTA PROFESIONAL EN MÚSICA PROFESIONAL"]
[null,"APF2136680","ARTISTA PROFESIONAL EN PINTURA Y ESCULTURA PROFESIONAL"]
[null,"APF2136681","ARTISTA PROFESIONAL EN LA ESPECIALIDAD DE ESCULTURA PROFESIONAL"]
[null,"APF2136682","ARTISTA PROFESIONAL EN LA ESPECIALIDAD DE GRABADO PROFESIONAL"]
[null,"APF2136683","ARTISTA PROFESIONAL EN LA ESPECIALIDAD DE PINTURA PROFESIONAL"]
[null,"APF2136684","ARTISTA PROFESIONAL EN LA ESPECIALIDAD DE PRODUCCIÓN EN DISEÑO GRÁFICO Y ARTES PUBLICITARIAS PROFESIONAL"]
[null,"APF2136685","ARTISTA PROFESIONAL EN LA ESPECIALIDAD ARTES PLÁSTICAS Y VISUALES CON MENCIÓN EN ESCULTURA PROFESIONAL"]
[null,"APF2136686","ARTISTA PROFESIONAL EN LA ESPECIALIDAD ARTES PLÁSTICAS Y VISUALES CON MENCIÓN EN GRABADO DISEÑO GRÁFICO PROFESIONAL"]
[null,"APF2136687","ARTISTA PROFESIONAL EN LA ESPECIALIDAD ARTES PLÁSTICAS Y VISUALES CON MENCIÓN EN PINTURA PROFESIONAL"]
[null,"APF2136688","ARTISTA PROFESIONAL EN LA ESPECIALIDAD DE ARTES PLÁSTICAS PROFESIONAL"]
[null,"APF2136689","ARTISTA PROFESIONAL EN LA ESPECIALIDAD DE ARTES PLÁSTICAS Y VISUALES PROFESIONAL"]
[null,"APF2156690","ARTISTA PROFESIONAL EN LA ESPECIALIDAD DE DANZA PROFESIONAL"]
[null,"APF2156691","ARTISTA PROFESIONAL EN LA ESPECIALIDAD DE MÚSICA PROFESIONAL"]
[null,"APF2156692","ARTISTA PROFESIONAL EN LA ESPECIALIDAD DE TEATRO PROFESIONAL"]
[null,"APF2156693","ARTISTA PROFESIONAL EN LA INTERPRETACIÓN MUSICAL PROFESIONAL"]
[null,"APF2136694","CONSERVACIÓN Y RESTAURACIÓN PROFESIONAL"]
[null,"APF1616695","EDUCACIÓN ARTÍSTICA ARTES PLÁSTICAS Y VISUALES PROFESIONAL"]
[null,"APF1616696","EDUCACIÓN ARTÍSTICA CON MENCIÓN EN ARTES PLÁSTICAS PROFESIONAL"]
[null,"APF1616697","EDUCACIÓN ARTÍSTICA CON MENCIÓN EN DANZA PROFESIONAL"]
[null,"APF1616698","EDUCACIÓN ARTÍSTICA CON MENCIÓN EN MÚSICA PROFESIONAL"]
[null,"APF1616699","EDUCACIÓN ARTÍSTICA CON MENCIÓN EN TEATRO PROFESIONAL"]
[null,"APF1616700","EDUCACIÓN ARTÍSTICA EN LA ESPECIALIDAD DE MÚSICA PROFESIONAL"]
[null,"APF1616701","EDUCACIÓN ARTÍSTICA MÚSICA PROFESIONAL"]
[null,"APF1616702","EDUCACIÓN ARTÍSTICA EN LA ESPECIALIDAD DE ARTES PLÁSTICAS Y VISUALES PROFESIONAL"]
[null,"APF1616703","EDUCACIÓN ARTÍSTICA EN LA ESPECIALIDAD DE ARTES VISUALES PROFESIONAL"]
[null,"APF1616704","EDUCACIÓN ARTÍSTICA EN LA ESPECIALIDAD DE DANZA PROFESIONAL"]
[null,"APF1616705","EDUCACIÓN ARTÍSTICA EN LA ESPECIALIDAD DE DANZAS FOLKLÓRICAS PROFESIONAL"]
[null,"APF1616706","EDUCACIÓN ARTÍSTICA EN LA ESPECIALIDAD DE MÚSICA PROFESIONAL"]
[null,"APF1616707","EDUCACIÓN ARTÍSTICA EN LA ESPECIALIDAD DE TEATRO PROFESIONAL"]
[null,"APF1616708","EDUCACIÓN ARTÍSTICA EN LA ESPECIALIDAD DE ARTES PLÁSTICAS PROFESIONAL"]
[null,"APF1616709","EDUCACIÓN ARTÍSTICA EN LA ESPECIALIDAD DE DANZA FOLKLÓRICA PROFESIONAL"]
[null,"APF1616710","EDUCACIÓN ARTÍSTICA EN LA ESPECIALIDAD DE MÚSICA PROFESIONAL"]
[null,"APF1616711","EDUCACIÓN ARTÍSTICA EN LA ESPECIALIDAD EN ARTES VISUALES PROFESIONAL"]
[null,"APF1616712","EDUCACIÓN ARTÍSTICA EN LA ESPECIALIDAD EN DANZA PROFESIONAL"]
[null,"APF1616713","EDUCACIÓN ARTÍSTICA EN LA ESPECIALIDAD EN MÚSICA PROFESIONAL"]
[null,"APF1616714","EDUCACIÓN ARTÍSTICA EN LA ESPECIALIDAD EN TEATRO PROFESIONAL"]
[null,"APF1616715","EDUCACIÓN ARTÍSTICA EN LA ESPECIALIDAD MÚSICA PROFESIONAL"]
[null,"APF1616716","EDUCACIÓN MUSICAL PROFESIONAL"]
[null,"APF1616717","FORMACIÓN ARTÍSTICA CON LA ESPECIALIDADE DE ARTES PLÁSTICAS PROFESIONAL"]
[null,"APF1616718","FORMACIÓN ARTÍSTICA CON LA ESPECIALIDADE DE MÚSICA PROFESIONAL"]
[null,"APF1616719","FORMACIÓN ARTÍSTICA EN LA ESPECIALIDAD EN DANZA CON MENCIÓN EN DANZA CLÁSICA, MODERNA O TRADICIONAL PROFESIONAL"]
[null,"APF1616720","FORMACIÓN ARTÍSTICA EN LA ESPECIALIDAD EN DIRECCIÓN MUSICAL CON MENCIÓN EN DIRECCIÓN CORAL ORQUESTAL O BANDA PROFESIONAL"]
[null,"APF1616721","FORMACIÓN ARTÍSTICA EN LA ESPECIALIDAD EN INTERPRETACIÓN INSTRUMENTAL CON MENCIÓN EN UN INSTRUMENTO PROFESIONAL"]
[null,"APF1616722","FORMACIÓN ARTÍSTICA EN LA ESPECIALIDAD EN MÚSICA CON MENCIÓN EN CANTO PROFESIONAL"]
[null,"APF1616723","FORMACIÓN ARTÍSTICA EN LA ESPECIALIDAD EN MÚSICA CON MENCIÓN EN COMPOSICIÓN MUSICAL PROFESIONAL"]
[null,"APF1616724","FORMACIÓN ARTÍSTICA EN LA ESPECIALIDAD EN MÚSICA CON MENCIÓN EN MUSICOLOGÍA PROFESIONAL"]
[null,"APF1616725","FORMACIÓN DOCENTE EN LA ESPECIALIDAD EDUCACIÓN DANZA CON MENCIÓN EN DANZA CLÁSICA MODERNA O TRADICIONAL PROFESIONAL"]
[null,"APF1616726","FORMACIÓN DOCENTE EN LA ESPECIALIDAD EDUCACIÓN MUSICAL PROFESIONAL"]
[null,"APF1616727","FORMACIÓN DOCENTE EN LA ESPECIALIDAD EDUCACIÓN MUSICAL CON MENCIÓN EN UN INSTRUMENTO PROFESIONAL"]
[null,"APF2156728","INTERPRETACIÓN MUSICAL CON MENCIÓN EN ACORDEÓN PROFESIONAL"]
[null,"APF2156729","INTERPRETACIÓN MUSICAL CON MENCIÓN EN CANTO PROFESIONAL"]
[null,"APF2156730","INTERPRETACIÓN MUSICAL CON MENCIÓN EN CIOLÍN PROFESIONAL"]
[null,"APF2156731","INTERPRETACIÓN MUSICAL CON MENCIÓN EN CLARINETE PROFESIONAL"]
[null,"APF2156732","INTERPRETACIÓN MUSICAL CON MENCIÓN EN CONTRABAJO PROFESIONAL"]
[null,"APF2156733","INTERPRETACIÓN MUSICAL CON MENCIÓN EN CORNO PROFESIONAL"]
[null,"APF2156734","INTERPRETACIÓN MUSICAL CON MENCIÓN EN FAGOT PROFESIONAL"]
[null,"APF2156735","INTERPRETACIÓN MUSICAL CON MENCIÓN EN FLAUTA TRAVERSA PROFESIONAL"]
[null,"APF2156736","INTERPRETACIÓN MUSICAL CON MENCIÓN EN GUITARRA PROFESIONAL"]
[null,"APF2156737","INTERPRETACIÓN MUSICAL CON MENCIÓN EN INSTRUMENTOS NATIVOS PROFESIONAL"]
[null,"APF2156738","INTERPRETACIÓN MUSICAL CON MENCIÓN EN OBOE PROFESIONAL"]
[null,"APF2156739","INTERPRETACIÓN MUSICAL CON MENCIÓN EN PERCUSIÓN PROFESIONAL"]
[null,"APF2156740","INTERPRETACIÓN MUSICAL CON MENCIÓN EN PIANO PROFESIONAL"]
[null,"APF2156741","INTERPRETACIÓN MUSICAL CON MENCIÓN EN SAXOFÓN PROFESIONAL"]
[null,"APF2156742","INTERPRETACIÓN MUSICAL CON MENCIÓN EN TROMBÓN PROFESIONAL"]
[null,"APF2156743","INTERPRETACIÓN MUSICAL CON MENCIÓN EN TROMPETA PROFESIONAL"]
[null,"APF2156744","INTERPRETACIÓN MUSICAL CON MENCIÓN EN TUBA PROFESIONAL"]
[null,"APF2156745","INTERPRETACIÓN MUSICAL CON MENCIÓN EN VIOLA PROFESIONAL"]
[null,"APF2156746","INTERPRETACIÓN MUSICAL CON MENCIÓN EN VIOLONCHELLO PROFESIONAL"]
[null,"APF2136747","MEDIOS AUDIOVISUALES PROFESIONAL"]
[null,"APF2156748","MÚSICA PROFESIONAL"]
[null,"APF2156749","MÚSICA Y ARTES VISUALES DEL ÁREA DE DOCENCIA PROFESIONAL"]
[null,"APF2156750","MÚSICA Y TÉCNOLOGÍAS DE SONIDO, ESPECIALIDAD EN PRODUCCIÓN MUSICAL PROFESIONAL"]
[null,"APF2156751","MÚSICA EN LA ESPECIALIDAD DE EJECUCIÓN INSTRUMENTAL CON MENCIÓN EN CANTO PROFESIONAL"]
[null,"APF2156752","MÚSICA EN LA ESPECIALIDAD DE EJECUCIÓN INSTRUMENTAL CON MENCIÓN EN COMPOSICIÓN PROFESIONAL"]
[null,"APF2156753","MÚSICA EN LA ESPECIALIDAD DE EJECUCIÓN INSTRUMENTAL CON MENCIÓN EN DIRECCIÓN CORAL PROFESIONAL"]
[null,"APF2156754","MÚSICA EN LA ESPECIALIDAD DE EJECUCIÓN INSTRUMENTAL CON MENCIÓN EN DIRECCIÓN DE BANDA PROFESIONAL"]
[null,"APF2156755","MÚSICO PROFESIONAL EN LA ESPECIALIDAD DE INTERPRETACIÓN MUSICAL CANTO PROFESIONAL"]
[null,"APF2156756","MÚSICO PROFESIONAL EN LA ESPECIALIDAD DE INTERPRETACIÓN MUSICAL CON MENCIÓN EN ARPA PROFESIONAL"]
[null,"APF2156757","MÚSICO PROFESIONAL EN LA ESPECIALIDAD DE INTERPRETACIÓN MUSICAL CON MENCIÓN EN CHARANGO PROFESIONAL"]
[null,"APF2156758","MÚSICO PROFESIONAL EN LA ESPECIALIDAD DE INTERPRETACIÓN MUSICAL CON MENCIÓN EN CLARINETE PROFESIONAL"]
[null,"APF2156759","MÚSICO PROFESIONAL EN LA ESPECIALIDAD DE INTERPRETACIÓN MUSICAL CON MENCIÓN EN CONTRABAJO PROFESIONAL"]
[null,"APF2156760","MÚSICO PROFESIONAL EN LA ESPECIALIDAD DE INTERPRETACIÓN MUSICAL CON MENCIÓN EN CORNO PROFESIONAL"]
[null,"APF2156761","MÚSICO PROFESIONAL EN LA ESPECIALIDAD DE INTERPRETACIÓN MUSICAL CON MENCIÓN EN EUFONIO PROFESIONAL"]
[null,"APF2156762","MÚSICO PROFESIONAL EN LA ESPECIALIDAD DE INTERPRETACIÓN MUSICAL CON MENCIÓN EN FAGOT PROFESIONAL"]
[null,"APF2156763","MÚSICO PROFESIONAL EN LA ESPECIALIDAD DE INTERPRETACIÓN MUSICAL CON MENCIÓN EN FLAUTA DULCE PROFESIONAL"]
[null,"APF2156764","MÚSICO PROFESIONAL EN LA ESPECIALIDAD DE INTERPRETACIÓN MUSICAL CON MENCIÓN EN FLAUTA TRAVERSA PROFESIONAL"]
[null,"APF2156765","MÚSICO PROFESIONAL EN LA ESPECIALIDAD DE INTERPRETACIÓN MUSICAL CON MENCIÓN EN GUITARRA PROFESIONAL"]
[null,"APF2156766","MÚSICO PROFESIONAL EN LA ESPECIALIDAD DE INTERPRETACIÓN MUSICAL CON MENCIÓN EN OBOE PROFESIONAL"]
[null,"APF2156767","MÚSICO PROFESIONAL EN LA ESPECIALIDAD DE INTERPRETACIÓN MUSICAL CON MENCIÓN EN ORGANO PROFESIONAL"]
[null,"APF2156768","MÚSICO PROFESIONAL EN LA ESPECIALIDAD DE INTERPRETACIÓN MUSICAL CON MENCIÓN EN PERCUSIÓN PROFESIONAL"]
[null,"APF2156769","MÚSICO PROFESIONAL EN LA ESPECIALIDAD DE INTERPRETACIÓN MUSICAL CON MENCIÓN EN PIANO PROFESIONAL"]
[null,"APF2156770","MÚSICO PROFESIONAL EN LA ESPECIALIDAD DE INTERPRETACIÓN MUSICAL CON MENCIÓN EN QUENA PROFESIONAL"]
[null,"APF2156771","MÚSICO PROFESIONAL EN LA ESPECIALIDAD DE INTERPRETACIÓN MUSICAL CON MENCIÓN EN SAXOFÓN PROFESIONAL"]
[null,"APF2156772","MÚSICO PROFESIONAL EN LA ESPECIALIDAD DE INTERPRETACIÓN MUSICAL CON MENCIÓN EN TROMBÓN PROFESIONAL"]
[null,"APF2156773","MÚSICO PROFESIONAL EN LA ESPECIALIDAD DE INTERPRETACIÓN MUSICAL CON MENCIÓN EN TROMPETA PROFESIONAL"]
[null,"APF2156774","MÚSICO PROFESIONAL EN LA ESPECIALIDAD DE INTERPRETACIÓN MUSICAL CON MENCIÓN EN TUBA PROFESIONAL"]
[null,"APF2156775","MÚSICO PROFESIONAL EN LA ESPECIALIDAD DE INTERPRETACIÓN MUSICAL CON MENCIÓN EN VIOLA PROFESIONAL"]
[null,"APF2156776","MÚSICO PROFESIONAL EN LA ESPECIALIDAD DE INTERPRETACIÓN MUSICAL CON MENCIÓN EN VIOLÍN PROFESIONAL"]
[null,"APF2156777","MÚSICO PROFESIONAL EN LA ESPECIALIDAD DE INTERPRETACIÓN MUSICAL CON MENCIÓN EN VIOLONCHELLO PROFESIONAL"]
[null,"APF2156778","MÚSICO PROFESIONAL EN LA ESPECIALIDAD DE INTERPRETACIÓN MUSICAL DIRECCIÓN MUSICAL PROFESIONAL"]
[null,"APF1616779","PROFESOR DE EDUCACIÓN ARTÍSTICA EN LA ESPECIALIDAD ARTES VISUALES PROFESIONAL"]
[null,"APF1616780","PROFESOR DE EDUCACIÓN ARTÍSTICA EN LA ESPECIALIDAD DANZA PROFESIONAL"]
[null,"APF1616781","PROFESOR DE EDUCACIÓN ARTÍSTICA EN LA ESPECIALIDAD MÚSICA PROFESIONAL"]
[null,"APF1616782","PROFESOR DE EDUCACIÓN ARTÍSTICA EN LA ESPECIALIDAD TEATRO PROFESIONAL"]
[null,"APF2156132","DANZA PROFESIONAL"]
[null,"APF1616521","DOCENTE EN DANZA CLÁSICA PROFESIONAL"]
[null,"APF1616526","DOCENTE EN EDUCACIÓN EN DANZA PROFESIONAL"]
[null,"APF1616524","DOCENTE EN EDUCACIÓN MUSICAL PROFESIONAL"]
[null,"APF1616525","DOCENTE EN EDUCACIÓN MUSICAL CON MENCIÓN EN UN INSTRUMENTO PROFESIONAL"]
[null,"APF1616494","EDUCACIÓN ARTÍSTICA EN ARTES PLÁSTICAS Y VISUALES PROFESIONAL"]
[null,"APF1616497","EDUCACIÓN ARTÍSTICA EN DANZA PROFESIONAL"]
[null,"APF1616523","EDUCACIÓN ARTÍSTICA EN FOLKLORE PROFESIONAL"]
[null,"APF1616495","EDUCACIÓN ARTÍSTICA EN MÚSICA PROFESIONAL"]
[null,"APF1616496","EDUCACIÓN ARTÍSTICA EN TEATRO PROFESIONAL"]
[null,"APF2156527","INTERPRETACIÓN INSTRUMENTAL PROFESIONAL"]
[null,"APF2156528","INTERPRETACIÓN MUSICAL CANTO PROFESIONAL"]
[null,"APF2156131","MÚSICA PROFESIONAL"]
[null,"APF2136783","PROGRAMA ACADÉMICO DE ARTES PLÁSTICAS Y VISUALES EN LA ESPECIALIDAD DE ESCULTURA PROFESIONAL"]
[null,"APF2136784","PROGRAMA ACADÉMICO DE ARTES PLÁSTICAS Y VISUALES EN LA ESPECIALIDAD DE GRABADO PROFESIONAL"]
[null,"APF2136785","PROGRAMA ACADÉMICO DE ARTES PLÁSTICAS Y VISUALES EN LA ESPECIALIDAD DE PINTURA PROFESIONAL"]
[null,"APF2136786","PROGRAMA ACADÉMICO DE ARTES PLÁSTICAS Y VISUALES EN LA ESPECIALIDAD DE RESTAURACIÓN Y CONSERVACIÓN PROFESIONAL"]
[null,"APF2156129","TEATRO PROFESIONAL"]